Body Name,Body,Organisational unit,Service division,Expenditure category,Date,Transacton number,Net amount,Supplier,Narrative
Tendring DC,http://statistics.data.gov.uk/id/local-authority-district/22UN,Benefits & Revenues,1560 - Cashiers,4635 - Cash Collection Contract,26/10/2010,2077678-4,60.17,2101233 - G4S Cash Services (UK) Limited,October
Tendring DC,http://statistics.data.gov.uk/id/local-authority-district/22UN,Benefits & Revenues,1560 - Cashiers,4635 - Cash Collection Contract,26/10/2010,2077679-4,60.17,2101233 - G4S Cash Services (UK) Limited,September
Tendring DC,http://statistics.data.gov.uk/id/local-authority-district/22UN,Benefits & Revenues,1560 - Cashiers,4635 - Cash Collection Contract,26/10/2010,2077711-4,60.17,2101233 - G4S Cash Services (UK) Limited,Missed Collections
Tendring DC,http://statistics.data.gov.uk/id/local-authority-district/22UN,Benefits & Revenues,1560 - Cashiers,4635 - Cash Collection Contract,23/11/2010,2078532-4,62.99,2101233 - G4S Cash Services (UK) Limited,G4S December
Tendring DC,http://statistics.data.gov.uk/id/local-authority-district/22UN,Benefits & Revenues,1580 - Benefits & Revenues,1700 - Training - Courses,19/10/2010,2077560-1,675,2106864 - ACS Ltd,Subscription
Tendring DC,http://statistics.data.gov.uk/id/local-authority-district/22UN,Benefits & Revenues,1580 - Benefits & Revenues,1700 - Training - Courses,19/10/2010,2077560-2,323,2106864 - ACS Ltd,Subscription
Tendring DC,http://statistics.data.gov.uk/id/local-authority-district/22UN,Benefits & Revenues,1580 - Benefits & Revenues,3304 - Car Allowances - Parking Fees,27/10/2010,2077800-3,6.98,2100304 - CO-OP Bank,
Tendring DC,http://statistics.data.gov.uk/id/local-authority-district/22UN,Benefits & Revenues,1580 - Benefits & Revenues,3304 - Car Allowances - Parking Fees,30/11/2010,2079384-2,5.28,2100304 - CO-OP Bank,HM Courts & NCP Parking
Tendring DC,http://statistics.data.gov.uk/id/local-authority-district/22UN,Benefits & Revenues,1580 - Benefits & Revenues,4094 - Other Equipment Hire/Leasing,21/12/2010,2079227-1,2546.1,2100939 - Neopost Limited,DS-86 Folding Machine
Tendring DC,http://statistics.data.gov.uk/id/local-authority-district/22UN,Benefits & Revenues,1580 - Benefits & Revenues,4300 - Printing & Stationery,26/10/2010,1040281-1,786.5,2110569 - Hound Envelopes Ltd,ENVELOPES
Tendring DC,http://statistics.data.gov.uk/id/local-authority-district/22UN,Benefits & Revenues,1580 - Benefits & Revenues,4300 - Printing & Stationery,23/11/2010,1040869-1,1146.54,2107546 - XMA Limited,TONERS/DRUM
Tendring DC,http://statistics.data.gov.uk/id/local-authority-district/22UN,Benefits & Revenues,1580 - Benefits & Revenues,4300 - Printing & Stationery,21/12/2010,1041517-1,897.82,2107546 - XMA Limited,DRUMS/CARTRIDGES
Tendring DC,http://statistics.data.gov.uk/id/local-authority-district/22UN,Benefits & Revenues,1580 - Benefits & Revenues,4355 - Books & Periodicals,21/12/2010,1041311-1,625,2101987 - Rating & Valuation Reporter,RENEWAL ANNUAL SUBS
Tendring DC,http://statistics.data.gov.uk/id/local-authority-district/22UN,Benefits & Revenues,1580 - Benefits & Revenues,4355 - Books & Periodicals,27/10/2010,2077800-2,5.95,2100304 - CO-OP Bank,
Tendring DC,http://statistics.data.gov.uk/id/local-authority-district/22UN,Benefits & Revenues,1580 - Benefits & Revenues,4462 - Legal Fees incl. Bailiffs re debt recovery,05/10/2010,2077074-1,750,REDACTED PERSONAL DATA,REDACTED PERSONAL DATA
Tendring DC,http://statistics.data.gov.uk/id/local-authority-district/22UN,Benefits & Revenues,1580 - Benefits & Revenues,4462 - Legal Fees incl. Bailiffs re debt recovery,27/10/2010,2077800-1,1352,2100304 - CO-OP Bank,
Tendring DC,http://statistics.data.gov.uk/id/local-authority-district/22UN,Benefits & Revenues,1580 - Benefits & Revenues,4462 - Legal Fees incl. Bailiffs re debt recovery,31/10/2010,2078412-1,1496,2100304 - CO-OP Bank,H M Cover Corp Card
Tendring DC,http://statistics.data.gov.uk/id/local-authority-district/22UN,Benefits & Revenues,1580 - Benefits & Revenues,4462 - Legal Fees incl. Bailiffs re debt recovery,30/11/2010,2079384-1,1200,2100304 - CO-OP Bank,HM Courts & NCP Parking
Tendring DC,http://statistics.data.gov.uk/id/local-authority-district/22UN,Benefits & Revenues,1580 - Benefits & Revenues,4462 - Legal Fees incl. Bailiffs re debt recovery,30/11/2010,2079384-3,2,2100304 - CO-OP Bank,HM Courts & NCP Parking
Tendring DC,http://statistics.data.gov.uk/id/local-authority-district/22UN,Benefits & Revenues,1580 - Benefits & Revenues,4635 - Cash Collection Contract,26/10/2010,2077678-1,978.3,2101233 - G4S Cash Services (UK) Limited,October
Tendring DC,http://statistics.data.gov.uk/id/local-authority-district/22UN,Benefits & Revenues,1580 - Benefits & Revenues,4635 - Cash Collection Contract,26/10/2010,2077679-1,978.3,2101233 - G4S Cash Services (UK) Limited,September
Tendring DC,http://statistics.data.gov.uk/id/local-authority-district/22UN,Benefits & Revenues,1580 - Benefits & Revenues,4635 - Cash Collection Contract,26/10/2010,2077711-1,978.3,2101233 - G4S Cash Services (UK) Limited,Missed Collections
Tendring DC,http://statistics.data.gov.uk/id/local-authority-district/22UN,Benefits & Revenues,1580 - Benefits & Revenues,4635 - Cash Collection Contract,23/11/2010,2078532-1,1024.18,2101233 - G4S Cash Services (UK) Limited,G4S December
Tendring DC,http://statistics.data.gov.uk/id/local-authority-district/22UN,Benefits & Revenues,1580 - Benefits & Revenues,4700 - Postage,19/10/2010,1040080-1,1010.96,2101139 - Royal Mail,POST
Tendring DC,http://statistics.data.gov.uk/id/local-authority-district/22UN,Benefits & Revenues,1580 - Benefits & Revenues,4700 - Postage,19/10/2010,1040080-2,545.21,2101139 - Royal Mail,POST
Tendring DC,http://statistics.data.gov.uk/id/local-authority-district/22UN,Benefits & Revenues,1580 - Benefits & Revenues,4700 - Postage,19/10/2010,1040080-3,444.73,2101139 - Royal Mail,POST
Tendring DC,http://statistics.data.gov.uk/id/local-authority-district/22UN,Benefits & Revenues,1580 - Benefits & Revenues,4700 - Postage,26/10/2010,1040202-1,855.37,2101139 - Royal Mail,ROYAL MAIL OCTOBER
Tendring DC,http://statistics.data.gov.uk/id/local-authority-district/22UN,Benefits & Revenues,1580 - Benefits & Revenues,4700 - Postage,26/10/2010,1040202-2,573.8,2101139 - Royal Mail,ROYAL MAIL OCTOBER
Tendring DC,http://statistics.data.gov.uk/id/local-authority-district/22UN,Benefits & Revenues,1580 - Benefits & Revenues,4700 - Postage,26/10/2010,1040202-3,687.26,2101139 - Royal Mail,ROYAL MAIL OCTOBER
Tendring DC,http://statistics.data.gov.uk/id/local-authority-district/22UN,Benefits & Revenues,1580 - Benefits & Revenues,4700 - Postage,07/12/2010,1041174-1,2014.29,2101139 - Royal Mail,NOV 2010 POSTAGE
Tendring DC,http://statistics.data.gov.uk/id/local-authority-district/22UN,Benefits & Revenues,1580 - Benefits & Revenues,4700 - Postage,09/11/2010,2077953-1,748.78,2101139 - Royal Mail,Postage Oct 2010
Tendring DC,http://statistics.data.gov.uk/id/local-authority-district/22UN,Benefits & Revenues,1580 - Benefits & Revenues,4700 - Postage,09/11/2010,2077953-2,1078.36,2101139 - Royal Mail,Postage Oct 2010
Tendring DC,http://statistics.data.gov.uk/id/local-authority-district/22UN,Benefits & Revenues,1580 - Benefits & Revenues,4700 - Postage,09/11/2010,2077953-3,61.16,2101139 - Royal Mail,Postage Oct 2010
Tendring DC,http://statistics.data.gov.uk/id/local-authority-district/22UN,Benefits & Revenues,1580 - Benefits & Revenues,4700 - Postage,23/11/2010,2078425-1,2009.01,2101139 - Royal Mail,Postage Oct/Nov 10
Tendring DC,http://statistics.data.gov.uk/id/local-authority-district/22UN,Benefits & Revenues,1580 - Benefits & Revenues,4700 - Postage,21/12/2010,2079262-1,1728.98,2101139 - Royal Mail,Royal Mail December 2010
Tendring DC,http://statistics.data.gov.uk/id/local-authority-district/22UN,Benefits & Revenues,1580 - Benefits & Revenues,4753 - Computer - Application Software,16/11/2010,1040659-1,2420,2100116 - Bottomline Technologies Europe Ltd,TRANSFORM SOFTWARE MAINTENANCE
Tendring DC,http://statistics.data.gov.uk/id/local-authority-district/22UN,Benefits & Revenues,1580 - Benefits & Revenues,4753 - Computer - Application Software,12/10/2010,2077300-1,1380,2100116 - Bottomline Technologies Europe Ltd,Pay Base Developer
Tendring DC,http://statistics.data.gov.uk/id/local-authority-district/22UN,Benefits & Revenues,1580 - Benefits & Revenues,4753 - Computer - Application Software,09/11/2010,2077954-1,950,2101204 - Northgate Information Solutions UK Ltd,Caseload Analysis
Tendring DC,http://statistics.data.gov.uk/id/local-authority-district/22UN,Benefits & Revenues,1580 - Benefits & Revenues,4753 - Computer - Application Software,21/12/2010,2079366-1,1100,2100116 - Bottomline Technologies Europe Ltd,Bottomline Transform Product & One Year
Tendring DC,http://statistics.data.gov.uk/id/local-authority-district/22UN,Benefits & Revenues,1580 - Benefits & Revenues,4754 - IT Consultancy,21/12/2010,1041312-1,500,2101204 - Northgate Information Solutions UK Ltd,R&B ANNUAL BILLING SEMINAR
Tendring DC,http://statistics.data.gov.uk/id/local-authority-district/22UN,Benefits & Revenues,1597 - Employment Support Allowance 2008,4597 - Hired Services - Payments to Contractors,12/10/2010,2077151-1,9729.24,2100894 - Liberata UK Ltd,Liberata
Tendring DC,http://statistics.data.gov.uk/id/local-authority-district/22UN,Benefits & Revenues,1599 - Housing Benefit Additional Admin Grant,4597 - Hired Services - Payments to Contractors,12/10/2010,2077152-1,4227.95,2100894 - Liberata UK Ltd,Liberata benefits
Tendring DC,http://statistics.data.gov.uk/id/local-authority-district/22UN,Benefits & Revenues,1599 - Housing Benefit Additional Admin Grant,4597 - Hired Services - Payments to Contractors,12/10/2010,2077153-1,10335,2100894 - Liberata UK Ltd,Liberata Benefits
Tendring DC,http://statistics.data.gov.uk/id/local-authority-district/22UN,Benefits & Revenues,1599 - Housing Benefit Additional Admin Grant,4597 - Hired Services - Payments to Contractors,12/10/2010,2077197-1,-14562.95,2100894 - Liberata UK Ltd,Liberata
Tendring DC,http://statistics.data.gov.uk/id/local-authority-district/22UN,Benefits & Revenues,5260 - Rent Collection And Accounting,4635 - Cash Collection Contract,26/10/2010,2077678-2,248.49,2101233 - G4S Cash Services (UK) Limited,October
Tendring DC,http://statistics.data.gov.uk/id/local-authority-district/22UN,Benefits & Revenues,5260 - Rent Collection And Accounting,4635 - Cash Collection Contract,26/10/2010,2077678-3,40.35,2101233 - G4S Cash Services (UK) Limited,October
Tendring DC,http://statistics.data.gov.uk/id/local-authority-district/22UN,Benefits & Revenues,5260 - Rent Collection And Accounting,4635 - Cash Collection Contract,26/10/2010,2077679-2,248.49,2101233 - G4S Cash Services (UK) Limited,September
Tendring DC,http://statistics.data.gov.uk/id/local-authority-district/22UN,Benefits & Revenues,5260 - Rent Collection And Accounting,4635 - Cash Collection Contract,26/10/2010,2077679-3,40.35,2101233 - G4S Cash Services (UK) Limited,September
Tendring DC,http://statistics.data.gov.uk/id/local-authority-district/22UN,Benefits & Revenues,5260 - Rent Collection And Accounting,4635 - Cash Collection Contract,26/10/2010,2077711-2,248.49,2101233 - G4S Cash Services (UK) Limited,Missed Collections
Tendring DC,http://statistics.data.gov.uk/id/local-authority-district/22UN,Benefits & Revenues,5260 - Rent Collection And Accounting,4635 - Cash Collection Contract,26/10/2010,2077711-3,40.35,2101233 - G4S Cash Services (UK) Limited,Missed Collections
Tendring DC,http://statistics.data.gov.uk/id/local-authority-district/22UN,Benefits & Revenues,5260 - Rent Collection And Accounting,4635 - Cash Collection Contract,23/11/2010,2078532-2,260.14,2101233 - G4S Cash Services (UK) Limited,G4S December
Tendring DC,http://statistics.data.gov.uk/id/local-authority-district/22UN,Benefits & Revenues,5260 - Rent Collection And Accounting,4635 - Cash Collection Contract,23/11/2010,2078532-3,42.24,2101233 - G4S Cash Services (UK) Limited,G4S December
Tendring DC,http://statistics.data.gov.uk/id/local-authority-district/22UN,Benefits & Revenues,5800 - Brightlingsea Sports Centre,4635 - Cash Collection Contract,26/10/2010,2077678-9,69.57,2101233 - G4S Cash Services (UK) Limited,October
Tendring DC,http://statistics.data.gov.uk/id/local-authority-district/22UN,Benefits & Revenues,5800 - Brightlingsea Sports Centre,4635 - Cash Collection Contract,26/10/2010,2077679-9,69.57,2101233 - G4S Cash Services (UK) Limited,September
Tendring DC,http://statistics.data.gov.uk/id/local-authority-district/22UN,Benefits & Revenues,5800 - Brightlingsea Sports Centre,4635 - Cash Collection Contract,26/10/2010,2077711-9,69.57,2101233 - G4S Cash Services (UK) Limited,Missed Collections
Tendring DC,http://statistics.data.gov.uk/id/local-authority-district/22UN,Benefits & Revenues,5800 - Brightlingsea Sports Centre,4635 - Cash Collection Contract,23/11/2010,2078532-9,69.57,2101233 - G4S Cash Services (UK) Limited,G4S December
Tendring DC,http://statistics.data.gov.uk/id/local-authority-district/22UN,Benefits & Revenues,5820 - Harwich Sports Centre,4635 - Cash Collection Contract,26/10/2010,2077678-12,69.57,2101233 - G4S Cash Services (UK) Limited,October
Tendring DC,http://statistics.data.gov.uk/id/local-authority-district/22UN,Benefits & Revenues,5820 - Harwich Sports Centre,4635 - Cash Collection Contract,26/10/2010,2077679-12,69.57,2101233 - G4S Cash Services (UK) Limited,September
Tendring DC,http://statistics.data.gov.uk/id/local-authority-district/22UN,Benefits & Revenues,5820 - Harwich Sports Centre,4635 - Cash Collection Contract,26/10/2010,2077711-12,69.57,2101233 - G4S Cash Services (UK) Limited,Missed Collections
Tendring DC,http://statistics.data.gov.uk/id/local-authority-district/22UN,Benefits & Revenues,5820 - Harwich Sports Centre,4635 - Cash Collection Contract,23/11/2010,2078532-12,69.57,2101233 - G4S Cash Services (UK) Limited,G4S December
Tendring DC,http://statistics.data.gov.uk/id/local-authority-district/22UN,Benefits & Revenues,5860 - Manningtree Sports Centre,4635 - Cash Collection Contract,26/10/2010,2077678-11,69.57,2101233 - G4S Cash Services (UK) Limited,October
Tendring DC,http://statistics.data.gov.uk/id/local-authority-district/22UN,Benefits & Revenues,5860 - Manningtree Sports Centre,4635 - Cash Collection Contract,26/10/2010,2077679-11,69.57,2101233 - G4S Cash Services (UK) Limited,September
Tendring DC,http://statistics.data.gov.uk/id/local-authority-district/22UN,Benefits & Revenues,5860 - Manningtree Sports Centre,4635 - Cash Collection Contract,26/10/2010,2077711-11,69.57,2101233 - G4S Cash Services (UK) Limited,Missed Collections
Tendring DC,http://statistics.data.gov.uk/id/local-authority-district/22UN,Benefits & Revenues,5860 - Manningtree Sports Centre,4635 - Cash Collection Contract,23/11/2010,2078532-11,69.57,2101233 - G4S Cash Services (UK) Limited,G4S December
Tendring DC,http://statistics.data.gov.uk/id/local-authority-district/22UN,Benefits & Revenues,7820 - Concessionary Bus Passes,4570 - Bus Passes - Operators Reimbursment,16/11/2010,2078123-1,157146.17,2100498 - Essex County Council,Conc Fares Nov 10
Tendring DC,http://statistics.data.gov.uk/id/local-authority-district/22UN,Benefits & Revenues,7820 - Concessionary Bus Passes,4570 - Bus Passes - Operators Reimbursment,14/12/2010,2079133-1,157146.17,2100498 - Essex County Council,Concessionary Fares
Tendring DC,http://statistics.data.gov.uk/id/local-authority-district/22UN,Benefits & Revenues,7820 - Concessionary Bus Passes,4604 - Hired Services - Purchase of Passes,12/10/2010,2077231-1,157146.17,2100498 - Essex County Council,Conc fare
Tendring DC,http://statistics.data.gov.uk/id/local-authority-district/22UN,Benefits & Revenues,7820 - Concessionary Bus Passes,4604 - Hired Services - Purchase of Passes,30/11/2010,2078635-1,550.62,2100498 - Essex County Council,ECC Conf Fares
Tendring DC,http://statistics.data.gov.uk/id/local-authority-district/22UN,Benefits & Revenues,7840 - Concessionary Rail Fares,4602 - Hired Services - Purchase of Railcards,19/10/2010,2077353-1,19500,2108885 - London Eastern Railways Ltd,Purchase of Railcards
Tendring DC,http://statistics.data.gov.uk/id/local-authority-district/22UN,Benefits & Revenues,8025 - Car Parks - Off St,4635 - Cash Collection Contract,26/10/2010,2077678-5,141.29,2101233 - G4S Cash Services (UK) Limited,October
Tendring DC,http://statistics.data.gov.uk/id/local-authority-district/22UN,Benefits & Revenues,8025 - Car Parks - Off St,4635 - Cash Collection Contract,26/10/2010,2077679-5,141.29,2101233 - G4S Cash Services (UK) Limited,September
Tendring DC,http://statistics.data.gov.uk/id/local-authority-district/22UN,Benefits & Revenues,8025 - Car Parks - Off St,4635 - Cash Collection Contract,26/10/2010,2077711-5,141.29,2101233 - G4S Cash Services (UK) Limited,Missed Collections
Tendring DC,http://statistics.data.gov.uk/id/local-authority-district/22UN,Benefits & Revenues,8025 - Car Parks - Off St,4635 - Cash Collection Contract,23/11/2010,2078532-5,147.92,2101233 - G4S Cash Services (UK) Limited,G4S December
Tendring DC,http://statistics.data.gov.uk/id/local-authority-district/22UN,Benefits & Revenues,8510 - Dovercourt Swimming Pool & A.W.F.,4635 - Cash Collection Contract,26/10/2010,2077678-8,208.7,2101233 - G4S Cash Services (UK) Limited,October
Tendring DC,http://statistics.data.gov.uk/id/local-authority-district/22UN,Benefits & Revenues,8510 - Dovercourt Swimming Pool & A.W.F.,4635 - Cash Collection Contract,26/10/2010,2077679-8,208.7,2101233 - G4S Cash Services (UK) Limited,September
Tendring DC,http://statistics.data.gov.uk/id/local-authority-district/22UN,Benefits & Revenues,8510 - Dovercourt Swimming Pool & A.W.F.,4635 - Cash Collection Contract,26/10/2010,2077711-8,208.7,2101233 - G4S Cash Services (UK) Limited,Missed Collections
Tendring DC,http://statistics.data.gov.uk/id/local-authority-district/22UN,Benefits & Revenues,8510 - Dovercourt Swimming Pool & A.W.F.,4635 - Cash Collection Contract,23/11/2010,2078532-8,208.7,2101233 - G4S Cash Services (UK) Limited,G4S December
Tendring DC,http://statistics.data.gov.uk/id/local-authority-district/22UN,Benefits & Revenues,8520 - Frinton & Walton Swimming Pool,4635 - Cash Collection Contract,26/10/2010,2077678-10,208.7,2101233 - G4S Cash Services (UK) Limited,October
Tendring DC,http://statistics.data.gov.uk/id/local-authority-district/22UN,Benefits & Revenues,8520 - Frinton & Walton Swimming Pool,4635 - Cash Collection Contract,26/10/2010,2077679-10,208.7,2101233 - G4S Cash Services (UK) Limited,September
Tendring DC,http://statistics.data.gov.uk/id/local-authority-district/22UN,Benefits & Revenues,8520 - Frinton & Walton Swimming Pool,4635 - Cash Collection Contract,26/10/2010,2077711-10,208.7,2101233 - G4S Cash Services (UK) Limited,Missed Collections
Tendring DC,http://statistics.data.gov.uk/id/local-authority-district/22UN,Benefits & Revenues,8520 - Frinton & Walton Swimming Pool,4635 - Cash Collection Contract,23/11/2010,2078532-10,139.83,2101233 - G4S Cash Services (UK) Limited,G4S December
Tendring DC,http://statistics.data.gov.uk/id/local-authority-district/22UN,Benefits & Revenues,8530 - Brightlingsea Swimming Pool,4635 - Cash Collection Contract,23/11/2010,1040385-1,-528.33,2101233 - G4S Cash Services (UK) Limited,BRIGHTLINGSEA POOL
Tendring DC,http://statistics.data.gov.uk/id/local-authority-district/22UN,Benefits & Revenues,8530 - Brightlingsea Swimming Pool,4635 - Cash Collection Contract,26/10/2010,2077678-6,69.57,2101233 - G4S Cash Services (UK) Limited,October
Tendring DC,http://statistics.data.gov.uk/id/local-authority-district/22UN,Benefits & Revenues,8530 - Brightlingsea Swimming Pool,4635 - Cash Collection Contract,26/10/2010,2077679-6,69.57,2101233 - G4S Cash Services (UK) Limited,September
Tendring DC,http://statistics.data.gov.uk/id/local-authority-district/22UN,Benefits & Revenues,8530 - Brightlingsea Swimming Pool,4635 - Cash Collection Contract,26/10/2010,2077711-6,69.57,2101233 - G4S Cash Services (UK) Limited,Missed Collections
Tendring DC,http://statistics.data.gov.uk/id/local-authority-district/22UN,Benefits & Revenues,8530 - Brightlingsea Swimming Pool,4635 - Cash Collection Contract,23/11/2010,2078532-6,69.57,2101233 - G4S Cash Services (UK) Limited,G4S December
Tendring DC,http://statistics.data.gov.uk/id/local-authority-district/22UN,Benefits & Revenues,8540 - Leisure Centre Clacton,4635 - Cash Collection Contract,26/10/2010,2077678-7,208.7,2101233 - G4S Cash Services (UK) Limited,October
Tendring DC,http://statistics.data.gov.uk/id/local-authority-district/22UN,Benefits & Revenues,8540 - Leisure Centre Clacton,4635 - Cash Collection Contract,26/10/2010,2077679-7,208.7,2101233 - G4S Cash Services (UK) Limited,September
Tendring DC,http://statistics.data.gov.uk/id/local-authority-district/22UN,Benefits & Revenues,8540 - Leisure Centre Clacton,4635 - Cash Collection Contract,26/10/2010,2077711-7,208.7,2101233 - G4S Cash Services (UK) Limited,Missed Collections
Tendring DC,http://statistics.data.gov.uk/id/local-authority-district/22UN,Benefits & Revenues,8540 - Leisure Centre Clacton,4635 - Cash Collection Contract,23/11/2010,2078532-7,208.7,2101233 - G4S Cash Services (UK) Limited,G4S December
Tendring DC,http://statistics.data.gov.uk/id/local-authority-district/22UN,Benefits & Revenues,C052 - Replacement of DIP scanning machines,C250 - Office,21/12/2010,2079226-1,1621.75,2110158 - Bechtle Direct Ltd,Fujitsu Scanner 3 Yr Warranty
Tendring DC,http://statistics.data.gov.uk/id/local-authority-district/22UN,Community Services,5360 - Sheltered Units,4000 - Furniture,07/12/2010,1041057-1,521.34,2104438 - Gopak Ltd,FOLDING TABLES SPENDELLS
Tendring DC,http://statistics.data.gov.uk/id/local-authority-district/22UN,Community Services,5360 - Sheltered Units,4000 - Furniture,21/12/2010,2079346-1,521.34,2104438 - Gopak Ltd,Tablet Bench
Tendring DC,http://statistics.data.gov.uk/id/local-authority-district/22UN,Community Services,5360 - Sheltered Units,4601 - Hired services - Cleaning,23/11/2010,1040911-1,588.88,2100851 - KO-SHEEN Contract Cleaning Ltd,CLEANING BELMANS
Tendring DC,http://statistics.data.gov.uk/id/local-authority-district/22UN,Community Services,5360 - Sheltered Units,4601 - Hired services - Cleaning,21/12/2010,2079324-1,588.88,2100851 - KO-SHEEN Contract Cleaning Ltd,Ko Sheen Cleaning
Tendring DC,http://statistics.data.gov.uk/id/local-authority-district/22UN,Community Services,5360 - Sheltered Units,4710 - Telephones - Charges,02/11/2010,1040382-10,46.83,2108907 - Southern Communications Ltd,SOUTHERN COMMUNICATIONS
Tendring DC,http://statistics.data.gov.uk/id/local-authority-district/22UN,Community Services,5360 - Sheltered Units,4710 - Telephones - Charges,02/11/2010,1040382-11,42,2108907 - Southern Communications Ltd,SOUTHERN COMMUNICATIONS
Tendring DC,http://statistics.data.gov.uk/id/local-authority-district/22UN,Community Services,5360 - Sheltered Units,4710 - Telephones - Charges,02/11/2010,1040382-12,29.68,2108907 - Southern Communications Ltd,SOUTHERN COMMUNICATIONS
Tendring DC,http://statistics.data.gov.uk/id/local-authority-district/22UN,Community Services,5360 - Sheltered Units,4710 - Telephones - Charges,02/11/2010,1040382-3,41.41,2108907 - Southern Communications Ltd,SOUTHERN COMMUNICATIONS
Tendring DC,http://statistics.data.gov.uk/id/local-authority-district/22UN,Community Services,5360 - Sheltered Units,4710 - Telephones - Charges,02/11/2010,1040382-4,49.29,2108907 - Southern Communications Ltd,SOUTHERN COMMUNICATIONS
Tendring DC,http://statistics.data.gov.uk/id/local-authority-district/22UN,Community Services,5360 - Sheltered Units,4710 - Telephones - Charges,02/11/2010,1040382-5,38.95,2108907 - Southern Communications Ltd,SOUTHERN COMMUNICATIONS
Tendring DC,http://statistics.data.gov.uk/id/local-authority-district/22UN,Community Services,5360 - Sheltered Units,4710 - Telephones - Charges,02/11/2010,1040382-6,38.51,2108907 - Southern Communications Ltd,SOUTHERN COMMUNICATIONS
Tendring DC,http://statistics.data.gov.uk/id/local-authority-district/22UN,Community Services,5360 - Sheltered Units,4710 - Telephones - Charges,02/11/2010,1040382-7,70.87,2108907 - Southern Communications Ltd,SOUTHERN COMMUNICATIONS
Tendring DC,http://statistics.data.gov.uk/id/local-authority-district/22UN,Community Services,5360 - Sheltered Units,4710 - Telephones - Charges,02/11/2010,1040382-8,27.76,2108907 - Southern Communications Ltd,SOUTHERN COMMUNICATIONS
Tendring DC,http://statistics.data.gov.uk/id/local-authority-district/22UN,Community Services,5360 - Sheltered Units,4710 - Telephones - Charges,02/11/2010,1040382-9,43.89,2108907 - Southern Communications Ltd,SOUTHERN COMMUNICATIONS
Tendring DC,http://statistics.data.gov.uk/id/local-authority-district/22UN,Community Services,5360 - Sheltered Units,4710 - Telephones - Charges,21/12/2010,2079319-10,45.43,2108907 - Southern Communications Ltd,Southern Comms
Tendring DC,http://statistics.data.gov.uk/id/local-authority-district/22UN,Community Services,5360 - Sheltered Units,4710 - Telephones - Charges,21/12/2010,2079319-11,44.12,2108907 - Southern Communications Ltd,Southern Comms
Tendring DC,http://statistics.data.gov.uk/id/local-authority-district/22UN,Community Services,5360 - Sheltered Units,4710 - Telephones - Charges,21/12/2010,2079319-12,29.53,2108907 - Southern Communications Ltd,Southern Comms
Tendring DC,http://statistics.data.gov.uk/id/local-authority-district/22UN,Community Services,5360 - Sheltered Units,4710 - Telephones - Charges,21/12/2010,2079319-3,46.95,2108907 - Southern Communications Ltd,Southern Comms
Tendring DC,http://statistics.data.gov.uk/id/local-authority-district/22UN,Community Services,5360 - Sheltered Units,4710 - Telephones - Charges,21/12/2010,2079319-4,49.45,2108907 - Southern Communications Ltd,Southern Comms
Tendring DC,http://statistics.data.gov.uk/id/local-authority-district/22UN,Community Services,5360 - Sheltered Units,4710 - Telephones - Charges,21/12/2010,2079319-5,41.87,2108907 - Southern Communications Ltd,Southern Comms
Tendring DC,http://statistics.data.gov.uk/id/local-authority-district/22UN,Community Services,5360 - Sheltered Units,4710 - Telephones - Charges,21/12/2010,2079319-6,38.24,2108907 - Southern Communications Ltd,Southern Comms
Tendring DC,http://statistics.data.gov.uk/id/local-authority-district/22UN,Community Services,5360 - Sheltered Units,4710 - Telephones - Charges,21/12/2010,2079319-7,57.78,2108907 - Southern Communications Ltd,Southern Comms
Tendring DC,http://statistics.data.gov.uk/id/local-authority-district/22UN,Community Services,5360 - Sheltered Units,4710 - Telephones - Charges,21/12/2010,2079319-8,29.08,2108907 - Southern Communications Ltd,Southern Comms
Tendring DC,http://statistics.data.gov.uk/id/local-authority-district/22UN,Community Services,5360 - Sheltered Units,4710 - Telephones - Charges,21/12/2010,2079319-9,43.04,2108907 - Southern Communications Ltd,Southern Comms
Tendring DC,http://statistics.data.gov.uk/id/local-authority-district/22UN,Community Services,5360 - Sheltered Units,4718 - Fixed Communication Lines,16/11/2010,1040674-10,46.07,2108907 - Southern Communications Ltd,SOUTHERN COMMUNICATIONS
Tendring DC,http://statistics.data.gov.uk/id/local-authority-district/22UN,Community Services,5360 - Sheltered Units,4718 - Fixed Communication Lines,16/11/2010,1040674-11,40.39,2108907 - Southern Communications Ltd,SOUTHERN COMMUNICATIONS
Tendring DC,http://statistics.data.gov.uk/id/local-authority-district/22UN,Community Services,5360 - Sheltered Units,4718 - Fixed Communication Lines,16/11/2010,1040674-12,30.38,2108907 - Southern Communications Ltd,SOUTHERN COMMUNICATIONS
Tendring DC,http://statistics.data.gov.uk/id/local-authority-district/22UN,Community Services,5360 - Sheltered Units,4718 - Fixed Communication Lines,16/11/2010,1040674-3,47.66,2108907 - Southern Communications Ltd,SOUTHERN COMMUNICATIONS
Tendring DC,http://statistics.data.gov.uk/id/local-authority-district/22UN,Community Services,5360 - Sheltered Units,4718 - Fixed Communication Lines,16/11/2010,1040674-4,51.84,2108907 - Southern Communications Ltd,SOUTHERN COMMUNICATIONS
Tendring DC,http://statistics.data.gov.uk/id/local-authority-district/22UN,Community Services,5360 - Sheltered Units,4718 - Fixed Communication Lines,16/11/2010,1040674-5,43.1,2108907 - Southern Communications Ltd,SOUTHERN COMMUNICATIONS
Tendring DC,http://statistics.data.gov.uk/id/local-authority-district/22UN,Community Services,5360 - Sheltered Units,4718 - Fixed Communication Lines,16/11/2010,1040674-6,38.87,2108907 - Southern Communications Ltd,SOUTHERN COMMUNICATIONS
Tendring DC,http://statistics.data.gov.uk/id/local-authority-district/22UN,Community Services,5360 - Sheltered Units,4718 - Fixed Communication Lines,16/11/2010,1040674-7,54.91,2108907 - Southern Communications Ltd,SOUTHERN COMMUNICATIONS
Tendring DC,http://statistics.data.gov.uk/id/local-authority-district/22UN,Community Services,5360 - Sheltered Units,4718 - Fixed Communication Lines,16/11/2010,1040674-8,26.06,2108907 - Southern Communications Ltd,SOUTHERN COMMUNICATIONS
Tendring DC,http://statistics.data.gov.uk/id/local-authority-district/22UN,Community Services,5360 - Sheltered Units,4718 - Fixed Communication Lines,16/11/2010,1040674-9,39.11,2108907 - Southern Communications Ltd,SOUTHERN COMMUNICATIONS
Tendring DC,http://statistics.data.gov.uk/id/local-authority-district/22UN,Community Services,6740 - Careline,1700 - Training - Courses,09/11/2010,1040482-1,643.14,2100443 - East Of England Local Government Association,TRAINING
Tendring DC,http://statistics.data.gov.uk/id/local-authority-district/22UN,Community Services,6740 - Careline,1700 - Training - Courses,26/10/2010,2077745-1,855.42,2110090 - J & J Enterprises,TSA
Tendring DC,http://statistics.data.gov.uk/id/local-authority-district/22UN,Community Services,6740 - Careline,1700 - Training - Courses,26/10/2010,2077745-2,835.2,2110090 - J & J Enterprises,TSA
Tendring DC,http://statistics.data.gov.uk/id/local-authority-district/22UN,Community Services,6740 - Careline,2200 - Rents Paid,21/12/2010,1041450-1,1055.76,2106126 - Clacton Decor Ltd,REDACTED COMMERCIAL CONFIDENTIALITY
Tendring DC,http://statistics.data.gov.uk/id/local-authority-district/22UN,Community Services,6740 - Careline,3060 - Running Costs - Diesel,14/12/2010,2079088-1,539.67,2101825 - ARVAL PHH,Fuel Cards
Tendring DC,http://statistics.data.gov.uk/id/local-authority-district/22UN,Community Services,6740 - Careline,4040 - Equipment & Tools,02/11/2010,2077790-1,2668,2101419 - Tunstall Healthcare (UK) Ltd,Pendents
Tendring DC,http://statistics.data.gov.uk/id/local-authority-district/22UN,Community Services,6740 - Careline,4710 - Telephones - Charges,02/11/2010,1040382-1,775.68,2108907 - Southern Communications Ltd,SOUTHERN COMMUNICATIONS
Tendring DC,http://statistics.data.gov.uk/id/local-authority-district/22UN,Community Services,6740 - Careline,4710 - Telephones - Charges,16/11/2010,1040674-1,802.07,2108907 - Southern Communications Ltd,SOUTHERN COMMUNICATIONS
Tendring DC,http://statistics.data.gov.uk/id/local-authority-district/22UN,Community Services,6740 - Careline,4710 - Telephones - Charges,21/12/2010,2079319-1,775.25,2108907 - Southern Communications Ltd,Southern Comms
Tendring DC,http://statistics.data.gov.uk/id/local-authority-district/22UN,Community Services,6740 - Careline,4718 - Fixed Communication Lines,21/12/2010,2079319-2,110,2108907 - Southern Communications Ltd,Southern Comms
Tendring DC,http://statistics.data.gov.uk/id/local-authority-district/22UN,Community Services,6740 - Careline,5160 - Advertising,05/10/2010,2076997-1,595,2105960 - Atlas UK Ltd,Advertisement
Tendring DC,http://statistics.data.gov.uk/id/local-authority-district/22UN,Community Services,6910 - Equality & Diversity,4900 - Grants,05/10/2010,2077002-1,6800,2107403 - Disabled Go,GB DGO 10/11
Tendring DC,http://statistics.data.gov.uk/id/local-authority-district/22UN,Community Services,6970 - C &D - Tackling Anti Social Behaviour,4900 - Grants,16/11/2010,1040675-1,6000,2108848 - North Essex Partnership NHS FT,SAAIF PROJECT
Tendring DC,http://statistics.data.gov.uk/id/local-authority-district/22UN,Community Services,6970 - C &D - Tackling Anti Social Behaviour,4900 - Grants,26/10/2010,2077580-1,4038.75,2102849 - Nacro Community Enterprise Ltd,REDACTED PERSONAL DATA
Tendring DC,http://statistics.data.gov.uk/id/local-authority-district/22UN,Community Services,7000 - CCTV,4400 - Maintenance Under Service Agreements,05/10/2010,2077001-1,650,2100546 - GCS Alarms,Replace Faulty Power
Tendring DC,http://statistics.data.gov.uk/id/local-authority-district/22UN,Community Services,7000 - CCTV,4400 - Maintenance Under Service Agreements,05/10/2010,2077001-2,4140,2100546 - GCS Alarms,Replace Faulty Power
Tendring DC,http://statistics.data.gov.uk/id/local-authority-district/22UN,Community Services,7000 - CCTV,4718 - Fixed Communication Lines,02/11/2010,1040382-2,110,2108907 - Southern Communications Ltd,SOUTHERN COMMUNICATIONS
Tendring DC,http://statistics.data.gov.uk/id/local-authority-district/22UN,Community Services,7000 - CCTV,4718 - Fixed Communication Lines,16/11/2010,1040674-2,110,2108907 - Southern Communications Ltd,SOUTHERN COMMUNICATIONS
Tendring DC,http://statistics.data.gov.uk/id/local-authority-district/22UN,Community Services,7020 - SSCF - Crime Reduction,4900 - Grants,16/11/2010,1040675-2,3000,2108848 - North Essex Partnership NHS FT,SAAIF PROJECT
Tendring DC,http://statistics.data.gov.uk/id/local-authority-district/22UN,Community Services,7020 - SSCF - Crime Reduction,4900 - Grants,05/10/2010,2076999-1,833,2100498 - Essex County Council,Domestic Violence
Tendring DC,http://statistics.data.gov.uk/id/local-authority-district/22UN,Community Services,7020 - SSCF - Crime Reduction,4900 - Grants,05/10/2010,2077000-1,3286,2100530 - Essex Probation,Funding - Womens Safety
Tendring DC,http://statistics.data.gov.uk/id/local-authority-district/22UN,Community Services,7020 - SSCF - Crime Reduction,4900 - Grants,26/10/2010,2077581-1,4846.5,2102849 - Nacro Community Enterprise Ltd,REDACTED PERSONAL DATA
Tendring DC,http://statistics.data.gov.uk/id/local-authority-district/22UN,Community Services,7020 - SSCF - Crime Reduction,4900 - Grants,26/10/2010,2077582-1,9000,2110326 - Open Road Visions Ltd,Keep Worker
Tendring DC,http://statistics.data.gov.uk/id/local-authority-district/22UN,Community Services,7020 - SSCF - Crime Reduction,4900 - Grants,26/10/2010,2077583-1,5000,2110326 - Open Road Visions Ltd,Welfare Advisor
Tendring DC,http://statistics.data.gov.uk/id/local-authority-district/22UN,Community Services,7025 - CDRP Support,4900 - Grants,23/11/2010,2078430-1,3000,2110225 - Brightlingsea Infant School,NEE Admin Support
Tendring DC,http://statistics.data.gov.uk/id/local-authority-district/22UN,Community Services,7025 - CDRP Support,4900 - Grants,23/11/2010,2078432-1,1000.3,2104963 - Sure 24 Ltd,Electronic Purse/Mobile Alarms
Tendring DC,http://statistics.data.gov.uk/id/local-authority-district/22UN,Community Services,7025 - CDRP Support,4900 - Grants,14/12/2010,2079083-1,840,2110743 - Calver Ltd,Rethink Your Drink
Tendring DC,http://statistics.data.gov.uk/id/local-authority-district/22UN,Community Services,7030 - Crime and Disorder - Police Grant,4900 - Grants,09/11/2010,1040484-1,585,2100069 - Autoprint,DOMESTIC VIOLENCE FOLDERS
Tendring DC,http://statistics.data.gov.uk/id/local-authority-district/22UN,Community Services,7100 - Community Health/Safety,1700 - Training - Courses,02/11/2010,1040384-1,530,2103062 - Dods Parliamentary Communications Ltd,TRAINING
Tendring DC,http://statistics.data.gov.uk/id/local-authority-district/22UN,Community Services,7202 - LSP/Community Strategy (PRG Funded),4900 - Grants,09/11/2010,2078088-1,9307,2104515 - TCVS,Thriving Third Sector Coordinator
Tendring DC,http://statistics.data.gov.uk/id/local-authority-district/22UN,Community Services,7202 - LSP/Community Strategy (PRG Funded),4900 - Grants,09/11/2010,2078089-1,5003,2101542 - Volunteer Bereau for Tendring,Regular Volunteering Facility
Tendring DC,http://statistics.data.gov.uk/id/local-authority-district/22UN,Community Services,7202 - LSP/Community Strategy (PRG Funded),8110 - Contributions/Grants - ECC,14/12/2010,2079093-1,10000,2100498 - Essex County Council,Performance award grant reclaim
Tendring DC,http://statistics.data.gov.uk/id/local-authority-district/22UN,Corporate Performance,1100 - Corporate Performance,4753 - Computer - Application Software,21/12/2010,2079183-1,2650,2105573 - Inphase Limited,Inphase
Tendring DC,http://statistics.data.gov.uk/id/local-authority-district/22UN,Corporate Performance,1400 - Leisure,4300 - Printing & Stationery,07/12/2010,2078844-1,219.6,2101038 - Phoenix Software Limited,ACROBAT PRO X
Tendring DC,http://statistics.data.gov.uk/id/local-authority-district/22UN,Corporate Performance,1432 - TDC Website,4753 - Computer - Application Software,07/12/2010,2078844-3,219.6,2101038 - Phoenix Software Limited,ACROBAT PRO X
Tendring DC,http://statistics.data.gov.uk/id/local-authority-district/22UN,Corporate Performance,1432 - TDC Website,4753 - Computer - Application Software,07/12/2010,2078844-4,97.21,2101038 - Phoenix Software Limited,ACROBAT PRO X
Tendring DC,http://statistics.data.gov.uk/id/local-authority-district/22UN,Corporate Performance,1620 - Corporate Performance - IT Section,1700 - Training - Courses,01/11/2010,1040893-1,495,2100269 - Co operative Bank plc,F2SURF/SECURITY ETC
Tendring DC,http://statistics.data.gov.uk/id/local-authority-district/22UN,Corporate Performance,1620 - Corporate Performance - IT Section,1700 - Training - Courses,01/11/2010,1040893-4,125,2100269 - Co operative Bank plc,F2SURF/SECURITY ETC
Tendring DC,http://statistics.data.gov.uk/id/local-authority-district/22UN,Corporate Performance,1620 - Corporate Performance - IT Section,4355 - Books & Periodicals,04/10/2010,1040359-2,11.04,2100269 - Co operative Bank plc,F2SURG/IPAD/MOUSE
Tendring DC,http://statistics.data.gov.uk/id/local-authority-district/22UN,Corporate Performance,1760 - IT Direct Service Costs,4597 - Hired Services - Payments to Contractors,21/12/2010,1041399-1,1800,2106707 - H2O Networks Ltd,FIBRE TEST & MARKING
Tendring DC,http://statistics.data.gov.uk/id/local-authority-district/22UN,Corporate Performance,1760 - IT Direct Service Costs,4597 - Hired Services - Payments to Contractors,21/12/2010,1041510-1,-620,2106707 - H2O Networks Ltd,FIBRE TEST & MARKING
Tendring DC,http://statistics.data.gov.uk/id/local-authority-district/22UN,Corporate Performance,1760 - IT Direct Service Costs,4715 - Data Communication Charge,04/10/2010,1040359-4,38.45,2100269 - Co operative Bank plc,F2SURG/IPAD/MOUSE
Tendring DC,http://statistics.data.gov.uk/id/local-authority-district/22UN,Corporate Performance,1760 - IT Direct Service Costs,4715 - Data Communication Charge,01/11/2010,1040893-10,38.45,2100269 - Co operative Bank plc,F2SURF/SECURITY ETC
Tendring DC,http://statistics.data.gov.uk/id/local-authority-district/22UN,Corporate Performance,1760 - IT Direct Service Costs,4715 - Data Communication Charge,14/12/2010,1041195-1,2464.29,2100168 - British Telecommunications plc,36083080
Tendring DC,http://statistics.data.gov.uk/id/local-authority-district/22UN,Corporate Performance,1760 - IT Direct Service Costs,4715 - Data Communication Charge,14/12/2010,1041195-2,45,2100168 - British Telecommunications plc,36083080
Tendring DC,http://statistics.data.gov.uk/id/local-authority-district/22UN,Corporate Performance,1760 - IT Direct Service Costs,4715 - Data Communication Charge,19/10/2010,2077466-1,3672,2100922 - Micrologic UK Limited,Backup Internet @ Weeley
Tendring DC,http://statistics.data.gov.uk/id/local-authority-district/22UN,Corporate Performance,1760 - IT Direct Service Costs,4715 - Data Communication Charge,19/10/2010,2077468-1,4395,2109946 - Managed Communications Ltd,100Mb Leased Line
Tendring DC,http://statistics.data.gov.uk/id/local-authority-district/22UN,Corporate Performance,1760 - IT Direct Service Costs,4715 - Data Communication Charge,07/12/2010,2078843-1,1950,2106707 - H2O Networks Ltd,FIBRE CREM
Tendring DC,http://statistics.data.gov.uk/id/local-authority-district/22UN,Corporate Performance,1760 - IT Direct Service Costs,4751 - Hardware & Service Maintenance,04/10/2010,1040359-1,50,2100269 - Co operative Bank plc,F2SURG/IPAD/MOUSE
Tendring DC,http://statistics.data.gov.uk/id/local-authority-district/22UN,Corporate Performance,1760 - IT Direct Service Costs,4751 - Hardware & Service Maintenance,04/10/2010,1040359-6,32.7,2100269 - Co operative Bank plc,F2SURG/IPAD/MOUSE
Tendring DC,http://statistics.data.gov.uk/id/local-authority-district/22UN,Corporate Performance,1760 - IT Direct Service Costs,4751 - Hardware & Service Maintenance,04/10/2010,1040359-7,699.03,2100269 - Co operative Bank plc,F2SURG/IPAD/MOUSE
Tendring DC,http://statistics.data.gov.uk/id/local-authority-district/22UN,Corporate Performance,1760 - IT Direct Service Costs,4751 - Hardware & Service Maintenance,01/11/2010,1040893-6,38.93,2100269 - Co operative Bank plc,F2SURF/SECURITY ETC
Tendring DC,http://statistics.data.gov.uk/id/local-authority-district/22UN,Corporate Performance,1760 - IT Direct Service Costs,4751 - Hardware & Service Maintenance,01/11/2010,1040893-8,19.8,2100269 - Co operative Bank plc,F2SURF/SECURITY ETC
Tendring DC,http://statistics.data.gov.uk/id/local-authority-district/22UN,Corporate Performance,1760 - IT Direct Service Costs,4753 - Computer - Application Software,02/11/2010,1040323-1,4241.25,2103677 - MIS Corporate Defence Solutions,CLEARSWIFT-EMAIL G'WAY
Tendring DC,http://statistics.data.gov.uk/id/local-authority-district/22UN,Corporate Performance,1760 - IT Direct Service Costs,4753 - Computer - Application Software,02/11/2010,1040324-1,4648,2103677 - MIS Corporate Defence Solutions,CLEARSWIFT WEB GATEWAY
Tendring DC,http://statistics.data.gov.uk/id/local-authority-district/22UN,Corporate Performance,1760 - IT Direct Service Costs,4753 - Computer - Application Software,01/11/2010,1040893-2,9.99,2100269 - Co operative Bank plc,F2SURF/SECURITY ETC
Tendring DC,http://statistics.data.gov.uk/id/local-authority-district/22UN,Corporate Performance,1760 - IT Direct Service Costs,4753 - Computer - Application Software,01/11/2010,1040893-3,17.97,2100269 - Co operative Bank plc,F2SURF/SECURITY ETC
Tendring DC,http://statistics.data.gov.uk/id/local-authority-district/22UN,Corporate Performance,1760 - IT Direct Service Costs,4753 - Computer - Application Software,01/11/2010,1040893-7,2.39,2100269 - Co operative Bank plc,F2SURF/SECURITY ETC
Tendring DC,http://statistics.data.gov.uk/id/local-authority-district/22UN,Corporate Performance,1760 - IT Direct Service Costs,4753 - Computer - Application Software,30/11/2010,1040926-1,1403.75,2106860 - Avanquest UK Ltd,TEXT MESSAGING SUPPORT
Tendring DC,http://statistics.data.gov.uk/id/local-authority-district/22UN,Corporate Performance,1760 - IT Direct Service Costs,4880 - Subscriptions Paid,14/12/2010,1041199-1,890,2101296 - SOCITM Limited,INSIGHT SUBS
Tendring DC,http://statistics.data.gov.uk/id/local-authority-district/22UN,Corporate Performance,1760 - IT Direct Service Costs,6320 - IT Services Agreements Payment,12/10/2010,2077275-1,47464.11,2100894 - Liberata UK Ltd,ICT Contract - Oct 2010
Tendring DC,http://statistics.data.gov.uk/id/local-authority-district/22UN,Corporate Performance,1760 - IT Direct Service Costs,6320 - IT Services Agreements Payment,09/11/2010,2078112-1,47464.11,2100894 - Liberata UK Ltd,ICT Contract Nov 2010
Tendring DC,http://statistics.data.gov.uk/id/local-authority-district/22UN,Corporate Performance,1760 - IT Direct Service Costs,6320 - IT Services Agreements Payment,14/12/2010,2079168-1,47464.11,2100894 - Liberata UK Ltd,
Tendring DC,http://statistics.data.gov.uk/id/local-authority-district/22UN,Corporate Performance,1760 - IT Direct Service Costs,6325 - Additional ICT Services,05/10/2010,1039825-1,1200,2107374 - GSS Professional Services,TERMINAL SERVER INST
Tendring DC,http://statistics.data.gov.uk/id/local-authority-district/22UN,Corporate Performance,1760 - IT Direct Service Costs,6325 - Additional ICT Services,05/10/2010,1039826-1,1200,2107305 - Planet IT Ltd,KASPERSKY INTERNET
Tendring DC,http://statistics.data.gov.uk/id/local-authority-district/22UN,Corporate Performance,1760 - IT Direct Service Costs,6325 - Additional ICT Services,30/11/2010,1040927-1,9970.57,2103677 - MIS Corporate Defence Solutions,WIRELESS S'WARE/SUPPORT
Tendring DC,http://statistics.data.gov.uk/id/local-authority-district/22UN,Corporate Performance,1760 - IT Direct Service Costs,6325 - Additional ICT Services,30/11/2010,1040928-1,7648.6,2103677 - MIS Corporate Defence Solutions,WIRELESS POINTS
Tendring DC,http://statistics.data.gov.uk/id/local-authority-district/22UN,Corporate Performance,1760 - IT Direct Service Costs,6325 - Additional ICT Services,12/10/2010,2077213-1,6650,2103677 - MIS Corporate Defence Solutions,Clearswift Consult
Tendring DC,http://statistics.data.gov.uk/id/local-authority-district/22UN,Corporate Performance,1760 - IT Direct Service Costs,6325 - Additional ICT Services,19/10/2010,2077470-1,6187.2,2100782 - Insight Direct (uk) Limited,V M Ware/Netapp Training
Tendring DC,http://statistics.data.gov.uk/id/local-authority-district/22UN,Corporate Performance,1930 - Asset Management,4460 - Legal & Professional Expenses,19/10/2010,2077463-1,3777.75,2104823 - NPS South East Ltd,NPS July Sept 10
Tendring DC,http://statistics.data.gov.uk/id/local-authority-district/22UN,Corporate Performance,1930 - Asset Management,4460 - Legal & Professional Expenses,19/10/2010,2077464-1,1057.5,2105829 - Prettys Solicitors,Berthing Agreement
Tendring DC,http://statistics.data.gov.uk/id/local-authority-district/22UN,Corporate Performance,1930 - Asset Management,4460 - Legal & Professional Expenses,23/11/2010,2078593-1,2494.5,2105829 - Prettys Solicitors,Prettys
Tendring DC,http://statistics.data.gov.uk/id/local-authority-district/22UN,Corporate Performance,1930 - Asset Management,4460 - Legal & Professional Expenses,23/11/2010,2078594-1,1455.03,2109933 - Wilson & Co Clients Premium Account,Seabed @ Harwich
Tendring DC,http://statistics.data.gov.uk/id/local-authority-district/22UN,Corporate Performance,1930 - Asset Management,4500 - Consultancy Fees,02/11/2010,1040326-1,960,2106643 - Idox Software Ltd,UNIFORM TRAINING
Tendring DC,http://statistics.data.gov.uk/id/local-authority-district/22UN,Corporate Performance,1930 - Asset Management,4753 - Computer - Application Software,07/12/2010,2078844-2,219.6,2101038 - Phoenix Software Limited,ACROBAT PRO X
Tendring DC,http://statistics.data.gov.uk/id/local-authority-district/22UN,Corporate Performance,1930 - Asset Management,4880 - Subscriptions Paid,26/10/2010,1040208-1,750,2109394 - CIPFA Business Ltd,AM NETWORK 10/11
Tendring DC,http://statistics.data.gov.uk/id/local-authority-district/22UN,Corporate Performance,5800 - Brightlingsea Sports Centre,4597 - Hired Services - Payments to Contractors,04/10/2010,1040359-3,15,2100269 - Co operative Bank plc,F2SURG/IPAD/MOUSE
Tendring DC,http://statistics.data.gov.uk/id/local-authority-district/22UN,Corporate Performance,5800 - Brightlingsea Sports Centre,4597 - Hired Services - Payments to Contractors,01/11/2010,1040893-9,15,2100269 - Co operative Bank plc,F2SURF/SECURITY ETC
Tendring DC,http://statistics.data.gov.uk/id/local-authority-district/22UN,Corporate Performance,5800 - Brightlingsea Sports Centre,4710 - Telephones - Charges,01/11/2010,1040893-11,67.5,2100269 - Co operative Bank plc,F2SURF/SECURITY ETC
Tendring DC,http://statistics.data.gov.uk/id/local-authority-district/22UN,Corporate Performance,6040 - Misc Seafront Activities,4597 - Hired Services - Payments to Contractors,16/11/2010,2078390-1,4746,2101578 - Micraft,Micraft
Tendring DC,http://statistics.data.gov.uk/id/local-authority-district/22UN,Corporate Performance,6040 - Misc Seafront Activities,4597 - Hired Services - Payments to Contractors,16/11/2010,2078390-2,254,2101578 - Micraft,Micraft
Tendring DC,http://statistics.data.gov.uk/id/local-authority-district/22UN,Corporate Performance,6040 - Misc Seafront Activities,4597 - Hired Services - Payments to Contractors,16/11/2010,7102857-1,1736,2101578 - Micraft,Micraft
Tendring DC,http://statistics.data.gov.uk/id/local-authority-district/22UN,Corporate Performance,6040 - Misc Seafront Activities,4597 - Hired Services - Payments to Contractors,16/11/2010,7102857-2,3264,2101578 - Micraft,Micraft
Tendring DC,http://statistics.data.gov.uk/id/local-authority-district/22UN,Corporate Performance,6040 - Misc Seafront Activities,5462 - Dovercourt Skating Rink,30/11/2010,1040954-1,5000,2101578 - Micraft,MICRAFT
Tendring DC,http://statistics.data.gov.uk/id/local-authority-district/22UN,Corporate Performance,6040 - Misc Seafront Activities,5462 - Dovercourt Skating Rink,23/11/2010,2078490-1,5000,2101578 - Micraft,Micraft
Tendring DC,http://statistics.data.gov.uk/id/local-authority-district/22UN,Corporate Performance,6040 - Misc Seafront Activities,5462 - Dovercourt Skating Rink,07/12/2010,2078864-1,5000,2101578 - Micraft,Micraft
Tendring DC,http://statistics.data.gov.uk/id/local-authority-district/22UN,Corporate Performance,6040 - Misc Seafront Activities,5462 - Dovercourt Skating Rink,14/12/2010,2078958-1,5000,2101578 - Micraft,Micraft
Tendring DC,http://statistics.data.gov.uk/id/local-authority-district/22UN,Corporate Performance,6040 - Misc Seafront Activities,5600 - Dovercourt Seafront Improvements,26/10/2010,1040128-1,1160,2101244 - Shairwood Contracts Ltd,YACHT POND
Tendring DC,http://statistics.data.gov.uk/id/local-authority-district/22UN,Corporate Performance,6620 - Corporate Management - General,5190 - Bank Commission Charges,04/10/2010,1040359-5,2,2100269 - Co operative Bank plc,F2SURG/IPAD/MOUSE
Tendring DC,http://statistics.data.gov.uk/id/local-authority-district/22UN,Corporate Performance,6620 - Corporate Management - General,5190 - Bank Commission Charges,01/11/2010,1040893-12,2,2100269 - Co operative Bank plc,F2SURF/SECURITY ETC
Tendring DC,http://statistics.data.gov.uk/id/local-authority-district/22UN,Corporate Performance,C262 - Relocation of Careline,C200 - Main Contractor,26/10/2010,1040129-1,875,2101187 - Roalco Limited,OLD CARELINE OFFICE
Tendring DC,http://statistics.data.gov.uk/id/local-authority-district/22UN,Corporate Performance,C262 - Relocation of Careline,C200 - Main Contractor,14/12/2010,1041219-1,847,REDACTED PERSONAL DATA,REDACTED PERSONAL DATA
Tendring DC,http://statistics.data.gov.uk/id/local-authority-district/22UN,Corporate Performance,C262 - Relocation of Careline,C200 - Main Contractor,07/12/2010,2078885-1,1141,2110791 - Woodfellows LLP,Woodfellows
Tendring DC,http://statistics.data.gov.uk/id/local-authority-district/22UN,Corporate Performance,C350 - Hardware rolling replacement programme,C275 - Hardware,26/10/2010,1040228-1,605.19,2100782 - Insight Direct (uk) Limited,MONITORS
Tendring DC,http://statistics.data.gov.uk/id/local-authority-district/22UN,Corporate Performance,C350 - Hardware rolling replacement programme,C275 - Hardware,16/11/2010,1040704-1,1043.26,2100872 - Laptopshop I.T Ltd,LAPTOP X 2
Tendring DC,http://statistics.data.gov.uk/id/local-authority-district/22UN,Corporate Performance,C350 - Hardware rolling replacement programme,C275 - Hardware,16/11/2010,1040707-1,1166.14,2100872 - Laptopshop I.T Ltd,LAPTOP/CASE/DOCK
Tendring DC,http://statistics.data.gov.uk/id/local-authority-district/22UN,Corporate Performance,C350 - Hardware rolling replacement programme,C275 - Hardware,01/11/2010,1040893-5,780.93,2100269 - Co operative Bank plc,F2SURF/SECURITY ETC
Tendring DC,http://statistics.data.gov.uk/id/local-authority-district/22UN,Corporate Performance,C350 - Hardware rolling replacement programme,C275 - Hardware,09/11/2010,2077910-1,912.39,2100872 - Laptopshop I.T Ltd,Laptop VPCS12V9E/B
Tendring DC,http://statistics.data.gov.uk/id/local-authority-district/22UN,Corporate Performance,C350 - Hardware rolling replacement programme,C275 - Hardware,09/11/2010,2077911-1,1959.94,2101818 - Misco,Laptops x 5
Tendring DC,http://statistics.data.gov.uk/id/local-authority-district/22UN,Corporate Performance,C373 - Communications,C275 - Hardware,14/12/2010,1041200-1,3434.73,2110158 - Bechtle Direct Ltd,SWITCH
Tendring DC,http://statistics.data.gov.uk/id/local-authority-district/22UN,Corporate Performance,C373 - Communications,C275 - Hardware,21/12/2010,1041318-1,514.37,2100782 - Insight Direct (uk) Limited,SWITHCES (POE)
Tendring DC,http://statistics.data.gov.uk/id/local-authority-district/22UN,Corporate Performance,C373 - Communications,C275 - Hardware,23/11/2010,2078467-1,3569.95,2110158 - Bechtle Direct Ltd,Switch HP
Tendring DC,http://statistics.data.gov.uk/id/local-authority-district/22UN,Corporate Performance,C387 - Server Upgrade and Maintenance,C275 - Hardware,12/10/2010,2077211-1,6475.95,2102545 - Dell Corporation Ltd,Server R710
Tendring DC,http://statistics.data.gov.uk/id/local-authority-district/22UN,Corporate Performance,C387 - Server Upgrade and Maintenance,C275 - Hardware,09/11/2010,2077916-1,7374.01,2110623 - Midland Computer Services Ltd,Server Dell R710
Tendring DC,http://statistics.data.gov.uk/id/local-authority-district/22UN,Corporate Performance,C426 - Remote Working Pilot,C276 - Licences for Software,26/10/2010,1040231-1,9449.01,2101038 - Phoenix Software Limited,VMWARE VIEW
Tendring DC,http://statistics.data.gov.uk/id/local-authority-district/22UN,Corporate Performance,C440 - Implementation of Virtualisation technology,C275 - Hardware,12/10/2010,2077214-1,4674.26,2101038 - Phoenix Software Limited,V M Ware VSphere
Tendring DC,http://statistics.data.gov.uk/id/local-authority-district/22UN,Environmental Services,1060 - Environmental Services,1700 - Training - Courses,26/10/2010,2077726-1,1050,2101953 - Colchester Institute Enterprises Ltd,Noise Course Colch Ins
Tendring DC,http://statistics.data.gov.uk/id/local-authority-district/22UN,Environmental Services,1060 - Environmental Services,1700 - Training - Courses,26/10/2010,2077726-2,180,2101953 - Colchester Institute Enterprises Ltd,Noise Course Colch Ins
Tendring DC,http://statistics.data.gov.uk/id/local-authority-district/22UN,Environmental Services,1060 - Environmental Services,4400 - Maintenance Under Service Agreements,02/11/2010,2077825-1,595.49,2101090 - Ricoh UK Ltd,Ricoh
Tendring DC,http://statistics.data.gov.uk/id/local-authority-district/22UN,Environmental Services,1060 - Environmental Services,4710 - Telephones - Charges,02/11/2010,2077749-1,616.64,2101522 - Vodafone Corporate,Vodafone
Tendring DC,http://statistics.data.gov.uk/id/local-authority-district/22UN,Environmental Services,1060 - Environmental Services,5500 - Miscellaneous Expenses,30/11/2010,2078643-1,952.5,2107321 - Campbell Associates,Campbell Associates
Tendring DC,http://statistics.data.gov.uk/id/local-authority-district/22UN,Environmental Services,1780 - Health & Safety,4597 - Hired Services - Payments to Contractors,26/10/2010,1040285-1,850,2107764 - Specsavers Corporate Eyecare Ltd,SPECSAVERS-CORPORATE EYECARE
Tendring DC,http://statistics.data.gov.uk/id/local-authority-district/22UN,Environmental Services,4590 - HMO Projects,4500 - Consultancy Fees,30/11/2010,2078648-1,7377.29,2110639 - University of Essex,REDACTED PERSONAL DATA
Tendring DC,http://statistics.data.gov.uk/id/local-authority-district/22UN,Environmental Services,4640 - Port Health,5500 - Miscellaneous Expenses,26/10/2010,2077724-1,1850,2101322 - Suffolk Coastal District Council,CI Manifest Checks
Tendring DC,http://statistics.data.gov.uk/id/local-authority-district/22UN,Environmental Services,4720 - Dog Warden,4080 - Materials & Consumables,21/12/2010,2079199-1,790,2100482 - Earth Anchors Ltd,Earth Anchor - Bin
Tendring DC,http://statistics.data.gov.uk/id/local-authority-district/22UN,Environmental Services,4720 - Dog Warden,6300 - Contract Payment,19/10/2010,2077551-1,4875.06,2100027 - Animal Wardens Ltd,Underpayment
Tendring DC,http://statistics.data.gov.uk/id/local-authority-district/22UN,Environmental Services,4720 - Dog Warden,6300 - Contract Payment,19/10/2010,2077552-1,4528.36,2100027 - Animal Wardens Ltd,Confee Sept 10 Dogs
Tendring DC,http://statistics.data.gov.uk/id/local-authority-district/22UN,Environmental Services,4720 - Dog Warden,6300 - Contract Payment,09/11/2010,2078109-1,4528.36,2100027 - Animal Wardens Ltd,Confee Dogs Oct 10
Tendring DC,http://statistics.data.gov.uk/id/local-authority-district/22UN,Environmental Services,4720 - Dog Warden,6300 - Contract Payment,14/12/2010,2079163-1,4528.36,2100027 - Animal Wardens Ltd,Confee Dogs Nov 10
Tendring DC,http://statistics.data.gov.uk/id/local-authority-district/22UN,Environmental Services,4770 - Fly Tipping,4040 - Equipment & Tools,16/11/2010,1040664-1,8000.01,2107743 - Wireless CCTV Ltd,CCTV
Tendring DC,http://statistics.data.gov.uk/id/local-authority-district/22UN,Environmental Services,4780 - Rodent & Pest Control,6300 - Contract Payment,30/11/2010,1041015-1,1937.5,2103418 - Command Pest Control Limited T/A Pestclear,CONFEE OCT 10 PESTCLEAR
Tendring DC,http://statistics.data.gov.uk/id/local-authority-district/22UN,Environmental Services,4780 - Rodent & Pest Control,6300 - Contract Payment,12/10/2010,2077272-1,1982.5,2103418 - Command Pest Control Limited T/A Pestclear,Confee Aug 10 P/Clear
Tendring DC,http://statistics.data.gov.uk/id/local-authority-district/22UN,Environmental Services,4780 - Rodent & Pest Control,6300 - Contract Payment,26/10/2010,2077687-1,1937.5,2103418 - Command Pest Control Limited T/A Pestclear,Confee Sept 10 PClear
Tendring DC,http://statistics.data.gov.uk/id/local-authority-district/22UN,Environmental Services,4820 - Public Conveniences,2100 - Building Repairs,30/11/2010,1041012-1,1009.23,REDACTED COMMERCIAL CONFIDENTIALITY,WEEK B
Tendring DC,http://statistics.data.gov.uk/id/local-authority-district/22UN,Environmental Services,4820 - Public Conveniences,2100 - Building Repairs,30/11/2010,1041012-2,714.78,REDACTED COMMERCIAL CONFIDENTIALITY,WEEK B
Tendring DC,http://statistics.data.gov.uk/id/local-authority-district/22UN,Environmental Services,4820 - Public Conveniences,2100 - Building Repairs,30/11/2010,1041013-1,164.08,REDACTED COMMERCIAL CONFIDENTIALITY,WEEK A
Tendring DC,http://statistics.data.gov.uk/id/local-authority-district/22UN,Environmental Services,4820 - Public Conveniences,2100 - Building Repairs,30/11/2010,1041013-2,717.51,REDACTED COMMERCIAL CONFIDENTIALITY,WEEK A
Tendring DC,http://statistics.data.gov.uk/id/local-authority-district/22UN,Environmental Services,4820 - Public Conveniences,2100 - Building Repairs,05/10/2010,2077101-1,522.21,REDACTED COMMERCIAL CONFIDENTIALITY,Week A
Tendring DC,http://statistics.data.gov.uk/id/local-authority-district/22UN,Environmental Services,4820 - Public Conveniences,2100 - Building Repairs,05/10/2010,2077101-2,588.22,REDACTED COMMERCIAL CONFIDENTIALITY,Week A
Tendring DC,http://statistics.data.gov.uk/id/local-authority-district/22UN,Environmental Services,4820 - Public Conveniences,2100 - Building Repairs,12/10/2010,2077271-1,966.11,REDACTED COMMERCIAL CONFIDENTIALITY,Week B
Tendring DC,http://statistics.data.gov.uk/id/local-authority-district/22UN,Environmental Services,4820 - Public Conveniences,2100 - Building Repairs,12/10/2010,2077271-2,623.67,REDACTED COMMERCIAL CONFIDENTIALITY,Week B
Tendring DC,http://statistics.data.gov.uk/id/local-authority-district/22UN,Environmental Services,4820 - Public Conveniences,2100 - Building Repairs,19/10/2010,2077545-1,523.17,REDACTED COMMERCIAL CONFIDENTIALITY,Week D
Tendring DC,http://statistics.data.gov.uk/id/local-authority-district/22UN,Environmental Services,4820 - Public Conveniences,2100 - Building Repairs,19/10/2010,2077545-2,527.16,REDACTED COMMERCIAL CONFIDENTIALITY,Week D
Tendring DC,http://statistics.data.gov.uk/id/local-authority-district/22UN,Environmental Services,4820 - Public Conveniences,2100 - Building Repairs,19/10/2010,2077546-1,262.5,REDACTED COMMERCIAL CONFIDENTIALITY,Week C
Tendring DC,http://statistics.data.gov.uk/id/local-authority-district/22UN,Environmental Services,4820 - Public Conveniences,2100 - Building Repairs,19/10/2010,2077546-2,1228.14,REDACTED COMMERCIAL CONFIDENTIALITY,Week C
Tendring DC,http://statistics.data.gov.uk/id/local-authority-district/22UN,Environmental Services,4820 - Public Conveniences,2100 - Building Repairs,02/11/2010,2077796-1,4325,2105132 - Arrow Heating,West Greensward
Tendring DC,http://statistics.data.gov.uk/id/local-authority-district/22UN,Environmental Services,4820 - Public Conveniences,2100 - Building Repairs,02/11/2010,2077796-2,16674,2105132 - Arrow Heating,West Greensward
Tendring DC,http://statistics.data.gov.uk/id/local-authority-district/22UN,Environmental Services,4820 - Public Conveniences,2100 - Building Repairs,02/11/2010,2077797-1,975,2105132 - Arrow Heating,West Greensward
Tendring DC,http://statistics.data.gov.uk/id/local-authority-district/22UN,Environmental Services,4820 - Public Conveniences,2100 - Building Repairs,02/11/2010,2077797-2,4421,2105132 - Arrow Heating,West Greensward
Tendring DC,http://statistics.data.gov.uk/id/local-authority-district/22UN,Environmental Services,4820 - Public Conveniences,2100 - Building Repairs,09/11/2010,2077929-1,2409.5,2108384 - DC Drains & Plumbing Services,Seasonal Change Work
Tendring DC,http://statistics.data.gov.uk/id/local-authority-district/22UN,Environmental Services,4820 - Public Conveniences,2100 - Building Repairs,09/11/2010,2078108-1,468.25,REDACTED COMMERCIAL CONFIDENTIALITY,Week B
Tendring DC,http://statistics.data.gov.uk/id/local-authority-district/22UN,Environmental Services,4820 - Public Conveniences,2100 - Building Repairs,09/11/2010,2078108-2,467.24,REDACTED COMMERCIAL CONFIDENTIALITY,Week B
Tendring DC,http://statistics.data.gov.uk/id/local-authority-district/22UN,Environmental Services,4820 - Public Conveniences,2100 - Building Repairs,16/11/2010,2078363-1,69.36,REDACTED COMMERCIAL CONFIDENTIALITY,Week C
Tendring DC,http://statistics.data.gov.uk/id/local-authority-district/22UN,Environmental Services,4820 - Public Conveniences,2100 - Building Repairs,16/11/2010,2078363-2,734.08,REDACTED COMMERCIAL CONFIDENTIALITY,Week C
Tendring DC,http://statistics.data.gov.uk/id/local-authority-district/22UN,Environmental Services,4820 - Public Conveniences,2100 - Building Repairs,23/11/2010,2078579-1,1464.23,REDACTED COMMERCIAL CONFIDENTIALITY,Seasonal Closures
Tendring DC,http://statistics.data.gov.uk/id/local-authority-district/22UN,Environmental Services,4820 - Public Conveniences,2100 - Building Repairs,23/11/2010,2078580-1,281.77,REDACTED COMMERCIAL CONFIDENTIALITY,Week D
Tendring DC,http://statistics.data.gov.uk/id/local-authority-district/22UN,Environmental Services,4820 - Public Conveniences,2100 - Building Repairs,23/11/2010,2078580-2,274.48,REDACTED COMMERCIAL CONFIDENTIALITY,Week D
Tendring DC,http://statistics.data.gov.uk/id/local-authority-district/22UN,Environmental Services,4820 - Public Conveniences,2100 - Building Repairs,14/12/2010,2079164-1,217.49,REDACTED COMMERCIAL CONFIDENTIALITY,Week C
Tendring DC,http://statistics.data.gov.uk/id/local-authority-district/22UN,Environmental Services,4820 - Public Conveniences,2100 - Building Repairs,14/12/2010,2079164-2,393.32,REDACTED COMMERCIAL CONFIDENTIALITY,Week C
Tendring DC,http://statistics.data.gov.uk/id/local-authority-district/22UN,Environmental Services,4820 - Public Conveniences,2100 - Building Repairs,14/12/2010,2079165-1,451.08,REDACTED COMMERCIAL CONFIDENTIALITY,
Tendring DC,http://statistics.data.gov.uk/id/local-authority-district/22UN,Environmental Services,4820 - Public Conveniences,2100 - Building Repairs,14/12/2010,2079165-2,580.61,REDACTED COMMERCIAL CONFIDENTIALITY,
Tendring DC,http://statistics.data.gov.uk/id/local-authority-district/22UN,Environmental Services,4820 - Public Conveniences,2304 - Energy Costs - Electricity,21/12/2010,1041140-1,6836.76,2100197 - British Gas Trading Ltd,B'GAS SEPT ELECT
Tendring DC,http://statistics.data.gov.uk/id/local-authority-district/22UN,Environmental Services,4820 - Public Conveniences,2304 - Energy Costs - Electricity,21/12/2010,1041140-2,1877.06,2100197 - British Gas Trading Ltd,B'GAS SEPT ELECT
Tendring DC,http://statistics.data.gov.uk/id/local-authority-district/22UN,Environmental Services,4820 - Public Conveniences,2304 - Energy Costs - Electricity,21/12/2010,1041140-3,156.99,2100197 - British Gas Trading Ltd,B'GAS SEPT ELECT
Tendring DC,http://statistics.data.gov.uk/id/local-authority-district/22UN,Environmental Services,4820 - Public Conveniences,2304 - Energy Costs - Electricity,21/12/2010,1041140-5,-7874.75,2100197 - British Gas Trading Ltd,B'GAS SEPT ELECT
Tendring DC,http://statistics.data.gov.uk/id/local-authority-district/22UN,Environmental Services,4820 - Public Conveniences,2304 - Energy Costs - Electricity,21/12/2010,1041140-6,-5751.31,2100197 - British Gas Trading Ltd,B'GAS SEPT ELECT
Tendring DC,http://statistics.data.gov.uk/id/local-authority-district/22UN,Environmental Services,4820 - Public Conveniences,2304 - Energy Costs - Electricity,21/12/2010,1041140-7,-2774.28,2100197 - British Gas Trading Ltd,B'GAS SEPT ELECT
Tendring DC,http://statistics.data.gov.uk/id/local-authority-district/22UN,Environmental Services,4820 - Public Conveniences,2304 - Energy Costs - Electricity,21/12/2010,1041513-1,2153.58,2100197 - British Gas Trading Ltd,MULTI AUG 09 B/GAS
Tendring DC,http://statistics.data.gov.uk/id/local-authority-district/22UN,Environmental Services,4820 - Public Conveniences,2304 - Energy Costs - Electricity,21/12/2010,1041513-2,5481.39,2100197 - British Gas Trading Ltd,MULTI AUG 09 B/GAS
Tendring DC,http://statistics.data.gov.uk/id/local-authority-district/22UN,Environmental Services,4820 - Public Conveniences,2304 - Energy Costs - Electricity,21/12/2010,1041513-3,-310.39,2100197 - British Gas Trading Ltd,MULTI AUG 09 B/GAS
Tendring DC,http://statistics.data.gov.uk/id/local-authority-district/22UN,Environmental Services,4820 - Public Conveniences,2304 - Energy Costs - Electricity,21/12/2010,1041513-4,-618.95,2100197 - British Gas Trading Ltd,MULTI AUG 09 B/GAS
Tendring DC,http://statistics.data.gov.uk/id/local-authority-district/22UN,Environmental Services,4820 - Public Conveniences,2304 - Energy Costs - Electricity,21/12/2010,1041514-1,3148.54,2100197 - British Gas Trading Ltd,MULTI MAY 09 B GAS
Tendring DC,http://statistics.data.gov.uk/id/local-authority-district/22UN,Environmental Services,4820 - Public Conveniences,2304 - Energy Costs - Electricity,21/12/2010,1041514-2,2451.08,2100197 - British Gas Trading Ltd,MULTI MAY 09 B GAS
Tendring DC,http://statistics.data.gov.uk/id/local-authority-district/22UN,Environmental Services,4820 - Public Conveniences,2304 - Energy Costs - Electricity,21/12/2010,1041514-3,-1038.45,2100197 - British Gas Trading Ltd,MULTI MAY 09 B GAS
Tendring DC,http://statistics.data.gov.uk/id/local-authority-district/22UN,Environmental Services,4820 - Public Conveniences,2304 - Energy Costs - Electricity,21/12/2010,1041515-1,2042.51,2100197 - British Gas Trading Ltd,MULTI NOV 10 B/GAS
Tendring DC,http://statistics.data.gov.uk/id/local-authority-district/22UN,Environmental Services,4820 - Public Conveniences,2304 - Energy Costs - Electricity,21/12/2010,1041515-2,903.15,2100197 - British Gas Trading Ltd,MULTI NOV 10 B/GAS
Tendring DC,http://statistics.data.gov.uk/id/local-authority-district/22UN,Environmental Services,4820 - Public Conveniences,2304 - Energy Costs - Electricity,21/12/2010,2078629-1,2905.26,2100197 - British Gas Trading Ltd,B/Gas June Elect
Tendring DC,http://statistics.data.gov.uk/id/local-authority-district/22UN,Environmental Services,4820 - Public Conveniences,2304 - Energy Costs - Electricity,21/12/2010,2078629-3,1522.33,2100197 - British Gas Trading Ltd,B/Gas June Elect
Tendring DC,http://statistics.data.gov.uk/id/local-authority-district/22UN,Environmental Services,4820 - Public Conveniences,2304 - Energy Costs - Electricity,21/12/2010,2078629-4,-416.94,2100197 - British Gas Trading Ltd,B/Gas June Elect
Tendring DC,http://statistics.data.gov.uk/id/local-authority-district/22UN,Environmental Services,4820 - Public Conveniences,2304 - Energy Costs - Electricity,21/12/2010,2078629-5,-1535.29,2100197 - British Gas Trading Ltd,B/Gas June Elect
Tendring DC,http://statistics.data.gov.uk/id/local-authority-district/22UN,Environmental Services,4820 - Public Conveniences,2304 - Energy Costs - Electricity,21/12/2010,2078881-1,2634.14,2100197 - British Gas Trading Ltd,B/Gas July Elect
Tendring DC,http://statistics.data.gov.uk/id/local-authority-district/22UN,Environmental Services,4820 - Public Conveniences,2304 - Energy Costs - Electricity,21/12/2010,2078881-2,1406.59,2100197 - British Gas Trading Ltd,B/Gas July Elect
Tendring DC,http://statistics.data.gov.uk/id/local-authority-district/22UN,Environmental Services,4820 - Public Conveniences,2304 - Energy Costs - Electricity,21/12/2010,2078881-5,-3095.24,2100197 - British Gas Trading Ltd,B/Gas July Elect
Tendring DC,http://statistics.data.gov.uk/id/local-authority-district/22UN,Environmental Services,4820 - Public Conveniences,2304 - Energy Costs - Electricity,21/12/2010,2078881-6,-113.91,2100197 - British Gas Trading Ltd,B/Gas July Elect
Tendring DC,http://statistics.data.gov.uk/id/local-authority-district/22UN,Environmental Services,4820 - Public Conveniences,2304 - Energy Costs - Electricity,21/12/2010,2078882-1,2662.92,2100197 - British Gas Trading Ltd,B/Gas Oct Elect
Tendring DC,http://statistics.data.gov.uk/id/local-authority-district/22UN,Environmental Services,4820 - Public Conveniences,2304 - Energy Costs - Electricity,21/12/2010,2078882-2,1121.24,2100197 - British Gas Trading Ltd,B/Gas Oct Elect
Tendring DC,http://statistics.data.gov.uk/id/local-authority-district/22UN,Environmental Services,4820 - Public Conveniences,2304 - Energy Costs - Electricity,21/12/2010,2078882-5,-1504.89,2100197 - British Gas Trading Ltd,B/Gas Oct Elect
Tendring DC,http://statistics.data.gov.uk/id/local-authority-district/22UN,Environmental Services,4820 - Public Conveniences,2304 - Energy Costs - Electricity,21/12/2010,2078882-6,-130.89,2100197 - British Gas Trading Ltd,B/Gas Oct Elect
Tendring DC,http://statistics.data.gov.uk/id/local-authority-district/22UN,Environmental Services,4820 - Public Conveniences,2304 - Energy Costs - Electricity,21/12/2010,2078883-1,1170.36,2100197 - British Gas Trading Ltd,B/Gas Aug Elect
Tendring DC,http://statistics.data.gov.uk/id/local-authority-district/22UN,Environmental Services,4820 - Public Conveniences,2304 - Energy Costs - Electricity,21/12/2010,2078883-2,979.53,2100197 - British Gas Trading Ltd,B/Gas Aug Elect
Tendring DC,http://statistics.data.gov.uk/id/local-authority-district/22UN,Environmental Services,4820 - Public Conveniences,2304 - Energy Costs - Electricity,21/12/2010,2078883-5,-116.69,2100197 - British Gas Trading Ltd,B/Gas Aug Elect
Tendring DC,http://statistics.data.gov.uk/id/local-authority-district/22UN,Environmental Services,4820 - Public Conveniences,2500 - Water Services - Metered,23/11/2010,1040828-1,314.57,2101318 - Veolia Water East Ltd,VEOLIA WATER QUEENSWAY
Tendring DC,http://statistics.data.gov.uk/id/local-authority-district/22UN,Environmental Services,4820 - Public Conveniences,2500 - Water Services - Metered,23/11/2010,1040830-1,497.3,2101318 - Veolia Water East Ltd,VEOLIA WATER HOLLAND GAP
Tendring DC,http://statistics.data.gov.uk/id/local-authority-district/22UN,Environmental Services,4820 - Public Conveniences,2500 - Water Services - Metered,19/10/2010,2077569-1,1641.68,2101318 - Veolia Water East Ltd,Veolia Water Rosemary
Tendring DC,http://statistics.data.gov.uk/id/local-authority-district/22UN,Environmental Services,4820 - Public Conveniences,2500 - Water Services - Metered,19/10/2010,2077570-1,1385.25,2101318 - Veolia Water East Ltd,Veolia Water W/Cliff
Tendring DC,http://statistics.data.gov.uk/id/local-authority-district/22UN,Environmental Services,4820 - Public Conveniences,2500 - Water Services - Metered,19/10/2010,2077571-1,1419.37,2101318 - Veolia Water East Ltd,Veolia Water W/Greensward
Tendring DC,http://statistics.data.gov.uk/id/local-authority-district/22UN,Environmental Services,4820 - Public Conveniences,2500 - Water Services - Metered,19/10/2010,2077572-1,2038.28,2101318 - Veolia Water East Ltd,Veolia Water Pier Gap
Tendring DC,http://statistics.data.gov.uk/id/local-authority-district/22UN,Environmental Services,4820 - Public Conveniences,2500 - Water Services - Metered,19/10/2010,2077575-1,380.74,2101318 - Veolia Water East Ltd,Veolia Water Gordon Rd
Tendring DC,http://statistics.data.gov.uk/id/local-authority-district/22UN,Environmental Services,4820 - Public Conveniences,2500 - Water Services - Metered,23/11/2010,2078555-1,288.68,2101318 - Veolia Water East Ltd,Veolia Lyndhurst
Tendring DC,http://statistics.data.gov.uk/id/local-authority-district/22UN,Environmental Services,4820 - Public Conveniences,2500 - Water Services - Metered,23/11/2010,2078556-1,318.3,2101318 - Veolia Water East Ltd,Veolia Water Ambleside
Tendring DC,http://statistics.data.gov.uk/id/local-authority-district/22UN,Environmental Services,4820 - Public Conveniences,2520 - Sewerage & Environmental Charges,23/11/2010,1040828-2,303.59,2101318 - Veolia Water East Ltd,VEOLIA WATER QUEENSWAY
Tendring DC,http://statistics.data.gov.uk/id/local-authority-district/22UN,Environmental Services,4820 - Public Conveniences,2520 - Sewerage & Environmental Charges,23/11/2010,1040830-2,450.89,2101318 - Veolia Water East Ltd,VEOLIA WATER HOLLAND GAP
Tendring DC,http://statistics.data.gov.uk/id/local-authority-district/22UN,Environmental Services,4820 - Public Conveniences,2520 - Sewerage & Environmental Charges,19/10/2010,2077569-2,1368.75,2101318 - Veolia Water East Ltd,Veolia Water Rosemary
Tendring DC,http://statistics.data.gov.uk/id/local-authority-district/22UN,Environmental Services,4820 - Public Conveniences,2520 - Sewerage & Environmental Charges,19/10/2010,2077570-2,1140.29,2101318 - Veolia Water East Ltd,Veolia Water W/Cliff
Tendring DC,http://statistics.data.gov.uk/id/local-authority-district/22UN,Environmental Services,4820 - Public Conveniences,2520 - Sewerage & Environmental Charges,19/10/2010,2077571-2,1169.55,2101318 - Veolia Water East Ltd,Veolia Water W/Greensward
Tendring DC,http://statistics.data.gov.uk/id/local-authority-district/22UN,Environmental Services,4820 - Public Conveniences,2520 - Sewerage & Environmental Charges,19/10/2010,2077572-2,1683.25,2101318 - Veolia Water East Ltd,Veolia Water Pier Gap
Tendring DC,http://statistics.data.gov.uk/id/local-authority-district/22UN,Environmental Services,4820 - Public Conveniences,2520 - Sewerage & Environmental Charges,19/10/2010,2077575-2,355.34,2101318 - Veolia Water East Ltd,Veolia Water Gordon Rd
Tendring DC,http://statistics.data.gov.uk/id/local-authority-district/22UN,Environmental Services,4820 - Public Conveniences,2520 - Sewerage & Environmental Charges,23/11/2010,2078555-2,282.72,2101318 - Veolia Water East Ltd,Veolia Lyndhurst
Tendring DC,http://statistics.data.gov.uk/id/local-authority-district/22UN,Environmental Services,4820 - Public Conveniences,2520 - Sewerage & Environmental Charges,23/11/2010,2078556-2,309.73,2101318 - Veolia Water East Ltd,Veolia Water Ambleside
Tendring DC,http://statistics.data.gov.uk/id/local-authority-district/22UN,Environmental Services,4820 - Public Conveniences,6300 - Contract Payment,30/11/2010,1041017-1,14098.72,2108969 - Fountains,CONFEE PUB CONS OCT 10
Tendring DC,http://statistics.data.gov.uk/id/local-authority-district/22UN,Environmental Services,4820 - Public Conveniences,6300 - Contract Payment,12/10/2010,2077270-1,558.51,2108969 - Fountains,Additional Works
Tendring DC,http://statistics.data.gov.uk/id/local-authority-district/22UN,Environmental Services,4820 - Public Conveniences,6300 - Contract Payment,12/10/2010,2077273-1,21169.26,2108969 - Fountains,Confee Aug 10
Tendring DC,http://statistics.data.gov.uk/id/local-authority-district/22UN,Environmental Services,4820 - Public Conveniences,6300 - Contract Payment,19/10/2010,2077550-1,21169.26,2108969 - Fountains,Confee Toilets Sept 10
Tendring DC,http://statistics.data.gov.uk/id/local-authority-district/22UN,Environmental Services,4820 - Public Conveniences,6300 - Contract Payment,16/11/2010,2078295-1,6827.4,2108969 - Fountains,Confee Toilets
Tendring DC,http://statistics.data.gov.uk/id/local-authority-district/22UN,Environmental Services,4840 - Recycling,5465 - Sundries / Initiatives,16/11/2010,2078331-1,11988.4,2106148 - Straight plc,Straight - Boxes
Tendring DC,http://statistics.data.gov.uk/id/local-authority-district/22UN,Environmental Services,4840 - Recycling,5467 - Material Collection Payments,19/10/2010,1040073-1,2739.88,2101553 - Waste Recycling Limited,WASTE REC-SEPT 10
Tendring DC,http://statistics.data.gov.uk/id/local-authority-district/22UN,Environmental Services,4840 - Recycling,5467 - Material Collection Payments,19/10/2010,1040074-1,737.14,2101959 - Harwich Reclaim,HARWICH REC-SEPT 10
Tendring DC,http://statistics.data.gov.uk/id/local-authority-district/22UN,Environmental Services,4840 - Recycling,5467 - Material Collection Payments,30/11/2010,1041010-1,2441.63,2101553 - Waste Recycling Limited,WASTE REC-OCT10
Tendring DC,http://statistics.data.gov.uk/id/local-authority-district/22UN,Environmental Services,4840 - Recycling,5467 - Material Collection Payments,19/10/2010,2077563-1,616.57,2108608 - Clothes Aid (Services) Ltd,Clothes Aid - Jan Feb Mar
Tendring DC,http://statistics.data.gov.uk/id/local-authority-district/22UN,Environmental Services,4840 - Recycling,5467 - Material Collection Payments,16/11/2010,2078332-1,795.86,2101959 - Harwich Reclaim,Harwich rec Nov
Tendring DC,http://statistics.data.gov.uk/id/local-authority-district/22UN,Environmental Services,4840 - Recycling,5467 - Material Collection Payments,31/10/2010,2078645-1,2441.63,2106681 - PHS Waste Management,Waste Rec - Oct 10
Tendring DC,http://statistics.data.gov.uk/id/local-authority-district/22UN,Environmental Services,4840 - Recycling,5467 - Material Collection Payments,30/11/2010,2078650-1,697.27,2108608 - Clothes Aid (Services) Ltd,Clothes Aid
Tendring DC,http://statistics.data.gov.uk/id/local-authority-district/22UN,Environmental Services,4840 - Recycling,5495 - Sweepings,19/10/2010,2077547-1,6392.81,2101092 - Veolia ES (UK) Limited,Confee Aug St Disp
Tendring DC,http://statistics.data.gov.uk/id/local-authority-district/22UN,Environmental Services,4840 - Recycling,5495 - Sweepings,26/10/2010,2077686-1,5060.23,2101092 - Veolia ES (UK) Limited,Confee July St Disp
Tendring DC,http://statistics.data.gov.uk/id/local-authority-district/22UN,Environmental Services,4840 - Recycling,5495 - Sweepings,23/11/2010,2078581-1,5957.34,2101092 - Veolia ES (UK) Limited,Confee St Disp Oct
Tendring DC,http://statistics.data.gov.uk/id/local-authority-district/22UN,Environmental Services,4840 - Recycling,5495 - Sweepings,23/11/2010,2078582-1,5900.81,2101092 - Veolia ES (UK) Limited,Confee Sept 10 St Disp
Tendring DC,http://statistics.data.gov.uk/id/local-authority-district/22UN,Environmental Services,4840 - Recycling,6299 - Contractors Reuse,05/10/2010,2077085-1,1115.07,2102267 - Tendring Reuse & Employment Enterprise,TREE @ Oakwood July
Tendring DC,http://statistics.data.gov.uk/id/local-authority-district/22UN,Environmental Services,4840 - Recycling,6299 - Contractors Reuse,02/11/2010,2077826-1,1198.42,2102267 - Tendring Reuse & Employment Enterprise,TREE Sept 10
Tendring DC,http://statistics.data.gov.uk/id/local-authority-district/22UN,Environmental Services,4840 - Recycling,6299 - Contractors Reuse,02/11/2010,2077827-1,553.33,2101394 - The Tendring Furniture Scheme,Furn Scheme Sept 10
Tendring DC,http://statistics.data.gov.uk/id/local-authority-district/22UN,Environmental Services,4840 - Recycling,6299 - Contractors Reuse,30/11/2010,2078646-1,516.84,2101394 - The Tendring Furniture Scheme,Furniture Scheme
Tendring DC,http://statistics.data.gov.uk/id/local-authority-district/22UN,Environmental Services,4840 - Recycling,6299 - Contractors Reuse,30/11/2010,2078647-1,1234.32,2102267 - Tendring Reuse & Employment Enterprise,TREE - Oct 10
Tendring DC,http://statistics.data.gov.uk/id/local-authority-district/22UN,Environmental Services,4840 - Recycling,6300 - Contract Payment,19/10/2010,2077549-1,89416.82,2101092 - Veolia ES (UK) Limited,Confee Aug Recycling
Tendring DC,http://statistics.data.gov.uk/id/local-authority-district/22UN,Environmental Services,4840 - Recycling,6300 - Contract Payment,23/11/2010,2078585-1,88774,2101092 - Veolia ES (UK) Limited,Confee Recycling Oct
Tendring DC,http://statistics.data.gov.uk/id/local-authority-district/22UN,Environmental Services,4840 - Recycling,6300 - Contract Payment,23/11/2010,2078587-1,93308.16,2101092 - Veolia ES (UK) Limited,
Tendring DC,http://statistics.data.gov.uk/id/local-authority-district/22UN,Environmental Services,4880 - Refuse Collection,6300 - Contract Payment,19/10/2010,2077548-1,136399.13,2101092 - Veolia ES (UK) Limited,Confee Waste Aug
Tendring DC,http://statistics.data.gov.uk/id/local-authority-district/22UN,Environmental Services,4880 - Refuse Collection,6300 - Contract Payment,23/11/2010,2078583-1,136399.13,2101092 - Veolia ES (UK) Limited,Confee Waste Oct
Tendring DC,http://statistics.data.gov.uk/id/local-authority-district/22UN,Environmental Services,4880 - Refuse Collection,6300 - Contract Payment,23/11/2010,2078584-1,136399.13,2101092 - Veolia ES (UK) Limited,Confee Waste Sept
Tendring DC,http://statistics.data.gov.uk/id/local-authority-district/22UN,Environmental Services,4880 - Refuse Collection,6300 - Contract Payment,30/11/2010,2078639-1,4800.73,2100498 - Essex County Council,ECC Trade Waste
Tendring DC,http://statistics.data.gov.uk/id/local-authority-district/22UN,Environmental Services,4880 - Refuse Collection,6300 - Contract Payment,14/12/2010,2079160-1,106233.53,2101092 - Veolia ES (UK) Limited,Confee Sheets Oct 10
Tendring DC,http://statistics.data.gov.uk/id/local-authority-district/22UN,Environmental Services,4880 - Refuse Collection,6300 - Contract Payment,14/12/2010,2079161-1,132439.67,2101092 - Veolia ES (UK) Limited,Confee Streets Aug 10
Tendring DC,http://statistics.data.gov.uk/id/local-authority-district/22UN,Environmental Services,4880 - Refuse Collection,6300 - Contract Payment,14/12/2010,2079162-1,137286.2,2101092 - Veolia ES (UK) Limited,Confee Street Sept 10
Tendring DC,http://statistics.data.gov.uk/id/local-authority-district/22UN,Environmental Services,4900 - Street Sweeping,4618 - Hired Services - Environmental Clean ups,14/12/2010,2079161-2,686.8,2101092 - Veolia ES (UK) Limited,Confee Streets Aug 10
Tendring DC,http://statistics.data.gov.uk/id/local-authority-district/22UN,Environmental Services,4900 - Street Sweeping,4642 - Provision of Litter Bins,02/11/2010,1040445-1,2850,2100567 - Glasdon UK Ltd,BINS
Tendring DC,http://statistics.data.gov.uk/id/local-authority-district/22UN,Environmental Services,5240 - Managing Tenancies,5248 - Estate Management Expenses,26/10/2010,2077687-3,66.2,2103418 - Command Pest Control Limited T/A Pestclear,Confee Sept 10 PClear
Tendring DC,http://statistics.data.gov.uk/id/local-authority-district/22UN,Environmental Services,5240 - Managing Tenancies,5248 - Estate Management Expenses,14/12/2010,2079161-4,6162.11,2101092 - Veolia ES (UK) Limited,Confee Streets Aug 10
Tendring DC,http://statistics.data.gov.uk/id/local-authority-district/22UN,Environmental Services,5240 - Managing Tenancies,5248 - Estate Management Expenses,14/12/2010,2079162-4,1277.61,2101092 - Veolia ES (UK) Limited,Confee Street Sept 10
Tendring DC,http://statistics.data.gov.uk/id/local-authority-district/22UN,Environmental Services,5920 - Open Spaces,2106 - Grounds Maintenance Horticultural Svs Programmed,14/12/2010,2079161-3,207.18,2101092 - Veolia ES (UK) Limited,Confee Streets Aug 10
Tendring DC,http://statistics.data.gov.uk/id/local-authority-district/22UN,Environmental Services,5920 - Open Spaces,2106 - Grounds Maintenance Horticultural Svs Programmed,14/12/2010,2079162-2,69.06,2101092 - Veolia ES (UK) Limited,Confee Street Sept 10
Tendring DC,http://statistics.data.gov.uk/id/local-authority-district/22UN,Environmental Services,5920 - Open Spaces,2115 - Grounds Maintenance External Contractors,26/10/2010,2077687-2,88,2103418 - Command Pest Control Limited T/A Pestclear,Confee Sept 10 PClear
Tendring DC,http://statistics.data.gov.uk/id/local-authority-district/22UN,Environmental Services,5960 - Recreation Grounds,2115 - Grounds Maintenance External Contractors,14/12/2010,2079162-3,229.61,2101092 - Veolia ES (UK) Limited,Confee Street Sept 10
Tendring DC,http://statistics.data.gov.uk/id/local-authority-district/22UN,Environmental Services,5960 - Recreation Grounds,2304 - Energy Costs - Electricity,21/12/2010,1041140-4,49.36,2100197 - British Gas Trading Ltd,B'GAS SEPT ELECT
Tendring DC,http://statistics.data.gov.uk/id/local-authority-district/22UN,Environmental Services,5960 - Recreation Grounds,2304 - Energy Costs - Electricity,21/12/2010,1041515-4,29.88,2100197 - British Gas Trading Ltd,MULTI NOV 10 B/GAS
Tendring DC,http://statistics.data.gov.uk/id/local-authority-district/22UN,Environmental Services,5960 - Recreation Grounds,2304 - Energy Costs - Electricity,21/12/2010,2078881-4,49.19,2100197 - British Gas Trading Ltd,B/Gas July Elect
Tendring DC,http://statistics.data.gov.uk/id/local-authority-district/22UN,Environmental Services,5960 - Recreation Grounds,2304 - Energy Costs - Electricity,21/12/2010,2078882-3,31.53,2100197 - British Gas Trading Ltd,B/Gas Oct Elect
Tendring DC,http://statistics.data.gov.uk/id/local-authority-district/22UN,Environmental Services,5960 - Recreation Grounds,2304 - Energy Costs - Electricity,21/12/2010,2078883-3,49.36,2100197 - British Gas Trading Ltd,B/Gas Aug Elect
Tendring DC,http://statistics.data.gov.uk/id/local-authority-district/22UN,Environmental Services,5980 - Playgrounds,4052 - Playground Equipment,12/10/2010,2077272-2,33.1,2103418 - Command Pest Control Limited T/A Pestclear,Confee Aug 10 P/Clear
Tendring DC,http://statistics.data.gov.uk/id/local-authority-district/22UN,Environmental Services,8025 - Car Parks - Off St,2304 - Energy Costs - Electricity,21/12/2010,1041515-3,269.02,2100197 - British Gas Trading Ltd,MULTI NOV 10 B/GAS
Tendring DC,http://statistics.data.gov.uk/id/local-authority-district/22UN,Environmental Services,8025 - Car Parks - Off St,2304 - Energy Costs - Electricity,21/12/2010,2078629-2,155.92,2100197 - British Gas Trading Ltd,B/Gas June Elect
Tendring DC,http://statistics.data.gov.uk/id/local-authority-district/22UN,Environmental Services,8025 - Car Parks - Off St,2304 - Energy Costs - Electricity,21/12/2010,2078881-3,160.23,2100197 - British Gas Trading Ltd,B/Gas July Elect
Tendring DC,http://statistics.data.gov.uk/id/local-authority-district/22UN,Environmental Services,8025 - Car Parks - Off St,2304 - Energy Costs - Electricity,21/12/2010,2078882-4,199.42,2100197 - British Gas Trading Ltd,B/Gas Oct Elect
Tendring DC,http://statistics.data.gov.uk/id/local-authority-district/22UN,Environmental Services,8025 - Car Parks - Off St,2304 - Energy Costs - Electricity,21/12/2010,2078883-4,156.99,2100197 - British Gas Trading Ltd,B/Gas Aug Elect
Tendring DC,http://statistics.data.gov.uk/id/local-authority-district/22UN,Environmental Services,8125 - Horticultural Services,4597 - Hired Services - Payments to Contractors,19/10/2010,2077545-3,101.18,REDACTED COMMERCIAL CONFIDENTIALITY,Week D
Tendring DC,http://statistics.data.gov.uk/id/local-authority-district/22UN,Environmental Services,9900 - General Fund Balance Sheet,B350 - Welfare Burials Holding Account,02/11/2010,1040459-1,1454.18,REDACTED PERSONAL DATA,REDACTED PERSONAL DATA
Tendring DC,http://statistics.data.gov.uk/id/local-authority-district/22UN,Environmental Services,9900 - General Fund Balance Sheet,B350 - Welfare Burials Holding Account,07/12/2010,1041113-1,864.5,2109476 - R Gwinnells & Son,REDACTED PERSONAL DATA
Tendring DC,http://statistics.data.gov.uk/id/local-authority-district/22UN,Environmental Services,9900 - General Fund Balance Sheet,B350 - Welfare Burials Holding Account,02/11/2010,2077852-1,1141.5,2109476 - R Gwinnells & Son,R Gwinnell & Sons
Tendring DC,http://statistics.data.gov.uk/id/local-authority-district/22UN,Environmental Services,9900 - General Fund Balance Sheet,B382 - Rechargeable Works - Other,02/11/2010,2077829-1,663.83,2110662 - Rapid Response Maintenance,REDACTED PERSONAL DATA
Tendring DC,http://statistics.data.gov.uk/id/local-authority-district/22UN,Environmental Services,C010 - Dovercourt Public Conveniences,C200 - Main Contractor,23/11/2010,2078578-1,7263,2100051 - A L Wicken Carpenter & Building Contractor,Demolition
Tendring DC,http://statistics.data.gov.uk/id/local-authority-district/22UN,Environmental Services,H920 - DFGs,C400 - Grant payments,12/10/2010,1039836-1,3746.49,2101884 - Cooper & Brome (Plumbing & Heating) Ltd,REDACTED PERSONAL DATA
Tendring DC,http://statistics.data.gov.uk/id/local-authority-district/22UN,Environmental Services,H920 - DFGs,C400 - Grant payments,12/10/2010,1039838-1,12083.53,2102883 - Anglia Concrete Products,REDACTED PERSONAL DATA
Tendring DC,http://statistics.data.gov.uk/id/local-authority-district/22UN,Environmental Services,H920 - DFGs,C400 - Grant payments,19/10/2010,1039976-1,1040,2110586 - Handicare Ltd,REDACTED PERSONAL DATA
Tendring DC,http://statistics.data.gov.uk/id/local-authority-district/22UN,Environmental Services,H920 - DFGs,C400 - Grant payments,19/10/2010,1039977-1,1460,2110586 - Handicare Ltd,REDACTED PERSONAL DATA
Tendring DC,http://statistics.data.gov.uk/id/local-authority-district/22UN,Environmental Services,H920 - DFGs,C400 - Grant payments,19/10/2010,1039978-1,7662.76,2104393 - Trinity Construction Services,REDACTED PERSONAL DATA
Tendring DC,http://statistics.data.gov.uk/id/local-authority-district/22UN,Environmental Services,H920 - DFGs,C400 - Grant payments,19/10/2010,1039979-1,4543.27,2104393 - Trinity Construction Services,REDACTED PERSONAL DATA
Tendring DC,http://statistics.data.gov.uk/id/local-authority-district/22UN,Environmental Services,H920 - DFGs,C400 - Grant payments,19/10/2010,1039980-1,5394.95,2101221 - S W K Lenyk,REDACTED PERSONAL DATA
Tendring DC,http://statistics.data.gov.uk/id/local-authority-district/22UN,Environmental Services,H920 - DFGs,C400 - Grant payments,19/10/2010,1039982-1,2117.94,2110327 - JPS Plumbing & General Building,REDACTED PERSONAL DATA
Tendring DC,http://statistics.data.gov.uk/id/local-authority-district/22UN,Environmental Services,H920 - DFGs,C400 - Grant payments,19/10/2010,1039983-1,684.9,2101401 - The Guinness Trust,REDACTED PERSONAL DATA
Tendring DC,http://statistics.data.gov.uk/id/local-authority-district/22UN,Environmental Services,H920 - DFGs,C400 - Grant payments,19/10/2010,1039985-1,813.24,2101401 - The Guinness Trust,REDACTED PERSONAL DATA
Tendring DC,http://statistics.data.gov.uk/id/local-authority-district/22UN,Environmental Services,H920 - DFGs,C400 - Grant payments,19/10/2010,1039986-1,815.61,2101401 - The Guinness Trust,REDACTED PERSONAL DATA
Tendring DC,http://statistics.data.gov.uk/id/local-authority-district/22UN,Environmental Services,H920 - DFGs,C400 - Grant payments,19/10/2010,1039987-1,1153.41,2101401 - The Guinness Trust,REDACTED PERSONAL DATA
Tendring DC,http://statistics.data.gov.uk/id/local-authority-district/22UN,Environmental Services,H920 - DFGs,C400 - Grant payments,19/10/2010,1039991-1,1892.22,2109199 - One Call Property Maintenance,REDACTED PERSONAL DATA
Tendring DC,http://statistics.data.gov.uk/id/local-authority-district/22UN,Environmental Services,H920 - DFGs,C400 - Grant payments,26/10/2010,1040216-1,798.47,2101401 - The Guinness Trust,REDACTED PERSONAL DATA
Tendring DC,http://statistics.data.gov.uk/id/local-authority-district/22UN,Environmental Services,H920 - DFGs,C400 - Grant payments,26/10/2010,1040217-1,714.55,2101401 - The Guinness Trust,REDACTED PERSONAL DATA
Tendring DC,http://statistics.data.gov.uk/id/local-authority-district/22UN,Environmental Services,H920 - DFGs,C400 - Grant payments,26/10/2010,1040218-1,2493.09,2101401 - The Guinness Trust,REDACTED PERSONAL DATA
Tendring DC,http://statistics.data.gov.uk/id/local-authority-district/22UN,Environmental Services,H920 - DFGs,C400 - Grant payments,26/10/2010,1040220-1,2063.16,2109199 - One Call Property Maintenance,REDACTED PERSONAL DATA
Tendring DC,http://statistics.data.gov.uk/id/local-authority-district/22UN,Environmental Services,H920 - DFGs,C400 - Grant payments,26/10/2010,1040221-1,3614.85,2101221 - S W K Lenyk,REDACTED PERSONAL DATA
Tendring DC,http://statistics.data.gov.uk/id/local-authority-district/22UN,Environmental Services,H920 - DFGs,C400 - Grant payments,26/10/2010,1040222-1,4763.65,2101884 - Cooper & Brome (Plumbing & Heating) Ltd,REDACTED PERSONAL DATA
Tendring DC,http://statistics.data.gov.uk/id/local-authority-district/22UN,Environmental Services,H920 - DFGs,C400 - Grant payments,26/10/2010,1040223-1,8934.25,2101848 - Homecraft Contracts Ltd,REDACTED PERSONAL DATA
Tendring DC,http://statistics.data.gov.uk/id/local-authority-district/22UN,Environmental Services,H920 - DFGs,C400 - Grant payments,02/11/2010,1040437-1,916.25,2101401 - The Guinness Trust,REDACTED PERSONAL DATA
Tendring DC,http://statistics.data.gov.uk/id/local-authority-district/22UN,Environmental Services,H920 - DFGs,C400 - Grant payments,02/11/2010,1040438-1,540.97,2101401 - The Guinness Trust,REDACTED PERSONAL DATA
Tendring DC,http://statistics.data.gov.uk/id/local-authority-district/22UN,Environmental Services,H920 - DFGs,C400 - Grant payments,02/11/2010,1040442-1,6081.66,2104393 - Trinity Construction Services,REDACTED PERSONAL DATA
Tendring DC,http://statistics.data.gov.uk/id/local-authority-district/22UN,Environmental Services,H920 - DFGs,C400 - Grant payments,02/11/2010,1040443-1,3606.48,2104393 - Trinity Construction Services,REDACTED PERSONAL DATA
Tendring DC,http://statistics.data.gov.uk/id/local-authority-district/22UN,Environmental Services,H920 - DFGs,C400 - Grant payments,23/11/2010,1040727-1,4414.66,2104393 - Trinity Construction Services,REDACTED PERSONAL DATA
Tendring DC,http://statistics.data.gov.uk/id/local-authority-district/22UN,Environmental Services,H920 - DFGs,C400 - Grant payments,23/11/2010,1040728-1,2745.69,2110327 - JPS Plumbing & General Building,REDACTED PERSONAL DATA
Tendring DC,http://statistics.data.gov.uk/id/local-authority-district/22UN,Environmental Services,H920 - DFGs,C400 - Grant payments,23/11/2010,1040735-1,630.58,2101401 - The Guinness Trust,REDACTED PERSONAL DATA
Tendring DC,http://statistics.data.gov.uk/id/local-authority-district/22UN,Environmental Services,H920 - DFGs,C400 - Grant payments,23/11/2010,1040736-1,666.2,2101401 - The Guinness Trust,REDACTED PERSONAL DATA
Tendring DC,http://statistics.data.gov.uk/id/local-authority-district/22UN,Environmental Services,H920 - DFGs,C400 - Grant payments,23/11/2010,1040737-1,641.19,2101401 - The Guinness Trust,REDACTED PERSONAL DATA
Tendring DC,http://statistics.data.gov.uk/id/local-authority-district/22UN,Environmental Services,H920 - DFGs,C400 - Grant payments,23/11/2010,1040738-1,4177.22,2107332 - Mr C Bedding,REDACTED PERSONAL DATA
Tendring DC,http://statistics.data.gov.uk/id/local-authority-district/22UN,Environmental Services,H920 - DFGs,C400 - Grant payments,07/12/2010,1041043-1,5986.7,2104393 - Trinity Construction Services,REDACTED PERSONAL DATA
Tendring DC,http://statistics.data.gov.uk/id/local-authority-district/22UN,Environmental Services,H920 - DFGs,C400 - Grant payments,07/12/2010,1041045-1,4947,2109199 - One Call Property Maintenance,REDACTED PERSONAL DATA
Tendring DC,http://statistics.data.gov.uk/id/local-authority-district/22UN,Environmental Services,H920 - DFGs,C400 - Grant payments,07/12/2010,1041046-1,1300,2110760 - Mr Alan Hancock,REDACTED PERSONAL DATA
Tendring DC,http://statistics.data.gov.uk/id/local-authority-district/22UN,Environmental Services,H920 - DFGs,C400 - Grant payments,07/12/2010,1041047-1,3868,2110586 - Handicare Ltd,REDACTED PERSONAL DATA
Tendring DC,http://statistics.data.gov.uk/id/local-authority-district/22UN,Environmental Services,H920 - DFGs,C400 - Grant payments,07/12/2010,1041048-1,587.5,2108044 - Townsend Bowen Ltd,REDACTED PERSONAL DATA
Tendring DC,http://statistics.data.gov.uk/id/local-authority-district/22UN,Environmental Services,H920 - DFGs,C400 - Grant payments,07/12/2010,1041049-1,746.05,2101401 - The Guinness Trust,REDACTED PERSONAL DATA
Tendring DC,http://statistics.data.gov.uk/id/local-authority-district/22UN,Environmental Services,H920 - DFGs,C400 - Grant payments,07/12/2010,1041050-1,902.01,2101401 - The Guinness Trust,REDACTED PERSONAL DATA
Tendring DC,http://statistics.data.gov.uk/id/local-authority-district/22UN,Environmental Services,H920 - DFGs,C400 - Grant payments,21/12/2010,1041301-1,8115.58,2104393 - Trinity Construction Services,REDACTED PERSONAL DATA
Tendring DC,http://statistics.data.gov.uk/id/local-authority-district/22UN,Environmental Services,H920 - DFGs,C400 - Grant payments,05/10/2010,2076907-1,994.75,2104393 - Trinity Construction Services,REDACTED PERSONAL DATA
Tendring DC,http://statistics.data.gov.uk/id/local-authority-district/22UN,Environmental Services,H920 - DFGs,C400 - Grant payments,09/11/2010,2077918-1,4911.69,2101884 - Cooper & Brome (Plumbing & Heating) Ltd,REDACTED PERSONAL DATA
Tendring DC,http://statistics.data.gov.uk/id/local-authority-district/22UN,Environmental Services,H920 - DFGs,C400 - Grant payments,09/11/2010,2077919-1,4497,2110586 - Handicare Ltd,REDACTED PERSONAL DATA
Tendring DC,http://statistics.data.gov.uk/id/local-authority-district/22UN,Environmental Services,H920 - DFGs,C400 - Grant payments,09/11/2010,2077920-1,2272.95,2109199 - One Call Property Maintenance,REDACTED PERSONAL DATA
Tendring DC,http://statistics.data.gov.uk/id/local-authority-district/22UN,Environmental Services,H920 - DFGs,C400 - Grant payments,09/11/2010,2077922-1,3404.75,2104393 - Trinity Construction Services,REDACTED PERSONAL DATA
Tendring DC,http://statistics.data.gov.uk/id/local-authority-district/22UN,Environmental Services,H920 - DFGs,C400 - Grant payments,09/11/2010,2077923-1,4128.3,2108241 - BeSure Building & Maintenance Svs Ltd,REDACTED PERSONAL DATA
Tendring DC,http://statistics.data.gov.uk/id/local-authority-district/22UN,Environmental Services,H920 - DFGs,C400 - Grant payments,09/11/2010,2077924-1,619.25,2101401 - The Guinness Trust,REDACTED PERSONAL DATA
Tendring DC,http://statistics.data.gov.uk/id/local-authority-district/22UN,Environmental Services,H920 - DFGs,C400 - Grant payments,09/11/2010,2077926-1,736.75,2101401 - The Guinness Trust,REDACTED PERSONAL DATA
Tendring DC,http://statistics.data.gov.uk/id/local-authority-district/22UN,Environmental Services,H920 - DFGs,C400 - Grant payments,09/11/2010,2077927-1,526.88,2101401 - The Guinness Trust,REDACTED PERSONAL DATA
Tendring DC,http://statistics.data.gov.uk/id/local-authority-district/22UN,Environmental Services,H920 - DFGs,C400 - Grant payments,09/11/2010,2077928-1,510.71,2101401 - The Guinness Trust,REDACTED PERSONAL DATA
Tendring DC,http://statistics.data.gov.uk/id/local-authority-district/22UN,Environmental Services,H920 - DFGs,C400 - Grant payments,30/11/2010,2078727-1,9000,2101848 - Homecraft Contracts Ltd,REDACTED PERSONAL DATA
Tendring DC,http://statistics.data.gov.uk/id/local-authority-district/22UN,Environmental Services,H920 - DFGs,C400 - Grant payments,30/11/2010,2078728-1,3668.5,2109199 - One Call Property Maintenance,REDACTED PERSONAL DATA
Tendring DC,http://statistics.data.gov.uk/id/local-authority-district/22UN,Environmental Services,H920 - DFGs,C400 - Grant payments,30/11/2010,2078729-1,554.28,2101401 - The Guinness Trust,REDACTED PERSONAL DATA
Tendring DC,http://statistics.data.gov.uk/id/local-authority-district/22UN,Environmental Services,H920 - DFGs,C400 - Grant payments,30/11/2010,2078730-1,5963.79,2101221 - S W K Lenyk,REDACTED PERSONAL DATA
Tendring DC,http://statistics.data.gov.uk/id/local-authority-district/22UN,Environmental Services,H920 - DFGs,C400 - Grant payments,30/11/2010,2078731-1,2827.36,2104393 - Trinity Construction Services,REDACTED PERSONAL DATA
Tendring DC,http://statistics.data.gov.uk/id/local-authority-district/22UN,Environmental Services,H920 - DFGs,C400 - Grant payments,30/11/2010,2078732-1,655.69,2101401 - The Guinness Trust,REDACTED PERSONAL DATA
Tendring DC,http://statistics.data.gov.uk/id/local-authority-district/22UN,Environmental Services,H920 - DFGs,C400 - Grant payments,14/12/2010,2078924-1,4855.49,2109199 - One Call Property Maintenance,REDACTED PERSONAL DATA
Tendring DC,http://statistics.data.gov.uk/id/local-authority-district/22UN,Environmental Services,H920 - DFGs,C400 - Grant payments,14/12/2010,2078925-1,7459.92,2104393 - Trinity Construction Services,REDACTED PERSONAL DATA
Tendring DC,http://statistics.data.gov.uk/id/local-authority-district/22UN,Environmental Services,H920 - DFGs,C400 - Grant payments,14/12/2010,2078926-1,3950.24,2104393 - Trinity Construction Services,REDACTED PERSONAL DATA
Tendring DC,http://statistics.data.gov.uk/id/local-authority-district/22UN,Environmental Services,H920 - DFGs,C400 - Grant payments,14/12/2010,2078927-1,4460.54,2104393 - Trinity Construction Services,REDACTED PERSONAL DATA
Tendring DC,http://statistics.data.gov.uk/id/local-authority-district/22UN,Environmental Services,H920 - DFGs,C400 - Grant payments,14/12/2010,2078928-1,3585,2110586 - Handicare Ltd,REDACTED PERSONAL DATA
Tendring DC,http://statistics.data.gov.uk/id/local-authority-district/22UN,Environmental Services,H920 - DFGs,C400 - Grant payments,14/12/2010,2078931-1,1531.71,2101401 - The Guinness Trust,REDACTED PERSONAL DATA
Tendring DC,http://statistics.data.gov.uk/id/local-authority-district/22UN,Environmental Services,H920 - DFGs,C400 - Grant payments,14/12/2010,2078932-1,721.43,2101401 - The Guinness Trust,REDACTED PERSONAL DATA
Tendring DC,http://statistics.data.gov.uk/id/local-authority-district/22UN,Environmental Services,H920 - DFGs,C400 - Grant payments,14/12/2010,2078933-1,728.32,2101401 - The Guinness Trust,REDACTED PERSONAL DATA
Tendring DC,http://statistics.data.gov.uk/id/local-authority-district/22UN,Environmental Services,H920 - DFGs,C400 - Grant payments,14/12/2010,2078934-1,673.08,2101401 - The Guinness Trust,REDACTED PERSONAL DATA
Tendring DC,http://statistics.data.gov.uk/id/local-authority-district/22UN,Environmental Services,H940 - Emergency Repairs Grant,C400 - Grant payments,30/11/2010,2078724-1,760.19,2108831 - Eaga PLC,REDACTED PERSONAL DATA
Tendring DC,http://statistics.data.gov.uk/id/local-authority-district/22UN,Environmental Services,H941 - Decent Homes Assistance (Owner/Occupier),C401 - Loan,30/11/2010,2078733-1,1967.98,2110330 - Danny Smiths Building Services,REDACTED PERSONAL DATA
Tendring DC,http://statistics.data.gov.uk/id/local-authority-district/22UN,Financial Services,1120 - Accountancy,4753 - Computer - Application Software,21/12/2010,1041321-1,1500,2100217 - CIPFA,CASH FLOW TOOL KIT   
Tendring DC,http://statistics.data.gov.uk/id/local-authority-district/22UN,Financial Services,1120 - Accountancy,4753 - Computer - Application Software,05/10/2010,2077087-1,3000,2109394 - CIPFA Business Ltd,Asset Net 1/10/10 to 30/9/11
Tendring DC,http://statistics.data.gov.uk/id/local-authority-district/22UN,Financial Services,1180 - Benefit Fraud Investigation,4460 - Legal & Professional Expenses,26/10/2010,1040279-1,511.5,2100672 - Harris Cuffaro & Nichols Solicitors,SOLICITOR COSTS
Tendring DC,http://statistics.data.gov.uk/id/local-authority-district/22UN,Financial Services,1180 - Benefit Fraud Investigation,4880 - Subscriptions Paid,16/11/2010,2078327-1,1150,2102829 - Audit Commission,NFI
Tendring DC,http://statistics.data.gov.uk/id/local-authority-district/22UN,Financial Services,1200 - Exchequer,4753 - Computer - Application Software,02/11/2010,1040308-1,1357.01,2108648 - Bond International Software (UK) Ltd,CONSULTANCY 18/19-10
Tendring DC,http://statistics.data.gov.uk/id/local-authority-district/22UN,Financial Services,1300 - Solicitors Service Unit,4466 - Legal & Professional Expenses - Land Registry,29/10/2010,1040888-1,21,2100636 - HM Land Registry,LAND CHARGE ENQUIRIES
Tendring DC,http://statistics.data.gov.uk/id/local-authority-district/22UN,Financial Services,1520 - Planning Management & Administration,4624 - Hired Services - Land Registry,29/10/2010,1040888-5,98,2100636 - HM Land Registry,LAND CHARGE ENQUIRIES
Tendring DC,http://statistics.data.gov.uk/id/local-authority-district/22UN,Financial Services,1520 - Planning Management & Administration,4624 - Hired Services - Land Registry,29/10/2010,1040888-6,22,2100636 - HM Land Registry,LAND CHARGE ENQUIRIES
Tendring DC,http://statistics.data.gov.uk/id/local-authority-district/22UN,Financial Services,1580 - Benefits & Revenues,4462 - Legal Fees incl. Bailiffs re debt recovery,29/10/2010,1040888-3,216,2100636 - HM Land Registry,LAND CHARGE ENQUIRIES
Tendring DC,http://statistics.data.gov.uk/id/local-authority-district/22UN,Financial Services,1580 - Benefits & Revenues,4462 - Legal Fees incl. Bailiffs re debt recovery,29/10/2010,1040888-4,36,2100636 - HM Land Registry,LAND CHARGE ENQUIRIES
Tendring DC,http://statistics.data.gov.uk/id/local-authority-district/22UN,Financial Services,1700 - Insurance Recharge Account,3410 - Motor Fleet - leased cars,16/11/2010,2078301-1,-520.81,2107672 - Zurich Municipal Insurance,Refund Leased Cars Policy
Tendring DC,http://statistics.data.gov.uk/id/local-authority-district/22UN,Financial Services,1700 - Insurance Recharge Account,4528 - Loss Control Allowance-ZM,19/10/2010,2077564-1,1900,2107672 - Zurich Municipal Insurance,Open Space Survey
Tendring DC,http://statistics.data.gov.uk/id/local-authority-district/22UN,Financial Services,1700 - Insurance Recharge Account,4753 - Computer - Application Software,16/11/2010,2078302-1,2000,2107672 - Zurich Municipal Insurance,QLAS 2010
Tendring DC,http://statistics.data.gov.uk/id/local-authority-district/22UN,Financial Services,4520 - Land Charges,5448 - CON 29 Payments,15/11/2010,1040891-3,5365.2,2100409 - Essex County Council,PRECEPT 151110
Tendring DC,http://statistics.data.gov.uk/id/local-authority-district/22UN,Financial Services,4660 - Public Health,5500 - Miscellaneous Expenses,29/10/2010,1040888-2,127,2100636 - HM Land Registry,LAND CHARGE ENQUIRIES
Tendring DC,http://statistics.data.gov.uk/id/local-authority-district/22UN,Financial Services,4750 - Housing Disrepair,4080 - Materials & Consumables,29/10/2010,1040888-7,44,2100636 - HM Land Registry,LAND CHARGE ENQUIRIES
Tendring DC,http://statistics.data.gov.uk/id/local-authority-district/22UN,Financial Services,4750 - Housing Disrepair,4080 - Materials & Consumables,29/10/2010,1040888-8,16,2100636 - HM Land Registry,LAND CHARGE ENQUIRIES
Tendring DC,http://statistics.data.gov.uk/id/local-authority-district/22UN,Financial Services,5140 - Homelessness,4680 - Bed & Breakfast Accommodation,29/10/2010,1040888-9,30,2100636 - HM Land Registry,LAND CHARGE ENQUIRIES
Tendring DC,http://statistics.data.gov.uk/id/local-authority-district/22UN,Financial Services,5680 - HRA Subsidy,6680 - HRA Negative Subsidy payment,05/11/2010,1041092-1,191435,2101081 - ODPM,HRA SURPLUS
Tendring DC,http://statistics.data.gov.uk/id/local-authority-district/22UN,Financial Services,5680 - HRA Subsidy,6680 - HRA Negative Subsidy payment,27/10/2010,2077802-1,244131,2101081 - ODPM,HRA Surplus
Tendring DC,http://statistics.data.gov.uk/id/local-authority-district/22UN,Financial Services,5880 - Management Of Sport & Leisure Facilities,2100 - Building Repairs,09/11/2010,2078106-1,745,2108436 - Travelers Insurance Co Ltd,PL09-14 REDACTED PERSONAL DATA
Tendring DC,http://statistics.data.gov.uk/id/local-authority-district/22UN,Financial Services,5920 - Open Spaces,4525 - St Pauls Travelers - PL Claims Handling,26/10/2010,2077710-1,1000,2108436 - Travelers Insurance Co Ltd,Claim REDACTED PERSONAL DATA
Tendring DC,http://statistics.data.gov.uk/id/local-authority-district/22UN,Financial Services,5920 - Open Spaces,4525 - St Pauls Travelers - PL Claims Handling,09/11/2010,2078050-1,1000,2108436 - Travelers Insurance Co Ltd,REDACTED PERSONAL DATA PL09-05
Tendring DC,http://statistics.data.gov.uk/id/local-authority-district/22UN,Financial Services,6620 - Corporate Management - General,4504 - Consultants Fees - Financial Services,26/10/2010,1040209-1,8509.8,2100861 - KPMG,FEES RE FLEMING
Tendring DC,http://statistics.data.gov.uk/id/local-authority-district/22UN,Financial Services,6620 - Corporate Management - General,4504 - Consultants Fees - Financial Services,16/11/2010,1040655-1,7348.22,2100861 - KPMG,FEE RE FLEMING CAR PARK
Tendring DC,http://statistics.data.gov.uk/id/local-authority-district/22UN,Financial Services,6620 - Corporate Management - General,4504 - Consultants Fees - Financial Services,12/10/2010,2077268-1,101824.16,2100861 - KPMG,Flemings Claim - Sports
Tendring DC,http://statistics.data.gov.uk/id/local-authority-district/22UN,Financial Services,6620 - Corporate Management - General,4504 - Consultants Fees - Financial Services,12/10/2010,2077269-1,1750,2100861 - KPMG,Appeal Work - Sports
Tendring DC,http://statistics.data.gov.uk/id/local-authority-district/22UN,Financial Services,6620 - Corporate Management - General,5160 - Advertising,19/10/2010,2077568-1,582.3,2100989 - Newsquest (London) Ltd,End of Accounts Advert
Tendring DC,http://statistics.data.gov.uk/id/local-authority-district/22UN,Financial Services,6620 - Corporate Management - General,5180 - External Audit Fees,19/10/2010,2077491-1,21826.54,2102829 - Audit Commission,Instalment 4
Tendring DC,http://statistics.data.gov.uk/id/local-authority-district/22UN,Financial Services,6620 - Corporate Management - General,5180 - External Audit Fees,09/11/2010,2078039-1,22330.5,2102829 - Audit Commission,Instalment 5
Tendring DC,http://statistics.data.gov.uk/id/local-authority-district/22UN,Financial Services,6640 - Treasury Management,5192 - Brokerage,01/10/2010,1039894-2,251.92,2107040 - King & Shaxson Limited,FEES RE TREASURY MANAGEMENT
Tendring DC,http://statistics.data.gov.uk/id/local-authority-district/22UN,Financial Services,6640 - Treasury Management,5192 - Brokerage,04/10/2010,1039896-2,410.33,2107040 - King & Shaxson Limited,FEES RE TREASURY MANAGEMENT
Tendring DC,http://statistics.data.gov.uk/id/local-authority-district/22UN,Financial Services,6640 - Treasury Management,5192 - Brokerage,08/11/2010,2078102-2,331.06,2107040 - King & Shaxson Limited,Fees re Treasury Management
Tendring DC,http://statistics.data.gov.uk/id/local-authority-district/22UN,Financial Services,6640 - Treasury Management,5192 - Brokerage,08/11/2010,2078103-2,403.94,2107040 - King & Shaxson Limited,Fees re Treasury Management
Tendring DC,http://statistics.data.gov.uk/id/local-authority-district/22UN,Financial Services,6683 - Second Homes Discount Scheme,8109 - Second Homes Discount Scheme - ECC Contribution,15/10/2010,1040271-5,-39879,2100409 - Essex County Council,PRECEPT 151010
Tendring DC,http://statistics.data.gov.uk/id/local-authority-district/22UN,Financial Services,6683 - Second Homes Discount Scheme,8109 - Second Homes Discount Scheme - ECC Contribution,15/11/2010,1040891-4,-39879,2100409 - Essex County Council,PRECEPT 151110
Tendring DC,http://statistics.data.gov.uk/id/local-authority-district/22UN,Financial Services,6683 - Second Homes Discount Scheme,8109 - Second Homes Discount Scheme - ECC Contribution,20/12/2010,2079393-3,-39879,2100409 - Essex County Council,Precept 151210
Tendring DC,http://statistics.data.gov.uk/id/local-authority-district/22UN,Financial Services,8070 - On Street Parking,5430 - Car Park Reimbursement Management Fee,15/10/2010,1040271-4,3169,2100409 - Essex County Council,PRECEPT 151010
Tendring DC,http://statistics.data.gov.uk/id/local-authority-district/22UN,Financial Services,8070 - On Street Parking,5436 - ECC PCT Levy,15/10/2010,1040271-3,4088,2100409 - Essex County Council,PRECEPT 151010
Tendring DC,http://statistics.data.gov.uk/id/local-authority-district/22UN,Financial Services,8540 - Leisure Centre Clacton,4597 - Hired Services - Payments to Contractors,12/10/2010,2077146-1,1000,2108436 - Travelers Insurance Co Ltd,Excess Re PL07-05 REDACTED PERSONAL DATA
Tendring DC,http://statistics.data.gov.uk/id/local-authority-district/22UN,Financial Services,8700 - Small Projects,4900 - Grants,02/11/2010,1040457-1,410,2100690 - Gt Bromley Parish Council,TO PLANT AND MAINTAIN FLOWER TUBS
Tendring DC,http://statistics.data.gov.uk/id/local-authority-district/22UN,Financial Services,8700 - Small Projects,4900 - Grants,02/11/2010,1040457-2,410,2100690 - Gt Bromley Parish Council,TO PLANT AND MAINTAIN FLOWER TUBS
Tendring DC,http://statistics.data.gov.uk/id/local-authority-district/22UN,Financial Services,8700 - Small Projects,4900 - Grants,14/12/2010,1041248-1,690,2110722 - Burrsville Hall,To render and plaster hall to prevent damp
Tendring DC,http://statistics.data.gov.uk/id/local-authority-district/22UN,Financial Services,8700 - Small Projects,4900 - Grants,14/12/2010,1041249-1,2787,2110732 - John Close Sundials,PURCHASE THE SUPPLY AND FIT OF A SUNDIAL
Tendring DC,http://statistics.data.gov.uk/id/local-authority-district/22UN,Financial Services,8700 - Small Projects,4900 - Grants,14/12/2010,1041250-1,300,2110742 - 2nd Frinton Guides,CONTRIBUTION TOWARDS REPLACEMENT CANVAS TENTS
Tendring DC,http://statistics.data.gov.uk/id/local-authority-district/22UN,Financial Services,8700 - Small Projects,4900 - Grants,14/12/2010,1041250-2,100,2110742 - 2nd Frinton Guides,CONTRIBUTION TOWARDS REPLACEMENT CANVAS TENTS
Tendring DC,http://statistics.data.gov.uk/id/local-authority-district/22UN,Financial Services,8700 - Small Projects,4900 - Grants,14/12/2010,1041250-3,100,2110742 - 2nd Frinton Guides,CONTRIBUTION TOWARDS REPLACEMENT CANVAS TENTS
Tendring DC,http://statistics.data.gov.uk/id/local-authority-district/22UN,Financial Services,8700 - Small Projects,4900 - Grants,14/12/2010,1041250-4,100,2110742 - 2nd Frinton Guides,CONTRIBUTION TOWARDS REPLACEMENT CANVAS TENTS
Tendring DC,http://statistics.data.gov.uk/id/local-authority-district/22UN,Financial Services,8700 - Small Projects,4900 - Grants,14/12/2010,1041250-5,100,2110742 - 2nd Frinton Guides,CONTRIBUTION TOWARDS REPLACEMENT CANVAS TENTS
Tendring DC,http://statistics.data.gov.uk/id/local-authority-district/22UN,Financial Services,8700 - Small Projects,4900 - Grants,14/12/2010,1041250-6,500,2110742 - 2nd Frinton Guides,CONTRIBUTION TOWARDS REPLACEMENT CANVAS TENTS
Tendring DC,http://statistics.data.gov.uk/id/local-authority-district/22UN,Financial Services,8700 - Small Projects,4900 - Grants,19/10/2010,2077347-1,520,2101435 - Thorrington Parish Coucil,Contribution towards the resurfacing of the existing skate ramp
Tendring DC,http://statistics.data.gov.uk/id/local-authority-district/22UN,Financial Services,8700 - Small Projects,4900 - Grants,19/10/2010,2077347-2,520,2101435 - Thorrington Parish Coucil,Contribution towards the resurfacing of the existing skate ramp
Tendring DC,http://statistics.data.gov.uk/id/local-authority-district/22UN,Financial Services,8700 - Small Projects,4900 - Grants,09/11/2010,2078091-1,1000,2102522 - Brightlingsea Town Council,Contribution towards set-up costs of new offices Brightlingsea
Tendring DC,http://statistics.data.gov.uk/id/local-authority-district/22UN,Financial Services,8700 - Small Projects,4900 - Grants,16/11/2010,2078241-1,250,2107763 - Clacton Community Projects Comittee,Contribution towards the Clacton Christmas Lights Appeal
Tendring DC,http://statistics.data.gov.uk/id/local-authority-district/22UN,Financial Services,8700 - Small Projects,4900 - Grants,16/11/2010,2078241-2,4000,2107763 - Clacton Community Projects Comittee,Contribution towards the Clacton Christmas Lights Appeal
Tendring DC,http://statistics.data.gov.uk/id/local-authority-district/22UN,Financial Services,8700 - Small Projects,4900 - Grants,16/11/2010,2078241-3,250,2107763 - Clacton Community Projects Comittee,Contribution towards the Clacton Christmas Lights Appeal
Tendring DC,http://statistics.data.gov.uk/id/local-authority-district/22UN,Financial Services,8700 - Small Projects,4900 - Grants,16/11/2010,2078241-4,250,2107763 - Clacton Community Projects Comittee,Contribution towards the Clacton Christmas Lights Appeal
Tendring DC,http://statistics.data.gov.uk/id/local-authority-district/22UN,Financial Services,8700 - Small Projects,4900 - Grants,16/11/2010,2078241-5,250,2107763 - Clacton Community Projects Comittee,Contribution towards the Clacton Christmas Lights Appeal
Tendring DC,http://statistics.data.gov.uk/id/local-authority-district/22UN,Financial Services,8700 - Small Projects,4900 - Grants,16/11/2010,2078241-6,150,2107763 - Clacton Community Projects Comittee,Contribution towards the Clacton Christmas Lights Appeal
Tendring DC,http://statistics.data.gov.uk/id/local-authority-district/22UN,Financial Services,8700 - Small Projects,4900 - Grants,16/11/2010,2078241-7,150,2107763 - Clacton Community Projects Comittee,Contribution towards the Clacton Christmas Lights Appeal
Tendring DC,http://statistics.data.gov.uk/id/local-authority-district/22UN,Financial Services,8700 - Small Projects,4900 - Grants,16/11/2010,2078244-1,2373.5,2110616 - Gala Lights Ltd,To install and dismantle Christmas Lights
Tendring DC,http://statistics.data.gov.uk/id/local-authority-district/22UN,Financial Services,8700 - Small Projects,4900 - Grants,16/11/2010,2078245-1,500,2110626 - Brightlingsea Church Lads and Church Girls Brigade,To repair & replace band instruments
Tendring DC,http://statistics.data.gov.uk/id/local-authority-district/22UN,Financial Services,8700 - Small Projects,4900 - Grants,16/11/2010,2078246-1,599,2110636 - Brightlingsea in Bloom,To purchase a 5 tier stand
Tendring DC,http://statistics.data.gov.uk/id/local-authority-district/22UN,Financial Services,8700 - Small Projects,4900 - Grants,16/11/2010,2078248-1,114.5,2107763 - Clacton Community Projects Comittee,Contribution towards the Clacton Christmas Lights Appeal
Tendring DC,http://statistics.data.gov.uk/id/local-authority-district/22UN,Financial Services,8700 - Small Projects,4900 - Grants,16/11/2010,2078248-2,285.5,2107763 - Clacton Community Projects Comittee,Contribution towards the Clacton Christmas Lights Appeal
Tendring DC,http://statistics.data.gov.uk/id/local-authority-district/22UN,Financial Services,8700 - Small Projects,4900 - Grants,16/11/2010,2078248-3,100,2107763 - Clacton Community Projects Comittee,Contribution towards the Clacton Christmas Lights Appeal
Tendring DC,http://statistics.data.gov.uk/id/local-authority-district/22UN,Financial Services,8700 - Small Projects,4900 - Grants,16/11/2010,2078248-4,250,2107763 - Clacton Community Projects Comittee,Contribution towards the Clacton Christmas Lights Appeal
Tendring DC,http://statistics.data.gov.uk/id/local-authority-district/22UN,Financial Services,8700 - Small Projects,4900 - Grants,16/11/2010,2078248-5,250,2107763 - Clacton Community Projects Comittee,Contribution towards the Clacton Christmas Lights Appeal
Tendring DC,http://statistics.data.gov.uk/id/local-authority-district/22UN,Financial Services,8700 - Small Projects,4900 - Grants,16/11/2010,2078248-6,125,2107763 - Clacton Community Projects Comittee,Contribution towards the Clacton Christmas Lights Appeal
Tendring DC,http://statistics.data.gov.uk/id/local-authority-district/22UN,Financial Services,8700 - Small Projects,4900 - Grants,30/11/2010,2078738-1,250,2110689 - North Essex Photographic Workshop,To provide updates of modern equipment
Tendring DC,http://statistics.data.gov.uk/id/local-authority-district/22UN,Financial Services,8700 - Small Projects,4900 - Grants,30/11/2010,2078738-2,150,2110689 - North Essex Photographic Workshop,To provide updates of modern equipment
Tendring DC,http://statistics.data.gov.uk/id/local-authority-district/22UN,Financial Services,8700 - Small Projects,4900 - Grants,30/11/2010,2078738-3,150,2110689 - North Essex Photographic Workshop,To provide updates of modern equipment
Tendring DC,http://statistics.data.gov.uk/id/local-authority-district/22UN,Financial Services,8700 - Small Projects,4900 - Grants,30/11/2010,2078738-4,200,2110689 - North Essex Photographic Workshop,To provide updates of modern equipment
Tendring DC,http://statistics.data.gov.uk/id/local-authority-district/22UN,Financial Services,8700 - Small Projects,4900 - Grants,30/11/2010,2078738-5,250,2110689 - North Essex Photographic Workshop,To provide updates of modern equipment
Tendring DC,http://statistics.data.gov.uk/id/local-authority-district/22UN,Financial Services,8700 - Small Projects,4900 - Grants,30/11/2010,2078738-6,250,2110689 - North Essex Photographic Workshop,To provide updates of modern equipment
Tendring DC,http://statistics.data.gov.uk/id/local-authority-district/22UN,Financial Services,8700 - Small Projects,4900 - Grants,30/11/2010,2078738-7,250,2110689 - North Essex Photographic Workshop,To provide updates of modern equipment
Tendring DC,http://statistics.data.gov.uk/id/local-authority-district/22UN,Financial Services,8700 - Small Projects,4900 - Grants,30/11/2010,2078739-1,500,2108278 - Family Support - Brightlingsea,Contribution to purchase a new computer for the front office
Tendring DC,http://statistics.data.gov.uk/id/local-authority-district/22UN,Financial Services,8905 - Parish Precepts,6999 - Parish Precepts,05/10/2010,2077030-1,37603,2100075 - Alresford Parish Council,Parish Council Precepts
Tendring DC,http://statistics.data.gov.uk/id/local-authority-district/22UN,Financial Services,8905 - Parish Precepts,6999 - Parish Precepts,05/10/2010,2077031-1,15175,2100018 - Ardleigh Parish Council,Parish Council Precepts
Tendring DC,http://statistics.data.gov.uk/id/local-authority-district/22UN,Financial Services,8905 - Parish Precepts,6999 - Parish Precepts,05/10/2010,2077032-1,1500,2100192 - Beaumont Parish Council,Parish Council Precepts
Tendring DC,http://statistics.data.gov.uk/id/local-authority-district/22UN,Financial Services,8905 - Parish Precepts,6999 - Parish Precepts,05/10/2010,2077033-1,27020,2100559 - Great Bentley Parish Council,Parish Council Precepts
Tendring DC,http://statistics.data.gov.uk/id/local-authority-district/22UN,Financial Services,8905 - Parish Precepts,6999 - Parish Precepts,05/10/2010,2077035-1,10000,2100166 - Bradfield Parish Council,Parish Council Precepts
Tendring DC,http://statistics.data.gov.uk/id/local-authority-district/22UN,Financial Services,8905 - Parish Precepts,6999 - Parish Precepts,05/10/2010,2077036-1,78967,2100177 - Brightlingsea Town Council,Parish Council Precepts
Tendring DC,http://statistics.data.gov.uk/id/local-authority-district/22UN,Financial Services,8905 - Parish Precepts,6999 - Parish Precepts,05/10/2010,2077037-1,7000,2100690 - Gt Bromley Parish Council,Parish Council Precepts
Tendring DC,http://statistics.data.gov.uk/id/local-authority-district/22UN,Financial Services,8905 - Parish Precepts,6999 - Parish Precepts,05/10/2010,2077038-1,665,2100896 - Lt Bromley Parish Council,Parish Council Precepts
Tendring DC,http://statistics.data.gov.uk/id/local-authority-district/22UN,Financial Services,8905 - Parish Precepts,6999 - Parish Precepts,05/10/2010,2077039-1,34000,2100835 - Little Clacton Parish Council,Parish Council Precepts
Tendring DC,http://statistics.data.gov.uk/id/local-authority-district/22UN,Financial Services,8905 - Parish Precepts,6999 - Parish Precepts,05/10/2010,2077040-1,14700,2101558 - Elmstead Parish Council,Parish Council Precepts
Tendring DC,http://statistics.data.gov.uk/id/local-authority-district/22UN,Financial Services,8905 - Parish Precepts,6999 - Parish Precepts,05/10/2010,2077041-1,3250,2100544 - Frating Parish Council,Parish Council Precepts
Tendring DC,http://statistics.data.gov.uk/id/local-authority-district/22UN,Financial Services,8905 - Parish Precepts,6999 - Parish Precepts,05/10/2010,2077042-1,191478,2100584 - Frinton & Walton Town Council,Parish Council Precepts
Tendring DC,http://statistics.data.gov.uk/id/local-authority-district/22UN,Financial Services,8905 - Parish Precepts,6999 - Parish Precepts,05/10/2010,2077043-1,86159,2100624 - Harwich Town Council,Parish Council Precepts
Tendring DC,http://statistics.data.gov.uk/id/local-authority-district/22UN,Financial Services,8905 - Parish Precepts,6999 - Parish Precepts,05/10/2010,2077044-1,37133,2100813 - Lawford Parish Council,Parish Council Precepts
Tendring DC,http://statistics.data.gov.uk/id/local-authority-district/22UN,Financial Services,8905 - Parish Precepts,6999 - Parish Precepts,05/10/2010,2077045-1,7457,2100888 - Manningtree Town Council,Parish Council Precepts
Tendring DC,http://statistics.data.gov.uk/id/local-authority-district/22UN,Financial Services,8905 - Parish Precepts,6999 - Parish Precepts,05/10/2010,2077046-1,25500,2100943 - Mistley Parish Council,Parish Council Precepts
Tendring DC,http://statistics.data.gov.uk/id/local-authority-district/22UN,Financial Services,8905 - Parish Precepts,6999 - Parish Precepts,05/10/2010,2077047-1,7250,2100599 - Great Oakley Parish Council,Parish Council Precepts
Tendring DC,http://statistics.data.gov.uk/id/local-authority-district/22UN,Financial Services,8905 - Parish Precepts,6999 - Parish Precepts,05/10/2010,2077048-1,4000,2100865 - Little Oakley Parish Council,Parish Council Precepts
Tendring DC,http://statistics.data.gov.uk/id/local-authority-district/22UN,Financial Services,8905 - Parish Precepts,6999 - Parish Precepts,05/10/2010,2077049-1,14747,2101125 - Ramsey & Parkeston Parish Council,Parish Council Precepts
Tendring DC,http://statistics.data.gov.uk/id/local-authority-district/22UN,Financial Services,8905 - Parish Precepts,6999 - Parish Precepts,05/10/2010,2077050-1,49721,2101269 - St Osyth Parish Council,Parish Council Precepts
Tendring DC,http://statistics.data.gov.uk/id/local-authority-district/22UN,Financial Services,8905 - Parish Precepts,6999 - Parish Precepts,05/10/2010,2077051-1,3000,2101338 - Tendring Parish Council,Parish Council Precepts
Tendring DC,http://statistics.data.gov.uk/id/local-authority-district/22UN,Financial Services,8905 - Parish Precepts,6999 - Parish Precepts,05/10/2010,2077052-1,12427,2101494 - Thorpe le Soken Parish Council,Parish Council Precepts
Tendring DC,http://statistics.data.gov.uk/id/local-authority-district/22UN,Financial Services,8905 - Parish Precepts,6999 - Parish Precepts,05/10/2010,2077053-1,7500,2101435 - Thorrington Parish Coucil,Parish Council Precepts
Tendring DC,http://statistics.data.gov.uk/id/local-authority-district/22UN,Financial Services,8905 - Parish Precepts,6999 - Parish Precepts,05/10/2010,2077054-1,22000,2101504 - Weeley Parish Council,Parish Council Precepts
Tendring DC,http://statistics.data.gov.uk/id/local-authority-district/22UN,Financial Services,8905 - Parish Precepts,6999 - Parish Precepts,05/10/2010,2077055-1,4750,2101595 - Wix Parish Council,Parish Council Precepts
Tendring DC,http://statistics.data.gov.uk/id/local-authority-district/22UN,Financial Services,8905 - Parish Precepts,6999 - Parish Precepts,05/10/2010,2077056-1,2643,2101576 - Wrabness Parish Council,Parish Council Precepts
Tendring DC,http://statistics.data.gov.uk/id/local-authority-district/22UN,Financial Services,8915 - Interest & Investment Income,9600 - External Investment Interest Receivable,01/10/2010,1039894-3,-3082.19,2107040 - King & Shaxson Limited,FEES RE TREASURY MANAGEMENT
Tendring DC,http://statistics.data.gov.uk/id/local-authority-district/22UN,Financial Services,8915 - Interest & Investment Income,9600 - External Investment Interest Receivable,04/10/2010,1039896-3,-5185.75,2107040 - King & Shaxson Limited,FEES RE TREASURY MANAGEMENT
Tendring DC,http://statistics.data.gov.uk/id/local-authority-district/22UN,Financial Services,8915 - Interest & Investment Income,9600 - External Investment Interest Receivable,08/11/2010,2078102-3,-3673.97,2107040 - King & Shaxson Limited,Fees re Treasury Management
Tendring DC,http://statistics.data.gov.uk/id/local-authority-district/22UN,Financial Services,8915 - Interest & Investment Income,9600 - External Investment Interest Receivable,08/11/2010,2078103-3,-4886.58,2107040 - King & Shaxson Limited,Fees re Treasury Management
Tendring DC,http://statistics.data.gov.uk/id/local-authority-district/22UN,Financial Services,8971 - GF - Contributions Payable to the Pension Scheme,1810 - Superannuation  -  Financial Strain/Added Years,02/11/2010,2077869-5,16781.1,2100419 - Essex County Council,Pension 00013
Tendring DC,http://statistics.data.gov.uk/id/local-authority-district/22UN,Financial Services,8971 - GF - Contributions Payable to the Pension Scheme,1810 - Superannuation  -  Financial Strain/Added Years,07/12/2010,2078905-5,16781.1,2100419 - Essex County Council,Pension 00013
Tendring DC,http://statistics.data.gov.uk/id/local-authority-district/22UN,Financial Services,8971 - GF - Contributions Payable to the Pension Scheme,1816 - Superannuation Deficiency Contribution,02/11/2010,2077869-4,129130.83,2100419 - Essex County Council,Pension 00013
Tendring DC,http://statistics.data.gov.uk/id/local-authority-district/22UN,Financial Services,8971 - GF - Contributions Payable to the Pension Scheme,1816 - Superannuation Deficiency Contribution,07/12/2010,2078905-4,129130.83,2100419 - Essex County Council,Pension 00013
Tendring DC,http://statistics.data.gov.uk/id/local-authority-district/22UN,Financial Services,8971 - GF - Contributions Payable to the Pension Scheme,1822 - Superannuation - Port Health Pensions etc.,02/11/2010,2077870-1,704.65,2100419 - Essex County Council,Port Health Authority
Tendring DC,http://statistics.data.gov.uk/id/local-authority-district/22UN,Financial Services,8971 - GF - Contributions Payable to the Pension Scheme,1822 - Superannuation - Port Health Pensions etc.,07/12/2010,2078907-1,704.65,2100419 - Essex County Council,Port Health Authority
Tendring DC,http://statistics.data.gov.uk/id/local-authority-district/22UN,Financial Services,8985 - Redistributed National Non-Domestic Rate Income,9893 - Redistributed National Non-Domestic Rate Income,03/11/2010,1041091-2,-588951,2100432 - DCLG,NNDR AND RSG
Tendring DC,http://statistics.data.gov.uk/id/local-authority-district/22UN,Financial Services,8985 - Redistributed National Non-Domestic Rate Income,9893 - Redistributed National Non-Domestic Rate Income,13/11/2010,1041497-2,-588950,2100432 - DCLG,NNDR AND RSG
Tendring DC,http://statistics.data.gov.uk/id/local-authority-district/22UN,Financial Services,8985 - Redistributed National Non-Domestic Rate Income,9893 - Redistributed National Non-Domestic Rate Income,20/10/2010,2077610-2,-588951,2100432 - DCLG,NNDR and RSG
Tendring DC,http://statistics.data.gov.uk/id/local-authority-district/22UN,Financial Services,8985 - Redistributed National Non-Domestic Rate Income,9893 - Redistributed National Non-Domestic Rate Income,17/11/2010,2078416-2,-588950,2100432 - DCLG,NNDR and RSG
Tendring DC,http://statistics.data.gov.uk/id/local-authority-district/22UN,Financial Services,9880 - Collection Fund - Council Tax,R100 - Precept - ECC,15/10/2010,1040271-1,5543371,2100409 - Essex County Council,PRECEPT 151010
Tendring DC,http://statistics.data.gov.uk/id/local-authority-district/22UN,Financial Services,9880 - Collection Fund - Council Tax,R100 - Precept - ECC,15/11/2010,1040891-1,5543371,2100409 - Essex County Council,PRECEPT 151110
Tendring DC,http://statistics.data.gov.uk/id/local-authority-district/22UN,Financial Services,9880 - Collection Fund - Council Tax,R101 - Precept - Essex Fire,15/10/2010,1040273-1,338800,2100469 - Essex Fire Authority,PRECEPT 151010FIRE
Tendring DC,http://statistics.data.gov.uk/id/local-authority-district/22UN,Financial Services,9880 - Collection Fund - Council Tax,R101 - Precept - Essex Fire,15/11/2010,1040890-1,338800,2100469 - Essex Fire Authority,PRECEPT 151110 FIRE
Tendring DC,http://statistics.data.gov.uk/id/local-authority-district/22UN,Financial Services,9880 - Collection Fund - Council Tax,R101 - Precept - Essex Fire,20/12/2010,2079391-1,338800,2100469 - Essex Fire Authority,Precept 151210Fire
Tendring DC,http://statistics.data.gov.uk/id/local-authority-district/22UN,Financial Services,9880 - Collection Fund - Council Tax,R101 - Precept - Essex Fire,20/12/2010,2079393-1,5543371,2100409 - Essex County Council,Precept 151210
Tendring DC,http://statistics.data.gov.uk/id/local-authority-district/22UN,Financial Services,9880 - Collection Fund - Council Tax,R102 - Precept - Essex Police,15/10/2010,1040272-1,673927,2100500 - Essex Police Authority,PRECEPT 151010 POL
Tendring DC,http://statistics.data.gov.uk/id/local-authority-district/22UN,Financial Services,9880 - Collection Fund - Council Tax,R102 - Precept - Essex Police,15/11/2010,1040889-1,673927,2100500 - Essex Police Authority,PRECEPT 151110 POL
Tendring DC,http://statistics.data.gov.uk/id/local-authority-district/22UN,Financial Services,9880 - Collection Fund - Council Tax,R102 - Precept - Essex Police,20/12/2010,2079392-1,673927,2100500 - Essex Police Authority,Precept 151210POL
Tendring DC,http://statistics.data.gov.uk/id/local-authority-district/22UN,Financial Services,9880 - Collection Fund - Council Tax,R110 - Council Tax Balance - ECC,15/10/2010,1040271-2,48185,2100409 - Essex County Council,PRECEPT 151010
Tendring DC,http://statistics.data.gov.uk/id/local-authority-district/22UN,Financial Services,9880 - Collection Fund - Council Tax,R110 - Council Tax Balance - ECC,15/11/2010,1040891-2,48185,2100409 - Essex County Council,PRECEPT 151110
Tendring DC,http://statistics.data.gov.uk/id/local-authority-district/22UN,Financial Services,9880 - Collection Fund - Council Tax,R110 - Council Tax Balance - ECC,20/12/2010,2079393-2,48185,2100409 - Essex County Council,Precept 151210
Tendring DC,http://statistics.data.gov.uk/id/local-authority-district/22UN,Financial Services,9880 - Collection Fund - Council Tax,R111 - Council Tax Balance - Essex Fire,15/10/2010,1040273-2,2920,2100469 - Essex Fire Authority,PRECEPT 151010FIRE
Tendring DC,http://statistics.data.gov.uk/id/local-authority-district/22UN,Financial Services,9880 - Collection Fund - Council Tax,R111 - Council Tax Balance - Essex Fire,15/11/2010,1040890-2,2920,2100469 - Essex Fire Authority,PRECEPT 151110 FIRE
Tendring DC,http://statistics.data.gov.uk/id/local-authority-district/22UN,Financial Services,9880 - Collection Fund - Council Tax,R111 - Council Tax Balance - Essex Fire,20/12/2010,2079391-2,2920,2100469 - Essex Fire Authority,Precept 151210Fire
Tendring DC,http://statistics.data.gov.uk/id/local-authority-district/22UN,Financial Services,9880 - Collection Fund - Council Tax,R112 - Council Tax Balance - Essex Police,15/10/2010,1040272-2,5795,2100500 - Essex Police Authority,PRECEPT 151010 POL
Tendring DC,http://statistics.data.gov.uk/id/local-authority-district/22UN,Financial Services,9880 - Collection Fund - Council Tax,R112 - Council Tax Balance - Essex Police,15/11/2010,1040889-2,5795,2100500 - Essex Police Authority,PRECEPT 151110 POL
Tendring DC,http://statistics.data.gov.uk/id/local-authority-district/22UN,Financial Services,9880 - Collection Fund - Council Tax,R112 - Council Tax Balance - Essex Police,20/12/2010,2079392-2,5795,2100500 - Essex Police Authority,Precept 151210POL
Tendring DC,http://statistics.data.gov.uk/id/local-authority-district/22UN,Financial Services,9900 - General Fund Balance Sheet,B879 - Charges made by Merchant Acquirer,08/11/2010,1041501-1,204.3,2100202 - Capita Business Services Ltd,CAPITA OCT 10
Tendring DC,http://statistics.data.gov.uk/id/local-authority-district/22UN,Financial Services,9900 - General Fund Balance Sheet,B879 - Charges made by Merchant Acquirer,08/11/2010,1041501-2,160.44,2100202 - Capita Business Services Ltd,CAPITA OCT 10
Tendring DC,http://statistics.data.gov.uk/id/local-authority-district/22UN,Financial Services,9900 - General Fund Balance Sheet,B879 - Charges made by Merchant Acquirer,08/11/2010,1041501-3,197.1,2100202 - Capita Business Services Ltd,CAPITA OCT 10
Tendring DC,http://statistics.data.gov.uk/id/local-authority-district/22UN,Financial Services,9900 - General Fund Balance Sheet,B879 - Charges made by Merchant Acquirer,08/11/2010,1041501-4,187.31,2100202 - Capita Business Services Ltd,CAPITA OCT 10
Tendring DC,http://statistics.data.gov.uk/id/local-authority-district/22UN,Financial Services,9900 - General Fund Balance Sheet,B879 - Charges made by Merchant Acquirer,08/11/2010,1041501-5,211.32,2100202 - Capita Business Services Ltd,CAPITA OCT 10
Tendring DC,http://statistics.data.gov.uk/id/local-authority-district/22UN,Financial Services,9900 - General Fund Balance Sheet,B879 - Charges made by Merchant Acquirer,08/11/2010,1041501-6,85.78,2100202 - Capita Business Services Ltd,CAPITA OCT 10
Tendring DC,http://statistics.data.gov.uk/id/local-authority-district/22UN,Financial Services,9900 - General Fund Balance Sheet,B879 - Charges made by Merchant Acquirer,08/11/2010,1041501-7,155.16,2100202 - Capita Business Services Ltd,CAPITA OCT 10
Tendring DC,http://statistics.data.gov.uk/id/local-authority-district/22UN,Financial Services,9900 - General Fund Balance Sheet,B879 - Charges made by Merchant Acquirer,08/11/2010,1041501-8,184.76,2100202 - Capita Business Services Ltd,CAPITA OCT 10
Tendring DC,http://statistics.data.gov.uk/id/local-authority-district/22UN,Financial Services,9900 - General Fund Balance Sheet,B879 - Charges made by Merchant Acquirer,08/12/2010,1041504-1,227.88,2100202 - Capita Business Services Ltd,CAPITA NOV 10
Tendring DC,http://statistics.data.gov.uk/id/local-authority-district/22UN,Financial Services,9900 - General Fund Balance Sheet,B879 - Charges made by Merchant Acquirer,08/12/2010,1041504-2,187.65,2100202 - Capita Business Services Ltd,CAPITA NOV 10
Tendring DC,http://statistics.data.gov.uk/id/local-authority-district/22UN,Financial Services,9900 - General Fund Balance Sheet,B879 - Charges made by Merchant Acquirer,08/12/2010,1041504-3,226.26,2100202 - Capita Business Services Ltd,CAPITA NOV 10
Tendring DC,http://statistics.data.gov.uk/id/local-authority-district/22UN,Financial Services,9900 - General Fund Balance Sheet,B879 - Charges made by Merchant Acquirer,08/12/2010,1041504-4,195.73,2100202 - Capita Business Services Ltd,CAPITA NOV 10
Tendring DC,http://statistics.data.gov.uk/id/local-authority-district/22UN,Financial Services,9900 - General Fund Balance Sheet,B879 - Charges made by Merchant Acquirer,08/12/2010,1041504-5,232.74,2100202 - Capita Business Services Ltd,CAPITA NOV 10
Tendring DC,http://statistics.data.gov.uk/id/local-authority-district/22UN,Financial Services,9900 - General Fund Balance Sheet,B879 - Charges made by Merchant Acquirer,08/12/2010,1041504-6,84.21,2100202 - Capita Business Services Ltd,CAPITA NOV 10
Tendring DC,http://statistics.data.gov.uk/id/local-authority-district/22UN,Financial Services,9900 - General Fund Balance Sheet,B879 - Charges made by Merchant Acquirer,08/12/2010,1041504-7,162.72,2100202 - Capita Business Services Ltd,CAPITA NOV 10
Tendring DC,http://statistics.data.gov.uk/id/local-authority-district/22UN,Financial Services,9900 - General Fund Balance Sheet,B879 - Charges made by Merchant Acquirer,08/12/2010,1041504-8,250.92,2100202 - Capita Business Services Ltd,CAPITA NOV 10
Tendring DC,http://statistics.data.gov.uk/id/local-authority-district/22UN,Financial Services,9900 - General Fund Balance Sheet,B879 - Charges made by Merchant Acquirer,20/10/2010,2077611-1,232.56,2100202 - Capita Business Services Ltd,Capita Sept 10
Tendring DC,http://statistics.data.gov.uk/id/local-authority-district/22UN,Financial Services,9900 - General Fund Balance Sheet,B879 - Charges made by Merchant Acquirer,20/10/2010,2077611-2,227.31,2100202 - Capita Business Services Ltd,Capita Sept 10
Tendring DC,http://statistics.data.gov.uk/id/local-authority-district/22UN,Financial Services,9900 - General Fund Balance Sheet,B879 - Charges made by Merchant Acquirer,20/10/2010,2077611-3,202.68,2100202 - Capita Business Services Ltd,Capita Sept 10
Tendring DC,http://statistics.data.gov.uk/id/local-authority-district/22UN,Financial Services,9900 - General Fund Balance Sheet,B879 - Charges made by Merchant Acquirer,20/10/2010,2077611-4,206.24,2100202 - Capita Business Services Ltd,Capita Sept 10
Tendring DC,http://statistics.data.gov.uk/id/local-authority-district/22UN,Financial Services,9900 - General Fund Balance Sheet,B879 - Charges made by Merchant Acquirer,20/10/2010,2077611-5,223.2,2100202 - Capita Business Services Ltd,Capita Sept 10
Tendring DC,http://statistics.data.gov.uk/id/local-authority-district/22UN,Financial Services,9900 - General Fund Balance Sheet,B879 - Charges made by Merchant Acquirer,20/10/2010,2077611-6,93.19,2100202 - Capita Business Services Ltd,Capita Sept 10
Tendring DC,http://statistics.data.gov.uk/id/local-authority-district/22UN,Financial Services,9900 - General Fund Balance Sheet,B879 - Charges made by Merchant Acquirer,20/10/2010,2077611-7,153.9,2100202 - Capita Business Services Ltd,Capita Sept 10
Tendring DC,http://statistics.data.gov.uk/id/local-authority-district/22UN,Financial Services,9900 - General Fund Balance Sheet,B879 - Charges made by Merchant Acquirer,20/10/2010,2077611-8,176.45,2100202 - Capita Business Services Ltd,Capita Sept 10
Tendring DC,http://statistics.data.gov.uk/id/local-authority-district/22UN,Financial Services,9900 - General Fund Balance Sheet,B886 - Rail Warrants Allocation Holding Account,12/11/2010,1040892-1,1203.8,2101174 - R S P Ltd,RAIL WARRANTS
Tendring DC,http://statistics.data.gov.uk/id/local-authority-district/22UN,Financial Services,9900 - General Fund Balance Sheet,B886 - Rail Warrants Allocation Holding Account,10/12/2010,1041505-1,1036.8,2101174 - R S P Ltd,RAIL WARRANTS
Tendring DC,http://statistics.data.gov.uk/id/local-authority-district/22UN,Financial Services,9900 - General Fund Balance Sheet,B886 - Rail Warrants Allocation Holding Account,20/10/2010,2077612-1,1110.8,2101174 - R S P Ltd,Rail Warrants
Tendring DC,http://statistics.data.gov.uk/id/local-authority-district/22UN,Financial Services,9940 - Collection Fund Balance Sheet,B244 - CLG - NNDR Balance,03/11/2010,1041091-1,1131749,2100432 - DCLG,NNDR AND RSG
Tendring DC,http://statistics.data.gov.uk/id/local-authority-district/22UN,Financial Services,9940 - Collection Fund Balance Sheet,B244 - CLG - NNDR Balance,13/11/2010,1041497-1,1131749,2100432 - DCLG,NNDR AND RSG
Tendring DC,http://statistics.data.gov.uk/id/local-authority-district/22UN,Financial Services,9940 - Collection Fund Balance Sheet,B244 - CLG - NNDR Balance,20/10/2010,2077610-1,1131749,2100432 - DCLG,NNDR and RSG
Tendring DC,http://statistics.data.gov.uk/id/local-authority-district/22UN,Financial Services,9940 - Collection Fund Balance Sheet,B244 - CLG - NNDR Balance,17/11/2010,2078416-1,1131748,2100432 - DCLG,NNDR and RSG
Tendring DC,http://statistics.data.gov.uk/id/local-authority-district/22UN,Financial Services,C272 - Harwich Masterplan,C200 - Main Contractor,23/11/2010,2078595-1,10000,2100498 - Essex County Council,Harwich Public Realm
Tendring DC,http://statistics.data.gov.uk/id/local-authority-district/22UN,Housing Services,5140 - Homelessness,4680 - Bed & Breakfast Accommodation,23/11/2010,1040758-1,980,2110352 - Chequers Hotel Ltd,REDACTED PERSONAL DATA  
Tendring DC,http://statistics.data.gov.uk/id/local-authority-district/22UN,Housing Services,5140 - Homelessness,4680 - Bed & Breakfast Accommodation,26/10/2010,2077616-1,700,2100819 - Marine View,REDACTED PERSONAL DATA  
Tendring DC,http://statistics.data.gov.uk/id/local-authority-district/22UN,Housing Services,5140 - Homelessness,4680 - Bed & Breakfast Accommodation,21/12/2010,2079251-1,350,2110352 - Chequers Hotel Ltd,REDACTED PERSONAL DATA  
Tendring DC,http://statistics.data.gov.uk/id/local-authority-district/22UN,Housing Services,5140 - Homelessness,4680 - Bed & Breakfast Accommodation,21/12/2010,2079251-2,350,2110352 - Chequers Hotel Ltd,REDACTED PERSONAL DATA  
Tendring DC,http://statistics.data.gov.uk/id/local-authority-district/22UN,Housing Services,5140 - Homelessness,4680 - Bed & Breakfast Accommodation,21/12/2010,2079252-1,980,2110352 - Chequers Hotel Ltd,REDACTED PERSONAL DATA  
Tendring DC,http://statistics.data.gov.uk/id/local-authority-district/22UN,Housing Services,5140 - Homelessness,4680 - Bed & Breakfast Accommodation,21/12/2010,2079255-1,630,2110352 - Chequers Hotel Ltd,REDACTED PERSONAL DATA  
Tendring DC,http://statistics.data.gov.uk/id/local-authority-district/22UN,Housing Services,5140 - Homelessness,4682 - Rent Deposit Guarantees,12/10/2010,2077136-1,800,2105767 - Fort Knox,Deposit Guarantee
Tendring DC,http://statistics.data.gov.uk/id/local-authority-district/22UN,Housing Services,5140 - Homelessness,4682 - Rent Deposit Guarantees,12/10/2010,2077139-1,550,REDACTED PERSONAL DATA  ,Deposit Guarantee
Tendring DC,http://statistics.data.gov.uk/id/local-authority-district/22UN,Housing Services,5140 - Homelessness,4682 - Rent Deposit Guarantees,19/10/2010,2077527-1,565,2101020 - NMH Property Services Ltd,Deposit Guarantee
Tendring DC,http://statistics.data.gov.uk/id/local-authority-district/22UN,Housing Services,5140 - Homelessness,4682 - Rent Deposit Guarantees,19/10/2010,2077528-1,650,2101020 - NMH Property Services Ltd,Deposit Guarantee
Tendring DC,http://statistics.data.gov.uk/id/local-authority-district/22UN,Housing Services,5140 - Homelessness,4683 - Other Homelessness Expenses,09/11/2010,2078053-1,550,REDACTED PERSONAL DATA  ,Deposit Guarantee
Tendring DC,http://statistics.data.gov.uk/id/local-authority-district/22UN,Housing Services,5140 - Homelessness,4683 - Other Homelessness Expenses,09/11/2010,2078057-1,595,REDACTED PERSONAL DATA  ,Deposit Guarantee
Tendring DC,http://statistics.data.gov.uk/id/local-authority-district/22UN,Housing Services,5140 - Homelessness,4683 - Other Homelessness Expenses,02/11/2010,2078058-1,595,REDACTED PERSONAL DATA  ,Deposit Guarantee
Tendring DC,http://statistics.data.gov.uk/id/local-authority-district/22UN,Housing Services,5140 - Homelessness,4683 - Other Homelessness Expenses,09/11/2010,2078060-1,555.48,2100195 - Bond Estates,Deposit Guarantee
Tendring DC,http://statistics.data.gov.uk/id/local-authority-district/22UN,Housing Services,5140 - Homelessness,4683 - Other Homelessness Expenses,09/11/2010,2078115-1,595,REDACTED PERSONAL DATA  ,Deposit Guarantee
Tendring DC,http://statistics.data.gov.uk/id/local-authority-district/22UN,Housing Services,5140 - Homelessness,4683 - Other Homelessness Expenses,23/11/2010,2078517-1,525,2101072 - Omega Property Services,Deposit Guarantee
Tendring DC,http://statistics.data.gov.uk/id/local-authority-district/22UN,Housing Services,5140 - Homelessness,4683 - Other Homelessness Expenses,23/11/2010,2078521-1,900,2105581 - Anthony James Estate Agents,Deposit Guarantee
Tendring DC,http://statistics.data.gov.uk/id/local-authority-district/22UN,Housing Services,5140 - Homelessness,4683 - Other Homelessness Expenses,30/11/2010,2078691-1,525,2105243 - Pilotrate Limited,Deposit Guarantee
Tendring DC,http://statistics.data.gov.uk/id/local-authority-district/22UN,Housing Services,5140 - Homelessness,4683 - Other Homelessness Expenses,07/12/2010,2078816-1,2000,2109244 - Catch 22,1 YEAR SLA MEDIATION 11/11/10
Tendring DC,http://statistics.data.gov.uk/id/local-authority-district/22UN,Housing Services,5140 - Homelessness,4683 - Other Homelessness Expenses,14/12/2010,2079058-1,695,REDACTED PERSONAL DATA  ,Dep Guarantee
Tendring DC,http://statistics.data.gov.uk/id/local-authority-district/22UN,Housing Services,5140 - Homelessness,4683 - Other Homelessness Expenses,14/12/2010,2079061-1,800,2105767 - Fort Knox,Deposit Guarantee
Tendring DC,http://statistics.data.gov.uk/id/local-authority-district/22UN,Housing Services,5140 - Homelessness,4683 - Other Homelessness Expenses,14/12/2010,2079064-1,830.11,2101730 - Norman cory t/a Cory & Co,Deposit Guarantee
Tendring DC,http://statistics.data.gov.uk/id/local-authority-district/22UN,Housing Services,5140 - Homelessness,4683 - Other Homelessness Expenses,14/12/2010,2079065-1,500,2102530 - The Letting Shop,Deposit guarantee
Tendring DC,http://statistics.data.gov.uk/id/local-authority-district/22UN,Housing Services,5140 - Homelessness,4683 - Other Homelessness Expenses,14/12/2010,2079066-1,720,REDACTED PERSONAL DATA  ,Deposit Guarantee
Tendring DC,http://statistics.data.gov.uk/id/local-authority-district/22UN,Housing Services,5140 - Homelessness,4683 - Other Homelessness Expenses,21/12/2010,2079359-1,839.71,2101730 - Norman cory t/a Cory & Co,Deposit Guarantee
Tendring DC,http://statistics.data.gov.uk/id/local-authority-district/22UN,Housing Services,5140 - Homelessness,4687 - Homelessness Prevention,29/10/2010,2077823-1,800,REDACTED PERSONAL DATA  ,
Tendring DC,http://statistics.data.gov.uk/id/local-authority-district/22UN,Housing Services,5140 - Homelessness,9032 - Homelessness Accommodation Charges,26/10/2010,2077616-2,-14.18,2100819 - Marine View,REDACTED PERSONAL DATA  
Tendring DC,http://statistics.data.gov.uk/id/local-authority-district/22UN,Housing Services,5141 - Homelessness Special Projects,4687 - Homelessness Prevention,12/10/2010,2077142-1,660,2101491 - The Letting Link,Prevention Fund
Tendring DC,http://statistics.data.gov.uk/id/local-authority-district/22UN,Housing Services,5220 - Policy & Management,5930 - Business Planning Expenses,19/10/2010,2077445-1,750,2100254 - ConsultCIH Ltd,Housing Division Practice
Tendring DC,http://statistics.data.gov.uk/id/local-authority-district/22UN,Housing Services,5240 - Managing Tenancies,4644 - Energy Performance Certificate Costs,26/10/2010,1040104-1,1413.16,2104823 - NPS South East Ltd,EPC SEPTEMBER 10
Tendring DC,http://statistics.data.gov.uk/id/local-authority-district/22UN,Housing Services,5240 - Managing Tenancies,4644 - Energy Performance Certificate Costs,05/10/2010,2076903-1,1653.88,2104823 - NPS South East Ltd,Aug-10
Tendring DC,http://statistics.data.gov.uk/id/local-authority-district/22UN,Housing Services,5240 - Managing Tenancies,4644 - Energy Performance Certificate Costs,30/11/2010,2078721-1,745.04,2104823 - NPS South East Ltd,Works for Clacton Area
Tendring DC,http://statistics.data.gov.uk/id/local-authority-district/22UN,Housing Services,5240 - Managing Tenancies,5242 - Tenant Relations,14/12/2010,1041185-1,630,2104177 - Corporate Document Services Ltd,TENANCY AGREEMENT
Tendring DC,http://statistics.data.gov.uk/id/local-authority-district/22UN,Housing Services,5240 - Managing Tenancies,5242 - Tenant Relations,14/12/2010,1041186-1,570,2104177 - Corporate Document Services Ltd,LEASEHOLDERS NEWS
Tendring DC,http://statistics.data.gov.uk/id/local-authority-district/22UN,Housing Services,5240 - Managing Tenancies,5242 - Tenant Relations,16/11/2010,2078271-1,1832.21,2101139 - Royal Mail,633665014 a/c
Tendring DC,http://statistics.data.gov.uk/id/local-authority-district/22UN,Housing Services,5240 - Managing Tenancies,5242 - Tenant Relations,30/11/2010,2078715-1,1761.25,2104177 - Corporate Document Services Ltd,ASB Newsletter Sept
Tendring DC,http://statistics.data.gov.uk/id/local-authority-district/22UN,Housing Services,5240 - Managing Tenancies,5242 - Tenant Relations,30/11/2010,2078716-1,2392.5,2104177 - Corporate Document Services Ltd,Tendring Annual Report
Tendring DC,http://statistics.data.gov.uk/id/local-authority-district/22UN,Housing Services,5240 - Managing Tenancies,5242 - Tenant Relations,07/12/2010,2078804-1,613.75,2104177 - Corporate Document Services Ltd,leaseholder news 2010
Tendring DC,http://statistics.data.gov.uk/id/local-authority-district/22UN,Housing Services,5240 - Managing Tenancies,5242 - Tenant Relations,07/12/2010,2078815-1,595,2100057 - Applebys (Removals) Ltd,JOB ID 14281/2433 26/11
Tendring DC,http://statistics.data.gov.uk/id/local-authority-district/22UN,Housing Services,5240 - Managing Tenancies,6620 - Under Occupation Incentive Scheme,30/11/2010,2078734-1,750,REDACTED PERSONAL DATA  ,Underoccupation Transfer Incentive Scheme
Tendring DC,http://statistics.data.gov.uk/id/local-authority-district/22UN,Housing Services,5260 - Rent Collection And Accounting,4460 - Legal & Professional Expenses,23/11/2010,1040757-1,820,2102449 - HQN Ltd,SVS RIE/1049 01/11/10-31/10/11
Tendring DC,http://statistics.data.gov.uk/id/local-authority-district/22UN,Housing Services,5260 - Rent Collection And Accounting,4460 - Legal & Professional Expenses,01/12/2010,1041500-1,1120,2100269 - Co operative Bank plc,POSSESSIONS ONLINE-NOV 10
Tendring DC,http://statistics.data.gov.uk/id/local-authority-district/22UN,Housing Services,5260 - Rent Collection And Accounting,4460 - Legal & Professional Expenses,15/10/2010,2077519-1,970,2100304 - CO-OP Bank,Possessions Aug 10
Tendring DC,http://statistics.data.gov.uk/id/local-authority-district/22UN,Housing Services,5260 - Rent Collection And Accounting,4460 - Legal & Professional Expenses,17/11/2010,2078415-1,990,2100304 - CO-OP Bank,Possessions Oct 2010
Tendring DC,http://statistics.data.gov.uk/id/local-authority-district/22UN,Housing Services,5260 - Rent Collection And Accounting,4757 - IT External Charges,12/10/2010,2077246-1,553.17,2101204 - Northgate Information Solutions UK Ltd,Choice based Lettings
Tendring DC,http://statistics.data.gov.uk/id/local-authority-district/22UN,Housing Services,5340 - Communal Central Heating,2304 - Energy Costs - Electricity,21/12/2010,1039518-2,916.12,2100197 - British Gas Trading Ltd,July Invoice inc. credits
Tendring DC,http://statistics.data.gov.uk/id/local-authority-district/22UN,Housing Services,5340 - Communal Central Heating,2304 - Energy Costs - Electricity,23/11/2010,1040749-1,690.06,2104620 - Corona Energy Retail 4 Limited,VYNTONER HSE OCT 10
Tendring DC,http://statistics.data.gov.uk/id/local-authority-district/22UN,Housing Services,5340 - Communal Central Heating,2304 - Energy Costs - Electricity,21/12/2010,2076500-2,584.09,2100197 - British Gas Trading Ltd,Elec Aug 10
Tendring DC,http://statistics.data.gov.uk/id/local-authority-district/22UN,Housing Services,5340 - Communal Central Heating,2304 - Energy Costs - Electricity,21/12/2010,2077729-2,1575.28,2100197 - British Gas Trading Ltd,Multibill Sept 10
Tendring DC,http://statistics.data.gov.uk/id/local-authority-district/22UN,Housing Services,5340 - Communal Central Heating,2304 - Energy Costs - Electricity,21/12/2010,2078632-2,1208.28,2100197 - British Gas Trading Ltd,British Gas October 10
Tendring DC,http://statistics.data.gov.uk/id/local-authority-district/22UN,Housing Services,5340 - Communal Central Heating,2304 - Energy Costs - Electricity,21/12/2010,2079347-2,1388.72,2100197 - British Gas Trading Ltd,
Tendring DC,http://statistics.data.gov.uk/id/local-authority-district/22UN,Housing Services,5340 - Communal Central Heating,2308 - Energy Costs - Gas (Including LPG),21/12/2010,1041380-1,1322.91,2104620 - Corona Energy Retail 4 Limited,OCT-NOV 10-CROOKED ELMS
Tendring DC,http://statistics.data.gov.uk/id/local-authority-district/22UN,Housing Services,5340 - Communal Central Heating,2308 - Energy Costs - Gas (Including LPG),21/12/2010,1041381-1,1986.11,2104620 - Corona Energy Retail 4 Limited,OCT/NOV 10 GREENFIELDS
Tendring DC,http://statistics.data.gov.uk/id/local-authority-district/22UN,Housing Services,5340 - Communal Central Heating,2308 - Energy Costs - Gas (Including LPG),21/12/2010,1041382-1,1451.86,2104620 - Corona Energy Retail 4 Limited,OCT/NOV 10 GROOM
Tendring DC,http://statistics.data.gov.uk/id/local-authority-district/22UN,Housing Services,5340 - Communal Central Heating,2308 - Energy Costs - Gas (Including LPG),21/12/2010,1041383-1,1149.72,2104620 - Corona Energy Retail 4 Limited,NOV 10 HONEYCROFT
Tendring DC,http://statistics.data.gov.uk/id/local-authority-district/22UN,Housing Services,5340 - Communal Central Heating,2308 - Energy Costs - Gas (Including LPG),21/12/2010,1041384-1,1155.06,2104620 - Corona Energy Retail 4 Limited,OCT/NOV KATE DANIELS
Tendring DC,http://statistics.data.gov.uk/id/local-authority-district/22UN,Housing Services,5340 - Communal Central Heating,2308 - Energy Costs - Gas (Including LPG),21/12/2010,1041385-1,977.87,2104620 - Corona Energy Retail 4 Limited,OCT/NOV 10 MEAD
Tendring DC,http://statistics.data.gov.uk/id/local-authority-district/22UN,Housing Services,5340 - Communal Central Heating,2308 - Energy Costs - Gas (Including LPG),21/12/2010,1041387-1,1597.31,2104620 - Corona Energy Retail 4 Limited,NOV10 SPENDELLS
Tendring DC,http://statistics.data.gov.uk/id/local-authority-district/22UN,Housing Services,5340 - Communal Central Heating,2308 - Energy Costs - Gas (Including LPG),21/12/2010,1041388-1,638.06,2104620 - Corona Energy Retail 4 Limited,NOV 10 VYNTONER
Tendring DC,http://statistics.data.gov.uk/id/local-authority-district/22UN,Housing Services,5340 - Communal Central Heating,2308 - Energy Costs - Gas (Including LPG),19/10/2010,2077452-1,525.7,2104620 - Corona Energy Retail 4 Limited,Spendells House
Tendring DC,http://statistics.data.gov.uk/id/local-authority-district/22UN,Housing Services,5340 - Communal Central Heating,2308 - Energy Costs - Gas (Including LPG),19/10/2010,2077457-1,574.98,2104620 - Corona Energy Retail 4 Limited,Greenfields
Tendring DC,http://statistics.data.gov.uk/id/local-authority-district/22UN,Housing Services,5340 - Communal Central Heating,2308 - Energy Costs - Gas (Including LPG),26/10/2010,2077713-1,561.51,2104620 - Corona Energy Retail 4 Limited,Honey Croft Sept
Tendring DC,http://statistics.data.gov.uk/id/local-authority-district/22UN,Housing Services,5340 - Communal Central Heating,2308 - Energy Costs - Gas (Including LPG),26/10/2010,2077716-1,547,2104620 - Corona Energy Retail 4 Limited,Spendells
Tendring DC,http://statistics.data.gov.uk/id/local-authority-district/22UN,Housing Services,5340 - Communal Central Heating,2308 - Energy Costs - Gas (Including LPG),26/10/2010,2077717-1,571.99,2104620 - Corona Energy Retail 4 Limited,Vyntoner Hse Sept
Tendring DC,http://statistics.data.gov.uk/id/local-authority-district/22UN,Housing Services,5340 - Communal Central Heating,2308 - Energy Costs - Gas (Including LPG),26/10/2010,2077719-1,507.02,2104620 - Corona Energy Retail 4 Limited,Groom Sept
Tendring DC,http://statistics.data.gov.uk/id/local-authority-district/22UN,Housing Services,5340 - Communal Central Heating,2308 - Energy Costs - Gas (Including LPG),26/10/2010,2077720-1,624.91,2104620 - Corona Energy Retail 4 Limited,Greenfields Sept
Tendring DC,http://statistics.data.gov.uk/id/local-authority-district/22UN,Housing Services,5340 - Communal Central Heating,2308 - Energy Costs - Gas (Including LPG),23/11/2010,2078528-1,726.77,2104620 - Corona Energy Retail 4 Limited,Honeycroft - Oct 10
Tendring DC,http://statistics.data.gov.uk/id/local-authority-district/22UN,Housing Services,5360 - Sheltered Units,2304 - Energy Costs - Electricity,21/12/2010,1039518-1,286,2100197 - British Gas Trading Ltd,July Invoice inc. credits
Tendring DC,http://statistics.data.gov.uk/id/local-authority-district/22UN,Housing Services,5360 - Sheltered Units,2304 - Energy Costs - Electricity,21/12/2010,2076500-1,227.72,2100197 - British Gas Trading Ltd,Elec Aug 10
Tendring DC,http://statistics.data.gov.uk/id/local-authority-district/22UN,Housing Services,5360 - Sheltered Units,2304 - Energy Costs - Electricity,21/12/2010,2077729-1,336.39,2100197 - British Gas Trading Ltd,Multibill Sept 10
Tendring DC,http://statistics.data.gov.uk/id/local-authority-district/22UN,Housing Services,5360 - Sheltered Units,2304 - Energy Costs - Electricity,21/12/2010,2078632-1,479.16,2100197 - British Gas Trading Ltd,British Gas October 10
Tendring DC,http://statistics.data.gov.uk/id/local-authority-district/22UN,Housing Services,5360 - Sheltered Units,2304 - Energy Costs - Electricity,21/12/2010,2079347-1,236.41,2100197 - British Gas Trading Ltd,
Tendring DC,http://statistics.data.gov.uk/id/local-authority-district/22UN,Housing Services,5420 - Communal Cleaning,2706 - Communal Areas Cleaning Expenses,12/10/2010,1039912-1,3344.32,2107884 - Pinnacle Essex,Sep-10
Tendring DC,http://statistics.data.gov.uk/id/local-authority-district/22UN,Housing Services,5420 - Communal Cleaning,2706 - Communal Areas Cleaning Expenses,09/11/2010,1040559-1,3344.32,2107884 - Pinnacle Essex,OCT CLEANING 2010
Tendring DC,http://statistics.data.gov.uk/id/local-authority-district/22UN,Housing Services,5420 - Communal Cleaning,2706 - Communal Areas Cleaning Expenses,05/10/2010,2076898-1,1590,2103418 - Command Pest Control Limited T/A Pestclear,REDACTED PERSONAL DATA  
Tendring DC,http://statistics.data.gov.uk/id/local-authority-district/22UN,Housing Services,5420 - Communal Cleaning,2706 - Communal Areas Cleaning Expenses,07/12/2010,2078799-1,3344.32,2107884 - Pinnacle Essex,NOVEMBER CLEANING
Tendring DC,http://statistics.data.gov.uk/id/local-authority-district/22UN,Housing Services,5440 - Communal Electricity,2304 - Energy Costs - Electricity,21/12/2010,1039518-3,11045.46,2100197 - British Gas Trading Ltd,July Invoice inc. credits
Tendring DC,http://statistics.data.gov.uk/id/local-authority-district/22UN,Housing Services,5440 - Communal Electricity,2304 - Energy Costs - Electricity,21/12/2010,1039518-4,778.62,2100197 - British Gas Trading Ltd,July Invoice inc. credits
Tendring DC,http://statistics.data.gov.uk/id/local-authority-district/22UN,Housing Services,5440 - Communal Electricity,2304 - Energy Costs - Electricity,21/12/2010,1039518-5,-14424.27,2100197 - British Gas Trading Ltd,July Invoice inc. credits
Tendring DC,http://statistics.data.gov.uk/id/local-authority-district/22UN,Housing Services,5440 - Communal Electricity,2304 - Energy Costs - Electricity,21/12/2010,1039518-6,-32990.7,2100197 - British Gas Trading Ltd,July Invoice inc. credits
Tendring DC,http://statistics.data.gov.uk/id/local-authority-district/22UN,Housing Services,5440 - Communal Electricity,2304 - Energy Costs - Electricity,21/12/2010,1039518-7,-18294.68,2100197 - British Gas Trading Ltd,July Invoice inc. credits
Tendring DC,http://statistics.data.gov.uk/id/local-authority-district/22UN,Housing Services,5440 - Communal Electricity,2304 - Energy Costs - Electricity,21/12/2010,2076500-3,5014.38,2100197 - British Gas Trading Ltd,Elec Aug 10
Tendring DC,http://statistics.data.gov.uk/id/local-authority-district/22UN,Housing Services,5440 - Communal Electricity,2304 - Energy Costs - Electricity,21/12/2010,2076500-4,275.71,2100197 - British Gas Trading Ltd,Elec Aug 10
Tendring DC,http://statistics.data.gov.uk/id/local-authority-district/22UN,Housing Services,5440 - Communal Electricity,2304 - Energy Costs - Electricity,21/12/2010,2076500-5,-201.4,2100197 - British Gas Trading Ltd,Elec Aug 10
Tendring DC,http://statistics.data.gov.uk/id/local-authority-district/22UN,Housing Services,5440 - Communal Electricity,2304 - Energy Costs - Electricity,21/12/2010,2077729-3,9004.1,2100197 - British Gas Trading Ltd,Multibill Sept 10
Tendring DC,http://statistics.data.gov.uk/id/local-authority-district/22UN,Housing Services,5440 - Communal Electricity,2304 - Energy Costs - Electricity,21/12/2010,2077729-4,-2868.27,2100197 - British Gas Trading Ltd,Multibill Sept 10
Tendring DC,http://statistics.data.gov.uk/id/local-authority-district/22UN,Housing Services,5440 - Communal Electricity,2304 - Energy Costs - Electricity,21/12/2010,2077729-5,-2887.52,2100197 - British Gas Trading Ltd,Multibill Sept 10
Tendring DC,http://statistics.data.gov.uk/id/local-authority-district/22UN,Housing Services,5440 - Communal Electricity,2304 - Energy Costs - Electricity,21/12/2010,2077729-6,-2540.44,2100197 - British Gas Trading Ltd,Multibill Sept 10
Tendring DC,http://statistics.data.gov.uk/id/local-authority-district/22UN,Housing Services,5440 - Communal Electricity,2304 - Energy Costs - Electricity,21/12/2010,2078632-3,8783.15,2100197 - British Gas Trading Ltd,British Gas October 10
Tendring DC,http://statistics.data.gov.uk/id/local-authority-district/22UN,Housing Services,5440 - Communal Electricity,2304 - Energy Costs - Electricity,21/12/2010,2078632-4,307.59,2100197 - British Gas Trading Ltd,British Gas October 10
Tendring DC,http://statistics.data.gov.uk/id/local-authority-district/22UN,Housing Services,5440 - Communal Electricity,2304 - Energy Costs - Electricity,21/12/2010,2078632-5,-1688.83,2100197 - British Gas Trading Ltd,British Gas October 10
Tendring DC,http://statistics.data.gov.uk/id/local-authority-district/22UN,Housing Services,5440 - Communal Electricity,2304 - Energy Costs - Electricity,21/12/2010,2079347-3,8189.56,2100197 - British Gas Trading Ltd,
Tendring DC,http://statistics.data.gov.uk/id/local-authority-district/22UN,Housing Services,5440 - Communal Electricity,2304 - Energy Costs - Electricity,21/12/2010,2079347-4,530.77,2100197 - British Gas Trading Ltd,
Tendring DC,http://statistics.data.gov.uk/id/local-authority-district/22UN,Housing Services,5440 - Communal Electricity,2304 - Energy Costs - Electricity,21/12/2010,2079347-5,-1903.93,2100197 - British Gas Trading Ltd,
Tendring DC,http://statistics.data.gov.uk/id/local-authority-district/22UN,Housing Services,5480 - Repair & Maintenance,2000 - Responsive Maintenance - Miscellaneous,21/12/2010,1041521-1,72391.81,2101187 - Roalco Limited,ROALCO
Tendring DC,http://statistics.data.gov.uk/id/local-authority-district/22UN,Housing Services,5480 - Repair & Maintenance,2000 - Responsive Maintenance - Miscellaneous,19/10/2010,2077556-1,104993.99,2101187 - Roalco Limited,Roalco
Tendring DC,http://statistics.data.gov.uk/id/local-authority-district/22UN,Housing Services,5480 - Repair & Maintenance,2000 - Responsive Maintenance - Miscellaneous,19/10/2010,2077556-2,7.43,2101187 - Roalco Limited,Roalco
Tendring DC,http://statistics.data.gov.uk/id/local-authority-district/22UN,Housing Services,5480 - Repair & Maintenance,2000 - Responsive Maintenance - Miscellaneous,16/11/2010,2078365-1,104448.81,2101187 - Roalco Limited,Roalco
Tendring DC,http://statistics.data.gov.uk/id/local-authority-district/22UN,Housing Services,5480 - Repair & Maintenance,2014 - Decoration Allowances,12/10/2010,1039910-1,1885.75,2109778 - ICI Contract Direct,Aug-10
Tendring DC,http://statistics.data.gov.uk/id/local-authority-district/22UN,Housing Services,5480 - Repair & Maintenance,2014 - Decoration Allowances,14/12/2010,1041187-1,1374.99,2109778 - ICI Contract Direct,VARIOUS
Tendring DC,http://statistics.data.gov.uk/id/local-authority-district/22UN,Housing Services,5480 - Repair & Maintenance,2014 - Decoration Allowances,12/10/2010,2077287-1,1530.84,2109778 - ICI Contract Direct,Jul-10
Tendring DC,http://statistics.data.gov.uk/id/local-authority-district/22UN,Housing Services,5480 - Repair & Maintenance,2014 - Decoration Allowances,30/11/2010,2078712-1,1209.46,2109778 - ICI Contract Direct,DDC Tenant Scheme Oct 10
Tendring DC,http://statistics.data.gov.uk/id/local-authority-district/22UN,Housing Services,5480 - Repair & Maintenance,2016 - PVCu Window And Door Repairs,16/11/2010,2078382-1,685.97,2101444 - Thermoshield Windows Ltd,REDACTED PERSONAL DATA  
Tendring DC,http://statistics.data.gov.uk/id/local-authority-district/22UN,Housing Services,5480 - Repair & Maintenance,2017 - Mechanical Equipment /Extract Fans,12/10/2010,1039953-1,592.35,2100572 - Envirovent Ltd,REDACTED PERSONAL DATA  
Tendring DC,http://statistics.data.gov.uk/id/local-authority-district/22UN,Housing Services,5480 - Repair & Maintenance,2017 - Mechanical Equipment /Extract Fans,12/10/2010,1039954-1,520,2100572 - Envirovent Ltd,REDACTED PERSONAL DATA  
Tendring DC,http://statistics.data.gov.uk/id/local-authority-district/22UN,Housing Services,5480 - Repair & Maintenance,2017 - Mechanical Equipment /Extract Fans,30/11/2010,1040959-1,520,2100572 - Envirovent Ltd,REDACTED PERSONAL DATA  
Tendring DC,http://statistics.data.gov.uk/id/local-authority-district/22UN,Housing Services,5480 - Repair & Maintenance,2017 - Mechanical Equipment /Extract Fans,21/12/2010,1041343-1,188,2101519 - Paul N Smith,REDACTED PERSONAL DATA  
Tendring DC,http://statistics.data.gov.uk/id/local-authority-district/22UN,Housing Services,5480 - Repair & Maintenance,2017 - Mechanical Equipment /Extract Fans,21/12/2010,1041343-2,360,2101519 - Paul N Smith,REDACTED PERSONAL DATA  
Tendring DC,http://statistics.data.gov.uk/id/local-authority-district/22UN,Housing Services,5480 - Repair & Maintenance,2017 - Mechanical Equipment /Extract Fans,19/10/2010,2077495-1,520,2100572 - Envirovent Ltd,REDACTED PERSONAL DATA  
Tendring DC,http://statistics.data.gov.uk/id/local-authority-district/22UN,Housing Services,5480 - Repair & Maintenance,2017 - Mechanical Equipment /Extract Fans,19/10/2010,2077496-1,540.75,2100572 - Envirovent Ltd,REDACTED PERSONAL DATA  
Tendring DC,http://statistics.data.gov.uk/id/local-authority-district/22UN,Housing Services,5480 - Repair & Maintenance,2017 - Mechanical Equipment /Extract Fans,02/11/2010,2077784-1,520,2100572 - Envirovent Ltd,REDACTED PERSONAL DATA  
Tendring DC,http://statistics.data.gov.uk/id/local-authority-district/22UN,Housing Services,5480 - Repair & Maintenance,2058 - Fire Alarms Repairs,07/12/2010,2078809-1,748,2108583 - Firesite,REDACTED PERSONAL DATA  
Tendring DC,http://statistics.data.gov.uk/id/local-authority-district/22UN,Housing Services,5480 - Repair & Maintenance,2069 - Lift/Stairlift Servicing,21/12/2010,1041527-1,2110.17,2101360 - Stannah Lift Services Limited,TERMED MAINT CONTRACT VARIOUS TYPES OF LIFT EQUIPMENT
Tendring DC,http://statistics.data.gov.uk/id/local-authority-district/22UN,Housing Services,5480 - Repair & Maintenance,2069 - Lift/Stairlift Servicing,21/12/2010,1041527-2,105.36,2101360 - Stannah Lift Services Limited,TERMED MAINT CONTRACT VARIOUS TYPES OF LIFT EQUIPMENT
Tendring DC,http://statistics.data.gov.uk/id/local-authority-district/22UN,Housing Services,5480 - Repair & Maintenance,2070 - Lift/Stairlift Repairs,21/12/2010,1041527-3,882.64,2101360 - Stannah Lift Services Limited,TERMED MAINT CONTRACT VARIOUS TYPES OF LIFT EQUIPMENT
Tendring DC,http://statistics.data.gov.uk/id/local-authority-district/22UN,Housing Services,5480 - Repair & Maintenance,2071 - Electric Installation Testing,21/12/2010,1041523-1,1103.75,2100155 - Blue Flame,"TEST, INSPECT & UPGRADE 12 PROPERTIES"
Tendring DC,http://statistics.data.gov.uk/id/local-authority-district/22UN,Housing Services,5480 - Repair & Maintenance,2072 - Planned Partial Refurbishment To Electrical Instal,21/12/2010,1041523-2,4449.51,2100155 - Blue Flame,"TEST, INSPECT & UPGRADE 12 PROPERTIES"
Tendring DC,http://statistics.data.gov.uk/id/local-authority-district/22UN,Housing Services,5480 - Repair & Maintenance,2077 - Gas Service Contract  Servicing/Testing (Large Sca,21/12/2010,1041519-1,1392.17,2100314 - Cooper & Brome (Plumbing & Heating) Ltd,LARGE SCALE BOILERS CONTRACT 09/12
Tendring DC,http://statistics.data.gov.uk/id/local-authority-district/22UN,Housing Services,5480 - Repair & Maintenance,2078 - Gas Service Contract Other Refurbishment/Repairs (,21/12/2010,1041519-2,14305.29,2100314 - Cooper & Brome (Plumbing & Heating) Ltd,LARGE SCALE BOILERS CONTRACT 09/12
Tendring DC,http://statistics.data.gov.uk/id/local-authority-district/22UN,Housing Services,5480 - Repair & Maintenance,2090 - Fencing,19/10/2010,2077449-1,721,2101598 - Coldec Ltd,REDACTED PERSONAL DATA  
Tendring DC,http://statistics.data.gov.uk/id/local-authority-district/22UN,Housing Services,5480 - Repair & Maintenance,2090 - Fencing,02/11/2010,2077824-1,721,2107848 - PMC Landscapes,REDACTED PERSONAL DATA  
Tendring DC,http://statistics.data.gov.uk/id/local-authority-district/22UN,Housing Services,5480 - Repair & Maintenance,2092 - Plumbing,26/10/2010,1040135-1,732,2100072 - Acorn Pressurisation Services Ltd,CROOKED ELMS
Tendring DC,http://statistics.data.gov.uk/id/local-authority-district/22UN,Housing Services,6620 - Corporate Management - General,5190 - Bank Commission Charges,01/12/2010,1041500-2,2,2100269 - Co operative Bank plc,POSSESSIONS ONLINE-NOV 10
Tendring DC,http://statistics.data.gov.uk/id/local-authority-district/22UN,Housing Services,6620 - Corporate Management - General,5190 - Bank Commission Charges,15/10/2010,2077519-2,2,2100304 - CO-OP Bank,Possessions Aug 10
Tendring DC,http://statistics.data.gov.uk/id/local-authority-district/22UN,Housing Services,6620 - Corporate Management - General,5190 - Bank Commission Charges,17/11/2010,2078415-2,2,2100304 - CO-OP Bank,Possessions Oct 2010
Tendring DC,http://statistics.data.gov.uk/id/local-authority-district/22UN,Housing Services,6883 - Public Halls-Holland,2200 - Rents Paid,14/12/2010,2079020-1,2000,2108660 - Holland on Sea Community Association,Holland on Sea Community Assoc
Tendring DC,http://statistics.data.gov.uk/id/local-authority-district/22UN,Housing Services,9920 - HRA Balance Sheet,B505 - ODPM Capital Receipts Pooling Creditor,31/10/2010,2078100-1,147016.91,2100432 - DCLG,Housing Capital Receipts Pooling Payment Q2 2010-11
Tendring DC,http://statistics.data.gov.uk/id/local-authority-district/22UN,Housing Services,9920 - HRA Balance Sheet,B860 - Housing Rents - Cash,02/11/2010,1040462-1,889.66,REDACTED PERSONAL DATA  ,RENT REFUND
Tendring DC,http://statistics.data.gov.uk/id/local-authority-district/22UN,Housing Services,9920 - HRA Balance Sheet,B860 - Housing Rents - Cash,05/10/2010,2076876-1,1248.03,REDACTED PERSONAL DATA  ,Rent Refund
Tendring DC,http://statistics.data.gov.uk/id/local-authority-district/22UN,Housing Services,9920 - HRA Balance Sheet,B860 - Housing Rents - Cash,09/11/2010,2078080-1,804.24,REDACTED PERSONAL DATA  ,Rent Refund
Tendring DC,http://statistics.data.gov.uk/id/local-authority-district/22UN,Housing Services,9920 - HRA Balance Sheet,B860 - Housing Rents - Cash,23/11/2010,2078509-1,1778.9,REDACTED PERSONAL DATA  ,Rent Refund
Tendring DC,http://statistics.data.gov.uk/id/local-authority-district/22UN,Housing Services,9920 - HRA Balance Sheet,B860 - Housing Rents - Cash,23/11/2010,2078510-1,1168.22,REDACTED PERSONAL DATA  ,Rent Refund
Tendring DC,http://statistics.data.gov.uk/id/local-authority-district/22UN,Housing Services,9920 - HRA Balance Sheet,B860 - Housing Rents - Cash,23/11/2010,2078512-1,701.93,REDACTED PERSONAL DATA  ,Rent Refund
Tendring DC,http://statistics.data.gov.uk/id/local-authority-district/22UN,Housing Services,9920 - HRA Balance Sheet,B860 - Housing Rents - Cash,30/11/2010,2078743-1,1315.11,REDACTED PERSONAL DATA  ,Rent Refund
Tendring DC,http://statistics.data.gov.uk/id/local-authority-district/22UN,Community Services,C262 - Relocation of Careline,C200 - Main Contractor,21/12/2010,1041526-1,10644.38,REDACTED PERSONAL DATA  ,BARNES HOUSE EXTENSION
Tendring DC,http://statistics.data.gov.uk/id/local-authority-district/22UN,Housing Services,H705 - Window/Door Replacement,C200 - Main Contractor,21/12/2010,1041522-1,17569.9,REDACTED COMMERCIAL CONFIDENTIALITY,WINDOW & DOOR REPLACEMENT-BELMANS COURT
Tendring DC,http://statistics.data.gov.uk/id/local-authority-district/22UN,Housing Services,H800 - Structural Repairs,C200 - Main Contractor,21/12/2010,1041520-1,9959.9,REDACTED COMMERCIAL CONFIDENTIALITY,UNDER PINNING WORKS 19/21 ALTON PARK RD
Tendring DC,http://statistics.data.gov.uk/id/local-authority-district/22UN,Housing Services,H805 - Major Refurbishment of Heating,C200 - Main Contractor,21/12/2010,1041524-1,52016.51,REDACTED COMMERCIAL CONFIDENTIALITY,HEATER REFURBISHMENT CONTRACT 09/12
Tendring DC,http://statistics.data.gov.uk/id/local-authority-district/22UN,Housing Services,H870 - Cash Incentive Scheme,C400 - Grant payments,12/10/2010,2077235-1,11149,REDACTED COMMERCIAL CONFIDENTIALITY,PSLP Funding
Tendring DC,http://statistics.data.gov.uk/id/local-authority-district/22UN,Housing Services,H870 - Cash Incentive Scheme,C400 - Grant payments,20/10/2010,2077600-1,20000,2110509 - Powells Solicitors,REDACTED PERSONAL DATA  
Tendring DC,http://statistics.data.gov.uk/id/local-authority-district/22UN,Housing Services,H870 - Cash Incentive Scheme,C400 - Grant payments,20/10/2010,2077601-1,20000,2110509 - Powells Solicitors,REDACTED PERSONAL DATA  
Tendring DC,http://statistics.data.gov.uk/id/local-authority-district/22UN,Human Resources and Customer Services,1040 - Regeneration Services,4730 - Fax Machine,14/12/2010,1041223-11,35.37,2100168 - British Telecommunications plc,BT ONE BILL-17/11/10
Tendring DC,http://statistics.data.gov.uk/id/local-authority-district/22UN,Human Resources and Customer Services,1040 - Regeneration Services,4730 - Fax Machine,16/11/2010,2078326-11,46.17,2100168 - British Telecommunications plc,BT One Bill - 17-2-10
Tendring DC,http://statistics.data.gov.uk/id/local-authority-district/22UN,Human Resources and Customer Services,1080 - Management Board,4300 - Printing & Stationery,21/12/2010,2079303-1,712.4,2104502 - 7 Two 11,7 Two 11 - Newspapers 10
Tendring DC,http://statistics.data.gov.uk/id/local-authority-district/22UN,Human Resources and Customer Services,1320 - Print Unit,4710 - Telephones - Charges,14/12/2010,1041223-8,49.02,2100168 - British Telecommunications plc,BT ONE BILL-17/11/10
Tendring DC,http://statistics.data.gov.uk/id/local-authority-district/22UN,Human Resources and Customer Services,1320 - Print Unit,4710 - Telephones - Charges,16/11/2010,2078326-8,46.22,2100168 - British Telecommunications plc,BT One Bill - 17-2-10
Tendring DC,http://statistics.data.gov.uk/id/local-authority-district/22UN,Human Resources and Customer Services,1340 - Legal Services - Management & Admin,4300 - Printing & Stationery,21/12/2010,2079303-3,103.7,2104502 - 7 Two 11,7 Two 11 - Newspapers 10
Tendring DC,http://statistics.data.gov.uk/id/local-authority-district/22UN,Human Resources and Customer Services,1420 - Human Resources & Customer Services,4300 - Printing & Stationery,23/11/2010,1040823-1,1081.06,2104502 - 7 Two 11,7 TWO 11- JULY-DEC 2005
Tendring DC,http://statistics.data.gov.uk/id/local-authority-district/22UN,Human Resources and Customer Services,1420 - Human Resources & Customer Services,4300 - Printing & Stationery,23/11/2010,1040824-1,1026.29,2104502 - 7 Two 11,7 TWO 11-JAN-JUN 2005
Tendring DC,http://statistics.data.gov.uk/id/local-authority-district/22UN,Human Resources and Customer Services,1420 - Human Resources & Customer Services,4300 - Printing & Stationery,23/11/2010,1040825-1,2137.79,2104502 - 7 Two 11,7TWO11-2004
Tendring DC,http://statistics.data.gov.uk/id/local-authority-district/22UN,Human Resources and Customer Services,1420 - Human Resources & Customer Services,4300 - Printing & Stationery,21/12/2010,2079303-2,262.8,2104502 - 7 Two 11,7 Two 11 - Newspapers 10
Tendring DC,http://statistics.data.gov.uk/id/local-authority-district/22UN,Human Resources and Customer Services,1420 - Human Resources & Customer Services,4300 - Printing & Stationery,21/12/2010,2079303-6,694.7,2104502 - 7 Two 11,7 Two 11 - Newspapers 10
Tendring DC,http://statistics.data.gov.uk/id/local-authority-district/22UN,Human Resources and Customer Services,1420 - Human Resources & Customer Services,4400 - Maintenance Under Service Agreements,23/11/2010,2078505-1,2132.61,2110687 - Bank of Scotland Equipment Finance Ltd,Bank of Scotland - Photocopier Finance Settlement
Tendring DC,http://statistics.data.gov.uk/id/local-authority-district/22UN,Human Resources and Customer Services,1420 - Human Resources & Customer Services,4716 - Mobile Telephone Costs,02/11/2010,1040377-1,428.41,2101522 - Vodafone Corporate,VODAFONE-SEP/OCT
Tendring DC,http://statistics.data.gov.uk/id/local-authority-district/22UN,Human Resources and Customer Services,1428 - Tendring Matters,4300 - Printing & Stationery,02/11/2010,1040370-1,6100,2100712 - In-House Publications,tendring matters-A2010
Tendring DC,http://statistics.data.gov.uk/id/local-authority-district/22UN,Human Resources and Customer Services,1428 - Tendring Matters,4300 - Printing & Stationery,16/11/2010,2078119-1,4140.53,2108909 - Leaflet Distribution Services Limited,LDS
Tendring DC,http://statistics.data.gov.uk/id/local-authority-district/22UN,Human Resources and Customer Services,1520 - Planning Management & Administration,1350 - Agency Staff,09/11/2010,1040467-1,6435,2110399 - GatenbySanderson Ltd,GATENBY SANDERSON
Tendring DC,http://statistics.data.gov.uk/id/local-authority-district/22UN,Human Resources and Customer Services,1520 - Planning Management & Administration,1350 - Agency Staff,19/10/2010,2077307-1,9067.5,2110399 - GatenbySanderson Ltd,GatenbySanderson
Tendring DC,http://statistics.data.gov.uk/id/local-authority-district/22UN,Human Resources and Customer Services,1520 - Planning Management & Administration,1350 - Agency Staff,19/10/2010,2077375-1,712.76,2110447 - Premier Inn Business Account,Premier Inn
Tendring DC,http://statistics.data.gov.uk/id/local-authority-district/22UN,Human Resources and Customer Services,1520 - Planning Management & Administration,1350 - Agency Staff,16/11/2010,2078170-1,536.18,2110447 - Premier Inn Business Account,Premier Inn
Tendring DC,http://statistics.data.gov.uk/id/local-authority-district/22UN,Human Resources and Customer Services,1560 - Cashiers,4710 - Telephones - Charges,14/12/2010,1041223-1,420.05,2100168 - British Telecommunications plc,BT ONE BILL-17/11/10
Tendring DC,http://statistics.data.gov.uk/id/local-authority-district/22UN,Human Resources and Customer Services,1560 - Cashiers,4710 - Telephones - Charges,16/11/2010,2078326-1,421.08,2100168 - British Telecommunications plc,BT One Bill - 17-2-10
Tendring DC,http://statistics.data.gov.uk/id/local-authority-district/22UN,Human Resources and Customer Services,1580 - Benefits & Revenues,4300 - Printing & Stationery,21/12/2010,2079303-5,101.2,2104502 - 7 Two 11,7 Two 11 - Newspapers 10
Tendring DC,http://statistics.data.gov.uk/id/local-authority-district/22UN,Human Resources and Customer Services,1580 - Benefits & Revenues,4710 - Telephones - Charges,16/11/2010,2078326-2,166.14,2100168 - British Telecommunications plc,BT One Bill - 17-2-10
Tendring DC,http://statistics.data.gov.uk/id/local-authority-district/22UN,Human Resources and Customer Services,1580 - Benefits & Revenues,4718 - Fixed Communication Lines,14/12/2010,1041223-2,145.19,2100168 - British Telecommunications plc,BT ONE BILL-17/11/10
Tendring DC,http://statistics.data.gov.uk/id/local-authority-district/22UN,Human Resources and Customer Services,1600 - Technical and Procurement - Technical Services,4355 - Books & Periodicals,21/12/2010,2079303-4,102.2,2104502 - 7 Two 11,7 Two 11 - Newspapers 10
Tendring DC,http://statistics.data.gov.uk/id/local-authority-district/22UN,Human Resources and Customer Services,1600 - Technical and Procurement - Technical Services,4710 - Telephones - Charges,14/12/2010,1041223-12,42.2,2100168 - British Telecommunications plc,BT ONE BILL-17/11/10
Tendring DC,http://statistics.data.gov.uk/id/local-authority-district/22UN,Human Resources and Customer Services,1600 - Technical and Procurement - Technical Services,4710 - Telephones - Charges,16/11/2010,2078326-12,46.68,2100168 - British Telecommunications plc,BT One Bill - 17-2-10
Tendring DC,http://statistics.data.gov.uk/id/local-authority-district/22UN,Human Resources and Customer Services,1660 - Other Apportionable Overheads,4700 - Postage,14/12/2010,1041223-7,40.82,2100168 - British Telecommunications plc,BT ONE BILL-17/11/10
Tendring DC,http://statistics.data.gov.uk/id/local-authority-district/22UN,Human Resources and Customer Services,1661 - Other Apportionable Overheads - L & A,4700 - Postage,16/11/2010,2078326-7,46.01,2100168 - British Telecommunications plc,BT One Bill - 17-2-10
Tendring DC,http://statistics.data.gov.uk/id/local-authority-district/22UN,Human Resources and Customer Services,1780 - Health & Safety,5500 - Miscellaneous Expenses,05/10/2010,1039830-1,39.92,2107768 - Colchester Hospital University NHS FT,NHS
Tendring DC,http://statistics.data.gov.uk/id/local-authority-district/22UN,Human Resources and Customer Services,1800 - Qualification Training,1700 - Training - Courses,14/12/2010,1041243-1,1600,2101953 - Colchester Institute Enterprises Ltd,COLCHESTER INS
Tendring DC,http://statistics.data.gov.uk/id/local-authority-district/22UN,Human Resources and Customer Services,1800 - Qualification Training,1700 - Training - Courses,16/11/2010,2078226-1,1250,2101953 - Colchester Institute Enterprises Ltd,Colchester Ins
Tendring DC,http://statistics.data.gov.uk/id/local-authority-district/22UN,Human Resources and Customer Services,1800 - Qualification Training,1700 - Training - Courses,07/12/2010,2078889-1,1030,2100254 - ConsultCIH Ltd,CIH
Tendring DC,http://statistics.data.gov.uk/id/local-authority-district/22UN,Human Resources and Customer Services,1800 - Qualification Training,1700 - Training - Courses,07/12/2010,2078890-1,1030,2100254 - ConsultCIH Ltd,CIH
Tendring DC,http://statistics.data.gov.uk/id/local-authority-district/22UN,Human Resources and Customer Services,1803 - Workforce Development,1700 - Training - Courses,07/12/2010,2078886-1,1772.4,2100443 - East Of England Local Government Association,Local Gov Assoc
Tendring DC,http://statistics.data.gov.uk/id/local-authority-district/22UN,Human Resources and Customer Services,1803 - Workforce Development,4753 - Computer - Application Software,07/12/2010,2078888-1,6275,2106181 - Bond International Software (UK) Ltd,Bond
Tendring DC,http://statistics.data.gov.uk/id/local-authority-district/22UN,Human Resources and Customer Services,1804 - Long Service Scheme,5400 - Awards & Gifts,14/12/2010,1041230-1,805.1,2110712 - SRS Microsystems Ltd,SRS
Tendring DC,http://statistics.data.gov.uk/id/local-authority-district/22UN,Human Resources and Customer Services,1804 - Long Service Scheme,5400 - Awards & Gifts,01/12/2010,2079386-2,531.05,2100304 - CO-OP Bank,Coop Bank
Tendring DC,http://statistics.data.gov.uk/id/local-authority-district/22UN,Human Resources and Customer Services,1805 - New Programme Development,1700 - Training - Courses,16/11/2010,2078120-1,1950,2110605 - ACAS,ACAS
Tendring DC,http://statistics.data.gov.uk/id/local-authority-district/22UN,Human Resources and Customer Services,1805 - New Programme Development,1700 - Training - Courses,07/12/2010,2078891-1,1030,2100254 - ConsultCIH Ltd,2311
Tendring DC,http://statistics.data.gov.uk/id/local-authority-district/22UN,Human Resources and Customer Services,1806 - Organisational Cultural Training,1700 - Training - Courses,23/11/2010,2078482-1,750,2105829 - Prettys Solicitors,Prettys
Tendring DC,http://statistics.data.gov.uk/id/local-authority-district/22UN,Human Resources and Customer Services,1807 - Recruitment & Relocation,1500 - Advertising - Recruitment,19/10/2010,2077306-1,6333,2109175 - Tribal Resourcing Ltd,tribal
Tendring DC,http://statistics.data.gov.uk/id/local-authority-district/22UN,Human Resources and Customer Services,1807 - Recruitment & Relocation,1500 - Advertising - Recruitment,16/11/2010,2078403-1,8770.96,2109175 - Tribal Resourcing Ltd,Tribal
Tendring DC,http://statistics.data.gov.uk/id/local-authority-district/22UN,Human Resources and Customer Services,1808 - Medical Fees,1600 - Medical Expenses,05/10/2010,1039830-3,360.8,2107768 - Colchester Hospital University NHS FT,NHS
Tendring DC,http://statistics.data.gov.uk/id/local-authority-district/22UN,Human Resources and Customer Services,1808 - Medical Fees,1610 - Counselling,14/12/2010,2078972-1,1080,REDACTED PERSONAL DATA  ,Counselling
Tendring DC,http://statistics.data.gov.uk/id/local-authority-district/22UN,Human Resources and Customer Services,1810 - Manpower Planning Summary,4460 - Legal & Professional Expenses,14/12/2010,1041245-1,2751.4,2110695 - Beachcroft LLP,BEACHCROFT
Tendring DC,http://statistics.data.gov.uk/id/local-authority-district/22UN,Human Resources and Customer Services,1810 - Manpower Planning Summary,4460 - Legal & Professional Expenses,16/11/2010,2078199-1,1342.5,2110695 - Beachcroft LLP,Beachcroft
Tendring DC,http://statistics.data.gov.uk/id/local-authority-district/22UN,Human Resources and Customer Services,1811 - Management Development Programme,1700 - Training - Courses,14/12/2010,2078980-1,47,2104612 - OPP Limited,OPP
Tendring DC,http://statistics.data.gov.uk/id/local-authority-district/22UN,Human Resources and Customer Services,1811 - Management Development Programme,1700 - Training - Courses,14/12/2010,2078980-2,503.5,2104612 - OPP Limited,OPP
Tendring DC,http://statistics.data.gov.uk/id/local-authority-district/22UN,Human Resources and Customer Services,1840 - Central Telephone Service,4710 - Telephones - Charges,30/11/2010,1040990-1,6210.21,2100168 - British Telecommunications plc,BT 686000
Tendring DC,http://statistics.data.gov.uk/id/local-authority-district/22UN,Human Resources and Customer Services,1840 - Central Telephone Service,4710 - Telephones - Charges,30/11/2010,1040990-2,9,2100168 - British Telecommunications plc,BT 686000
Tendring DC,http://statistics.data.gov.uk/id/local-authority-district/22UN,Human Resources and Customer Services,1840 - Central Telephone Service,4710 - Telephones - Charges,14/12/2010,1041222-1,1151.24,2100168 - British Telecommunications plc,BT-253100
Tendring DC,http://statistics.data.gov.uk/id/local-authority-district/22UN,Human Resources and Customer Services,1840 - Central Telephone Service,4710 - Telephones - Charges,14/12/2010,1041222-2,9,2100168 - British Telecommunications plc,BT-253100
Tendring DC,http://statistics.data.gov.uk/id/local-authority-district/22UN,Human Resources and Customer Services,1840 - Central Telephone Service,4710 - Telephones - Charges,14/12/2010,1041223-6,128.96,2100168 - British Telecommunications plc,BT ONE BILL-17/11/10
Tendring DC,http://statistics.data.gov.uk/id/local-authority-district/22UN,Human Resources and Customer Services,1840 - Central Telephone Service,4710 - Telephones - Charges,21/12/2010,1041508-1,-715,2100168 - British Telecommunications plc,BT-686000
Tendring DC,http://statistics.data.gov.uk/id/local-authority-district/22UN,Human Resources and Customer Services,1840 - Central Telephone Service,4710 - Telephones - Charges,16/11/2010,2078326-14,-308.92,2100168 - British Telecommunications plc,BT One Bill - 17-2-10
Tendring DC,http://statistics.data.gov.uk/id/local-authority-district/22UN,Human Resources and Customer Services,1840 - Central Telephone Service,4710 - Telephones - Charges,16/11/2010,2078326-6,149.13,2100168 - British Telecommunications plc,BT One Bill - 17-2-10
Tendring DC,http://statistics.data.gov.uk/id/local-authority-district/22UN,Human Resources and Customer Services,1840 - Central Telephone Service,4710 - Telephones - Charges,21/12/2010,2079299-1,7742.76,2100168 - British Telecommunications plc,BT Phone Bill
Tendring DC,http://statistics.data.gov.uk/id/local-authority-district/22UN,Human Resources and Customer Services,1840 - Central Telephone Service,4710 - Telephones - Charges,21/12/2010,2079299-2,4.5,2100168 - British Telecommunications plc,BT Phone Bill
Tendring DC,http://statistics.data.gov.uk/id/local-authority-district/22UN,Human Resources and Customer Services,1840 - Central Telephone Service,4710 - Telephones - Charges,21/12/2010,2079313-1,1669.95,2100168 - British Telecommunications plc,BT - 833435
Tendring DC,http://statistics.data.gov.uk/id/local-authority-district/22UN,Human Resources and Customer Services,1840 - Central Telephone Service,4710 - Telephones - Charges,21/12/2010,2079313-2,9,2100168 - British Telecommunications plc,BT - 833435
Tendring DC,http://statistics.data.gov.uk/id/local-authority-district/22UN,Human Resources and Customer Services,1860 - Depots General,2100 - Building Repairs,05/10/2010,2077084-3,328.57,REDACTED PERSONAL DATA  ,ALS Cleaning
Tendring DC,http://statistics.data.gov.uk/id/local-authority-district/22UN,Human Resources and Customer Services,1860 - Depots General,2304 - Energy Costs - Electricity,21/12/2010,1039640-6,98.99,2100197 - British Gas Trading Ltd,BGAS ELEC-AUG 10
Tendring DC,http://statistics.data.gov.uk/id/local-authority-district/22UN,Human Resources and Customer Services,1860 - Depots General,2304 - Energy Costs - Electricity,21/12/2010,1040011-3,109.06,2100197 - British Gas Trading Ltd,BRITISH GAS-SEP 10
Tendring DC,http://statistics.data.gov.uk/id/local-authority-district/22UN,Human Resources and Customer Services,1860 - Depots General,2304 - Energy Costs - Electricity,21/12/2010,1040011-5,194.73,2100197 - British Gas Trading Ltd,BRITISH GAS-SEP 10
Tendring DC,http://statistics.data.gov.uk/id/local-authority-district/22UN,Human Resources and Customer Services,1860 - Depots General,2304 - Energy Costs - Electricity,21/12/2010,1041247-7,157.01,2100197 - British Gas Trading Ltd,BRITISH GAS
Tendring DC,http://statistics.data.gov.uk/id/local-authority-district/22UN,Human Resources and Customer Services,1860 - Depots General,2304 - Energy Costs - Electricity,21/12/2010,1041247-8,52.76,2100197 - British Gas Trading Ltd,BRITISH GAS
Tendring DC,http://statistics.data.gov.uk/id/local-authority-district/22UN,Human Resources and Customer Services,1860 - Depots General,2304 - Energy Costs - Electricity,21/12/2010,1041468-10,144.82,2100197 - British Gas Trading Ltd,BRITISH GAS
Tendring DC,http://statistics.data.gov.uk/id/local-authority-district/22UN,Human Resources and Customer Services,1860 - Depots General,2304 - Energy Costs - Electricity,21/12/2010,1041468-5,144.91,2100197 - British Gas Trading Ltd,BRITISH GAS
Tendring DC,http://statistics.data.gov.uk/id/local-authority-district/22UN,Human Resources and Customer Services,1860 - Depots General,2304 - Energy Costs - Electricity,21/12/2010,2078630-10,130.22,2100197 - British Gas Trading Ltd,British Gas - Oct 10
Tendring DC,http://statistics.data.gov.uk/id/local-authority-district/22UN,Human Resources and Customer Services,1860 - Depots General,2304 - Energy Costs - Electricity,21/12/2010,2078630-6,128.31,2100197 - British Gas Trading Ltd,British Gas - Oct 10
Tendring DC,http://statistics.data.gov.uk/id/local-authority-district/22UN,Human Resources and Customer Services,1880 - Office Accommodation Expenses,2100 - Building Repairs,26/10/2010,1040111-1,624,2108384 - DC Drains & Plumbing Services,DC DRAINS
Tendring DC,http://statistics.data.gov.uk/id/local-authority-district/22UN,Human Resources and Customer Services,1880 - Office Accommodation Expenses,2100 - Building Repairs,26/10/2010,1040112-1,609.64,2108384 - DC Drains & Plumbing Services,DC DRAINS
Tendring DC,http://statistics.data.gov.uk/id/local-authority-district/22UN,Human Resources and Customer Services,1880 - Office Accommodation Expenses,2100 - Building Repairs,09/11/2010,1040612-1,600.16,2102379 - Wiremek Ltd,WIREMEK
Tendring DC,http://statistics.data.gov.uk/id/local-authority-district/22UN,Human Resources and Customer Services,1880 - Office Accommodation Expenses,2100 - Building Repairs,23/11/2010,1040821-1,2178.62,2104502 - 7 Two 11,7 TWO 11-2002
Tendring DC,http://statistics.data.gov.uk/id/local-authority-district/22UN,Human Resources and Customer Services,1880 - Office Accommodation Expenses,2100 - Building Repairs,23/11/2010,1040822-1,2216.87,2104502 - 7 Two 11,7 TWO 11-2003
Tendring DC,http://statistics.data.gov.uk/id/local-authority-district/22UN,Human Resources and Customer Services,1880 - Office Accommodation Expenses,2100 - Building Repairs,30/11/2010,1040976-1,571,2108384 - DC Drains & Plumbing Services,DRAINS
Tendring DC,http://statistics.data.gov.uk/id/local-authority-district/22UN,Human Resources and Customer Services,1880 - Office Accommodation Expenses,2100 - Building Repairs,30/11/2010,1040980-1,724.5,2107113 - Pace Fuelcare Ltd,FUELCARE
Tendring DC,http://statistics.data.gov.uk/id/local-authority-district/22UN,Human Resources and Customer Services,1880 - Office Accommodation Expenses,2100 - Building Repairs,30/11/2010,1040987-1,675,REDACTED COMMERCIAL CONFIDENTIALITY,REDACTED COMMERCIAL CONFIDENTIALITY
Tendring DC,http://statistics.data.gov.uk/id/local-authority-district/22UN,Human Resources and Customer Services,1880 - Office Accommodation Expenses,2100 - Building Repairs,30/11/2010,1040988-1,1075,REDACTED COMMERCIAL CONFIDENTIALITY,REDACTED COMMERCIAL CONFIDENTIALITY
Tendring DC,http://statistics.data.gov.uk/id/local-authority-district/22UN,Human Resources and Customer Services,1880 - Office Accommodation Expenses,2100 - Building Repairs,14/12/2010,1041240-1,550,REDACTED COMMERCIAL CONFIDENTIALITY,REDACTED COMMERCIAL CONFIDENTIALITY
Tendring DC,http://statistics.data.gov.uk/id/local-authority-district/22UN,Human Resources and Customer Services,1880 - Office Accommodation Expenses,2100 - Building Repairs,14/12/2010,1041240-2,66,REDACTED COMMERCIAL CONFIDENTIALITY,REDACTED COMMERCIAL CONFIDENTIALITY
Tendring DC,http://statistics.data.gov.uk/id/local-authority-district/22UN,Human Resources and Customer Services,1880 - Office Accommodation Expenses,2100 - Building Repairs,14/12/2010,1041242-1,344,REDACTED COMMERCIAL CONFIDENTIALITY,REDACTED COMMERCIAL CONFIDENTIALITY
Tendring DC,http://statistics.data.gov.uk/id/local-authority-district/22UN,Human Resources and Customer Services,1880 - Office Accommodation Expenses,2100 - Building Repairs,14/12/2010,1041242-2,300,REDACTED COMMERCIAL CONFIDENTIALITY,REDACTED COMMERCIAL CONFIDENTIALITY
Tendring DC,http://statistics.data.gov.uk/id/local-authority-district/22UN,Human Resources and Customer Services,1880 - Office Accommodation Expenses,2100 - Building Repairs,14/12/2010,1041244-1,1437,2100750 - ID Management Systems,ID MANAGEMENT
Tendring DC,http://statistics.data.gov.uk/id/local-authority-district/22UN,Human Resources and Customer Services,1880 - Office Accommodation Expenses,2100 - Building Repairs,21/12/2010,1041368-1,1328.78,2101578 - Micraft,MICRAFT
Tendring DC,http://statistics.data.gov.uk/id/local-authority-district/22UN,Human Resources and Customer Services,1880 - Office Accommodation Expenses,2100 - Building Repairs,05/10/2010,2077084-1,328.58,REDACTED COMMERCIAL CONFIDENTIALITY,ALS Cleaning
Tendring DC,http://statistics.data.gov.uk/id/local-authority-district/22UN,Human Resources and Customer Services,1880 - Office Accommodation Expenses,2100 - Building Repairs,05/10/2010,2077084-2,328.57,REDACTED COMMERCIAL CONFIDENTIALITY,ALS Cleaning
Tendring DC,http://statistics.data.gov.uk/id/local-authority-district/22UN,Human Resources and Customer Services,1880 - Office Accommodation Expenses,2100 - Building Repairs,05/10/2010,2077084-4,328.57,REDACTED COMMERCIAL CONFIDENTIALITY,ALS Cleaning
Tendring DC,http://statistics.data.gov.uk/id/local-authority-district/22UN,Human Resources and Customer Services,1880 - Office Accommodation Expenses,2100 - Building Repairs,05/10/2010,2077084-5,328.57,REDACTED COMMERCIAL CONFIDENTIALITY,ALS Cleaning
Tendring DC,http://statistics.data.gov.uk/id/local-authority-district/22UN,Human Resources and Customer Services,1880 - Office Accommodation Expenses,2100 - Building Repairs,05/10/2010,2077084-6,328.57,REDACTED COMMERCIAL CONFIDENTIALITY,ALS Cleaning
